{"text_format":"3","workbook":"xlsx","n_sheets":6,"sheets":["kuni 2025 detsember tegevuskava","Seirearuanne","KK_lisa","Tegevuskava","Ettekande arvutused","Personal"],"not_rendered":{"charts":8,"defined_names":2,"comments":1},"read":"whole","date_system":"1900"}

{"sheet":"kuni 2025 detsember tegevuskava","index":0,"n_rows":137,"n_cols":46,"rows_kept":137,"hidden":true,"merged":[[1,1,1,4],[1,6,1,10],[16,1,16,8],[16,10,16,17],[18,10,18,17],[19,1,19,8],[19,10,19,17],[21,10,21,17],[22,1,22,8],[22,10,22,17],[24,10,24,17],[25,1,25,8],[25,10,25,17],[27,10,27,17],[31,23,31,40],[32,23,32,25],[32,26,32,28],[32,29,32,31],[32,32,32,34],[32,35,32,37],[32,38,32,40],[33,17,33,22]]}
["Valdkondlik digipööre"]
["Elluviija: ","Eesti Linnade ja Valdade Liit",{"$nulls":4},"Valdkondliku digipöörde maksumus kokku (2023-2028) meetme nelja tegevuse lõikes, arvestdes kõiki rahasutsallikaid."]
["Eelarve:","Kokku\n2023-2025",2023,2024,2025,null,"Kokku:","1. Infotehnoloogiliste lahenduste väljatöötamine ja arendamine","2. küberruumi hoidmine, arendamine ja juurutamine usaldusväärse ja turvalisena","3. Teadlikkuse tõstmine","4. muu digipöördega seotud otsene kulu"]
["KOKKU:",{"$f":"SUM(C4:E4)","v":{"v":2024944,"d":"2,024,944"}},{"$f":"SUM(C5+C12)","v":{"v":179866,"d":"179,866"}},{"$f":"SUM(D5+D12)","v":{"v":578052,"d":"578,052"}},{"$f":"SUM(E5+E12)","v":{"v":1267026,"d":"1,267,026"}},null,{"$f":"SUM(H4:K4)","v":{"v":1981987,"d":"1,981,987"}},{"$f":"SUMIFS(Q35:Q94,G35:G94,$G$97)","v":{"v":485593,"d":"485,593"}},{"$f":"SUMIFS(Q35:Q94,G35:G94,$G$98)","v":{"v":709452,"d":"709,452"}},{"$f":"SUMIFS(Q35:Q94,G35:G94,$G$99)","v":{"v":124000,"d":"124,000"}},{"$f":"SUMIFS(Q35:Q94,G35:G94,$G$100)","v":{"v":662942,"d":"662,942"}}]
["Digipöörde olemasolevad rahalised vahedid",{"$f":"SUM(C5:E5)","v":{"v":359914,"d":"359,914"}},{"$f":"SUM(C6:C11)","v":{"v":179866,"d":"179,866"}},{"$f":"SUM(D6:D11)","v":{"v":118048,"d":"118,048"}},{"$f":"SUM(E6:E11)","v":{"v":62000,"d":"62,000"}}]
["sh baaseelarve",{"$f":"SUM(C6:E6)","v":{"v":274000,"d":"274,000"}},{"$f":"SUMIFS(R35:R94,P35:P94,\"Baaseelarve\")","v":{"v":150000,"d":"150,000"}},{"$f":"SUMIFS(S35:S94,P35:P94,\"Baaseelarve\")","v":{"v":62000,"d":"62,000"}},{"$f":"SUMIFS(T35:T94,P35:P94,\"Baaseelarve\")","v":{"v":62000,"d":"62,000"}}]
["sh muu rahastus",{"$f":"SUM(C7:E7)","v":0},{"$f":"SUMIFS(R35:R94,P35:P94,\"Muu rahastus\")","v":0},{"$f":"SUMIFS(S35:S94,P35:P94,\"Muu rahastus\")","v":0},{"$f":"SUMIFS(T35:T94,P35:P94,\"Muu rahastus\")","v":0}]
["sh reserv (SR)",{"$f":"SUM(C8:E8)","v":0},{"$f":"SUMIFS(R35:R94,P35:P94,\"Reserv (SR)\")","v":0},{"$f":"SUMIFS(S35:S94,P35:P94,\"Reserv (SR)\")","v":0},{"$f":"SUMIFS(T35:T94,P35:P94,\"Reserv (SR)\")","v":0}]
["sh RRF",{"$f":"SUM(C9:D9)","v":{"v":42957,"d":"42,957"}},{"$f":"SUMIFS(R35:R94,P35:P94,\"RRF\")","v":{"v":14933,"d":"14,933"}},{"$f":"SUMIFS(S35:S94,P35:P94,\"RRF\")","v":{"v":28024,"d":"28,024"}}]
["sh SF 14-20 (töös olev projekt)",{"$f":"SUM(C10:E10)","v":0},{"$f":"SUMIFS(R35:R94,P35:P94,\"SF 14-20 (töös olev projekt)\")","v":0},{"$f":"SUMIFS(S35:S94,P35:P94,\"SF 14-20 (töös olev projekt)\")","v":0},{"$f":"SUMIFS(T35:T94,P35:P94,\"SF 14-20 (töös olev projekt)\")","v":0}]
["RRF",{"$f":"SUM(C11:E11)","v":{"v":42957,"d":"42,957"}},{"$f":"SUMIFS(R35:R94,P35:P94,\"RRF\")","v":{"v":14933,"d":"14,933"}},{"$f":"SUMIFS(S35:S94,P35:P94,\"RRF\")","v":{"v":28024,"d":"28,024"}},{"$f":"SUMIFS(T35:T94,P35:P94,\"RRF\")","v":0}]
["Digipöörde puuduolevad rahalised vahendid",{"$f":"SUM(C12:E12)","v":{"v":1665030,"d":"1,665,030"}},{"$f":"SUM(C13:C14)","v":0},{"$f":"SUM(D13:D14)","v":{"v":460004,"d":"460,004"}},{"$f":"SUM(E13:E14)","v":{"v":1205026,"d":"1,205,026"}}]
["sh RES IKT (vaja juurde taotleda)",{"$f":"SUM(C13:E13)","v":{"v":645500,"d":"645,500"}},{"$f":"SUMIFS(R35:R94,P35:P94,\"RES IKT (vaja juurde taotleda)\")","v":0},{"$f":"SUMIFS(S35:S94,P35:P94,\"RES IKT (vaja juurde taotleda)\")","v":{"v":60000,"d":"60,000"}},{"$f":"SUMIFS(T35:T94,P35:P94,\"RES IKT (vaja juurde taotleda)\")","v":{"v":585500,"d":"585,500"}},"Puudu olev lisavajadus riigieelarvest, vajadus taotleda RES protsessis."]
["sh SF 21-27 (taotletav raha)",{"$f":"SUM(C14:E14)","v":{"v":1019530,"d":"1,019,530"}},{"$f":"SUMIFS(R35:R94,P35:P94,\"SF 21-27 (taotletav raha)\")","v":0},{"$f":"SUMIFS(S35:S94,P35:P94,\"SF 21-27 (taotletav raha)\")","v":{"v":400004,"d":"400,004"}},{"$f":"SUMIFS(T35:T94,P35:P94,\"SF 21-27 (taotletav raha)\")","v":{"v":619526,"d":"619,526"}},"Puudu olev lisavajadus SF-st, SF 21-27 valdkondlike digipöörete toetusskeemist."]
[]
["NB! Mõõdikud tuleb täita ainult SF 2021-2027 rahastuse puhul."]
["Meetmete nimekirja tulemusnäitaja:","Uute ja uuendatud avalike digiteenuste, -toodete ja -protsesside kasutajad. Mõõtühik: lõppkasutajaid aastas.",{"$nulls":7},"Elluviija kommentaar","Käskkirjas välja toodud elluviijate peale kokku on mõõdiku 2029 sihttase 2 000 000. Välja tuua, milline on teie panus selle mõõdiku täitmisse."]
["Periood","2023 algtase","2024 sihttase","2025 sihttase","2026 sihttase","2027 sihttase","2028 sihttase","2029 sihttase","2030 lõpptase"]
["Väärtus",0,0,{"v":15000,"d":"15,000"},{"$nulls":4},{"v":250000,"d":"250,000"},null,"Sisestada tuleb täisarv."]
["Meetmete nimekirja väljundnäitaja:","Uued või uuendatud digiteenused, -tooted ja -protsessid. Mõõtühik: arv ",{"$nulls":8},"Käskkirjas välja toodud elluviijate peale kokku on mõõdiku 2029 sihttase 35. Välja tuua, milline on teie panus selle mõõdiku täitmisse.\nSiia tuleb kokku lugeda lõpule viidud uued või uuendatud digiteenused, - tooted ja -protsessid."]
["Periood","2023 algtase","2024 sihttase","2025 sihttase","2026 sihttase","2027 sihttase","2028 sihttase","2029 sihttase","2030 lõpptase"]
["Väärtus",0,0,1,{"$nulls":4},5,null,"Kasutuskordade kokku lugemise metoodika määrab elluviija ise arvestades oma valdkonda. Sisestada tuleb täisarv."]
["Meetmete nimekirja väljundnäitaja:","Avaliku sektori asutused, keda toetatakse digiteenuste, -toodete ja -protsesside väljatöötamiseks. Mõõtühik: Avaliku sektori asutused.",{"$nulls":8},"Käskkirjas välja toodud elluviijate peale kokku on mõõdiku 2029 sihttase 35. Välja tuua, milline on teie panus selle mõõdiku täitmisse.\nSiia tuleb kokku lugeda asutused, kes teie digipöörde raames SF toetust kasutavad (elluviija ja partnerid).\n"]
["Periood","2023 algtase","2024 sihttase","2025 sihttase","2026 sihttase","2027 sihttase","2028 sihttase","2029 sihttase","2030 lõpptase"]
["Väärtus",0,1,1,{"$nulls":4},1,null,"Tükkide kokku lugemise metoodika määrab elluviija ise arvestades oma valdkonda. Sisestada tuleb täisarv."]
["Projektispetsiifiline näitaja (Eesti digiühiskonna arengukava 2030 (DA 2030) mõõdik):","Avalike digiteenustega rahulolu. Mõõtühik: % ",{"$nulls":8},"Riigiüleselt avalike digiteenustega rahululu peab 2030. aastaks tõusma 90%-le. Välja tuua, milline on teie panus selle mõõdiku täitmisse."]
["Periood","2023 algtase","2024 sihttase","2025 sihttase","2026 sihttase","2027 sihttase","2028 sihttase","2029 sihttase","2030 lõpptase"]
["Väärtus",0,0,0,{"$nulls":4},90,null,"Rahulolu kokku lugemise metoodika määrab elluviija ise arvestades oma valdkonda"]
[]
[]
[]
[{"$nulls":23},"NB! Kõik summad kajastada ilma käibemaksuta!"]
["Elluviija/ministeerium","Struktuuriüksus","Partner/Asutus","Teenuse vastutaja","DÜAK plokk","Panus arengukava suunda","Meetme toetatav tegevus","TERE teenus","Probleem","Tegevuse (algatuse) nimi","Tulemus","Otsus","Valdkonna prioriteet","Slaid/allikas","Paneeli vajadus","Rahastuse allikas","Summa kokku",2023,2024,2025,2026,2027,2028,"2023\n(Kasutusse võetud vahendid, ehk kohustustega / lepingutega kaetud)",null,null,2024,null,null,2025,null,null,2026,null,null,2027,null,null,2028,null,null,"Kalkulatsioon ja  allika põhjendus\nVõimalusel kirjeldada siin lahtris, kui on põhjalikum tabeli kujul kalkulatsioon, siis see tuua välja eraldi Exceli lehel ja siin vastava rea lahtris sellele viidata.","Tegevuse jätkusuutlikkuse kulu","Kommentaar\n","RES lisavajaduste grupid","RES lisavajaduste kestvus"]
["Punkt 5.3.1.\n„Toetuse andmise tingimused valdkondlike\ndigipöörete toetamiseks“","Valdkond, osakond, kes elluviija juures teema eest vastutab.","Partner/asutus, kelle eelarvest algatusi teostatakse\nPunkt 5.6.\n„Toetuse andmise tingimused valdkondlike\ndigipöörete toetamiseks“","Vastutav teenuseomanik/\nprojektijuht","(valida rippmenüüst)","(valida rippmenüüst)","(valida rippmenüüst, SF TAT käskkirja punkt 3.1. neli tegevust)","Kirjutada välja TERE teenuse nimetus","Täita kõikide ridade puhul","Täita kõikide ridade puhul\n(Kui tegmist jätkusuutlikkuse tagamise tegevusega, siis see nimes välja tuua.)","Täita kõikide ridade puhul.\nKui mitme aastane tegevus/projekt, siis kirjutada välja vähemalt 2024. ja 2025. aasta tulemus ning lõpptulemus.\nRES lisavajadustel tuua välja, mida mingi aasta RES rahade eest ära tehakse. Kui lisavajadus on kogu perioodiks ja kulud on aasta-aastalt sama, siis näiteks:\n2025-2028 - SF-st arendatu hoolduskulu, väikearendused, majutus riigipilves, jne.\nKui tegevused on aastati erinevad, siis tuua need välja järgmiselt:\n2025 - \n2026 - \n2027 -\n2028 - ","ok- rahastada, nok- mitte rahastada, ?-otsus lahtine","Unikaalne prioriteet","Esitatud slaidi number, või viide allikale, kus on võimalik tutvuda vajadusel sisuga, sh täpsemate kalkulatsioonidega ","Anda hinnang, kas on vajadus äri-, andmete-, arhitektuuri-, või muu paneeli järele.\nNB! Paneelivajadus on igal üle 400 000 euro maksval algatusel/tegevusel. Konkreetne paneel, või paneelid otsustatakse MKM ettepanekul kohtumisel elluviijaga.","(valida rippmenüüst)",{"$nulls":7},"Investeering\n(15)","Tööjõukulu\n(50)","Majandamiskulu\n(55) ","Investeering\n(15)","Tööjõukulu\n(50)","Majandamiskulu\n(55) ","Investeering\n(15)","Tööjõukulu\n(50)","Majandamiskulu\n(55) ","Investeering\n(15)","Tööjõukulu\n(50)","Majandamiskulu\n(55) ","Investeering\n(15)","Tööjõukulu\n(50)","Majandamiskulu\n(55) ","Investeering\n(15)","Tööjõukulu\n(50)","Majandamiskulu\n(55) ","Välja peab olema toodud tegevuste maksumuste arvutused, koos tundide hinna, tundide arvu ja tunnihinna selgitustega. Arenduste puhul lisada tunnihinna põhjendus varasemate hangetega. Inimeste palkamisel peab lähtuma Fontese palgauuringust ja viitama vastavale tööperele.","(valida rippmenüüst)","RES lisavajaduste puhul tuua välja, milliste tabeli SF ridadega on käesolev jätkusuutlikkuse rida seotud. Nt: jätkusuutlikkuse kulu ridadele 38, 39 ja 40.\nKui ei ole tegemist jätkusuutlikkuse kuluga, vaid digipöördes eraldiseisva riigieelarvest täiendavat rahastust vajava tegevusega, siis see siin veerus välja tuua.","1. Personaalne riik.\n2. AI ja andmed.\n3. Õigusaktidest tulenevad vajadused. \n4. Baasi korrastamine.\n5. Küberturvalisus.\n6. Mittesõjalised riigikaitselised IKT vajadused.","RES lisavajaduste puhul tuua välja kas tegemist püsikuluga mis peab minema baasi, või on tegemist ühekordse kuluga konkrteetse(te)l aasta(te)l."]
["ELVL",null,null,"ELVL","I: Digiriik","1.2.1. Avalike teenuste juhtimise ja kasutajakesksuse juurutamine","IV: muu digipöördega seotud otsene kulu",null,"KOV infosüsteemide analüüsi põhjal:\nKOVidel puudub enamasti ülevaade pakutavatest teenustest\nAmetnike ega lõppkasutajate rahulolu teenustega reeglina ei mõõdeta\nArendusvajadused on enamasti suunatud automatiseerimisele ja käsitöö vähendamisele ametniku poolt\nTeenuste üle kontroll puudub","KOV avalike teenuste kaardistamise mudel ja ühtne kasutajate rahulolu mõõtmise süsteem","2024 – projektijuhi värbamine, KOVide KOKSist tulenevate avalike teenuste esmane kaardistamine koostöös MKMi teenuste tiimiga KOV teenuste arendajatega pilootrühma baasil (5 KOVi). Jätkutegevuste kavandamine KOV teenuste esmase kaardistusest tulenevalt. Võimalikud tegevused: teenuste kaardistuse laiendamine kõikidele omavalitsustele; KOV teenuste standardi väljatöötamine ja valideerimine KOVidega; ühtse kasutajate rahulolu mõõtmise mudeli ja süsteemi analüüs 2025 - analüüsi tulemusena kasutajate rahulolu süsteemi arendus ja juurutamine. Lõpptulemus: KOVidel tekib ülevaade oma teenustest ja protsessidest ehk nn äripoole vajadustest; tervikpilt KOV (e-)teenustest ja kattuvusest riigiasutuste teenustega; KOV teenuste seotus sündmusteenustega; kasutajate rahulolu mõõtmine ja parendused on juurutatud teenuse osutamise protsessi.   ","ok ",1,32,"Äripaneel","SF 21-27 (taotletav raha)",{"$f":"SUM(R35:W35)","v":{"v":172809,"d":"172,809"}},{"$f":"SUM(X35:Z35)","v":0},{"$f":"SUM(AA35:AC35)","v":{"v":57609,"d":"57,609"}},{"$f":"SUM(AD35:AF35)","v":{"v":115200,"d":"115,200"}},{"$f":"SUM(AG35:AI35)","v":0},{"$f":"SUM(AJ35:AL35)","v":0},{"$f":"SUM(AM35:AO35)","v":0},{"$nulls":4},{"v":27609,"d":"27,609"},{"v":30000,"d":"30,000"},null,{"v":55200,"d":"55,200"},{"v":60000,"d":"60,000"},{"$nulls":9},"Teenuste projektijuhi töötasu, 2024 arvestatud 0,5 töökohta; 2025.a 1.0 töökoht. KOV teenuste ühtse kasutajate rahulolu mõõtmise metoodika ja infotehnoloogilise lahenduse väljatöötamine - ca 90 000 eurot. Personaliga seotud otsesed majanduskulud (arvutitöökoht, koolituskulud, sõidukulud) arvestatud ca 4000 eurot aastas. ","4. SF tegevus, mis vajab jätkusuutlikkuse kulusid, aga neid pole välja arvutatud ja eraldi real välja toodud","Eeldame, et loodava IT lahenduse halduskulu maksavad KOVid ise kinni."]
["ELVL",null,null,"ELVL","I: Digiriik","1.2.7. Avaliku sektori digimuutuste võimendamine","III: teadlikkuse tõstmine",null,"KOV infosüsteemide analüüsile tuginedes:\nKOVide teenustega seotud kompetentsid on madalad\nAmetnike ega lõppkasutajate rahulolu teenustega reeglina ei mõõdeta\nKasutajakeskne mõtteviis puudub, kasutajakogemusega tegelevad vaid üksikud omavalitsused","KOV teenuste omanike arenguprogramm ja KOV digikompetentside kasvatamine ","2024 – koostöös MKMi oskuste tiimi ja KOV personalivõrgustikuga detailsema plaani koostamine KOV digikompetentside kasvatamisekes, koolitusprogrammi hanke läbiviimine. Koolituse korraldamine 2024.a sügisel esmalt pilootgrupiga. Hinnanguliselt koolitatavate arv kokku:  250. Tegevus jätkub 2025.a KOV-ide teenuste eest vastutajad ehk nn äripoole omanikud saavad aru teenuspõhisest juhtimisest ja selleks tehnoloogia kasutamisest, sh turvalisuse, kasutajakogemuse, andmekaitse, teenusedisaini jm põhimõtetest. Koolitustel on suur rõhk praktilistel harjutustel ja grupitööl. Loob eeldused teenuste juhtimise konsolideerimiseks KOV teenusvaldkondades.            Pidev tegevus - Digiriigi Akadeemia jt riigi kesksete koolituste teavitustegevus KOVide suunal.","ok ",4,33,"Vajadus puudub","SF 21-27 (taotletav raha)",{"v":100000,"d":"100,000"},{"$f":"SUM(X36:Z36)","v":0},{"$f":"SUM(AA36:AC36)","v":{"v":50000,"d":"50,000"}},{"$f":"SUM(AD36:AF36)","v":{"v":50000,"d":"50,000"}},{"$f":"SUM(AG36:AI36)","v":0},{"$f":"SUM(AJ36:AL36)","v":0},{"$f":"SUM(AM36:AO36)","v":0},{"$nulls":5},{"v":50000,"d":"50,000"},null,null,{"v":50000,"d":"50,000"},{"$nulls":9},"Arenguprogrammi maksumuseks on arvestatud 100 000 eurot. Hinnanguline programmi läbinute arv on 250, arvestatud on 400 EUR/inimese kohta. ELVLis on 2023. aastast tööl KOV personalivõrgustiku koordinaator, kes tegeleb personali arendamisega. Tegevuse elluviimine toimub koostöös personali nõunikuga. ","5. SF tegevus, mis ei vaja jätkusuutlikkuse kulusid (nt analüüs)"]
["ELVL",null,null,"ELVL","I: Digiriik","1.2.7. Avaliku sektori digimuutuste võimendamine","I: Infotehnoloogiliste lahenduste väljatöötamine ja arendamine",null,"KOVidel puudub võimalus viia õiguspäraselt ja turvaliselt virtuaalsetel koosolekutel hääletusi. Praegune VOLIS on legacy, mis tingib teenuse ebastabiilsuse kasutajakoormuse tõusu korral, kasutusel on vananenud tehnoloogia ja kasutajadisain. Kasutajate rahulolu on madal (5,63)","KOV rahvahääletuste ja koosolekute digilahendus ","2024 - 2022.a valminud VOLIS2 analüüsi ülevaatus ja KOVidega koostöös minimaalsete arendatavate funktsionaalsuste kokkuleppimine -> esmalt MVP arendus ehk minimaalne funktsionaalsus.       Hankedokumentatsiooni koostamine ja hanke läbiviimine arenduspartneri leidmiseks. Arenduse tulemusena valmib esimese etapina 2025. a KOV rahvahääletuste keskkonna (sh kaasavad eelarved) MVP:  kasutajate haldus; hääletussüsteem (sh isikukoodi põhised hääletused ja rahvahääletused); integratsioon rahvastikuregistriga (KOV ja asustusüksuse täpsus). Valminud infosüsteemi saavad KOVid kasutusele võtta teenuslepinguga kuutasu alusel. IS majutatakse pilvelahenduses.","ok ",5,"Eelanalüüs","Äri- ja arhitektuuri paneel läbitud ","SF 21-27 (taotletav raha)",{"v":334136,"d":"334,136"},{"$f":"SUM(X37:Z37)","v":0},{"$f":"SUM(AA37:AC37)","v":{"v":131286,"d":"131,286"}},{"$f":"SUM(AD37:AF37)","v":{"v":202850,"d":"202,850"}},{"$f":"SUM(AG37:AI37)","v":0},{"$f":"SUM(AJ37:AL37)","v":0},0,{"$nulls":3},{"v":100000,"d":"100,000"},{"$f":"29286+2000","v":{"v":31286,"d":"31,286"}},null,{"v":170000,"d":"170,000"},{"v":32850,"d":"32,850"},{"$nulls":10},"Kalkulatsioon: projektijuht-analüütik 0,6 FTE. Tarkvaraarenduseks on arvestatud 270 000.","4. SF tegevus, mis vajab jätkusuutlikkuse kulusid, aga neid pole välja arvutatud ja eraldi real välja toodud","Senise VOLIS haldustasu on KOVid ise tasunud teenusepakkujale. Eeldus on, et analoogne mudel toimiks ka uue lahenduse puhul."]
["ELVL",null,null,"ELVL","III: Küberturvalisus ","3.3. Suurem küberturvalisuse tagamise võimekus","II: küberruumi hoidmine, arendamine ja juurutamine usaldusväärse ja turvalisena",null,"Kohalike omavalitsuste infoturbe võimekus on endiselt madal. KOVid üha rohkem tunnistavad, et pole võimelised seda valdkonda katma. KOVid ei mõista infoturbe olemust ja vajalikkust, seda peetakse tehniliseks mitte organisatoorseks probleemiks. \nISKE dokumentatsioon on enamikul olemas, kuid seda ei järgita. KOVidel puudub keskselt kasutatav andmebaas, kuhu koguda parimaid praktikaid, juhendmaterjali jms","Küberturvalisuse tagamise tugi KOVidele","2024 – infoturbe spetsialisti värbamine (osalise tööajaga), taustainfo kogumine ja tööplaani koostamine, ELVLi kui organisatsiooni ja digipöörde tegevuste turbevajaduste kaardistamine; KOVide EITS kasutusprofiili koostamisest tulenevad jätkutegevused.             E-ITS mentorite võrgustiku käivitamine (tugi KOVilt KOVile E-ITS rakendamisel). Lähteülesande koostamine sobiva lahenduse leidmiseks standardlahenduste kogu platvormi loomiseks ja arenduse tellimine. \n2025 -  E-ITS rakendamise toe jätkamine (mentorlus, veebiseminarid koostöös RIAga).  Parimate praktikate, juhendite ja dokumentatsiooni jagamise keskkonna käivitamine (nn KOV ülene siseveeb). Eesmärk on tõsta teadlikkust ja parandada infoturbe juhtimist KOV-ides.  ","ok ",2,34,"Vajadus puudub","SF 21-27 (taotletav raha)",{"v":163952,"d":"163,952"},0,{"v":106976,"d":"106,976"},{"v":56976,"d":"56,976"},0,0,0,{"$nulls":4},{"v":56976,"d":"56,976"},{"v":50000,"d":"50,000"},null,{"v":56976,"d":"56,976"},{"$nulls":10},"Töötasu sisaldab infoturbespetsialist töötasu (0,6 FTE) ja E-ITS mentorite tasu. Personaliga seotud otsesed majanduskulud (arvutitöökoht, koolituskulud, sõidukulud) arvestatud ca 4000 eurot aastas.  Standardlahenduste kogu analüüs ja arenduskulu on arvestatud ca 50 000 eurot. ","4. SF tegevus, mis vajab jätkusuutlikkuse kulusid, aga neid pole välja arvutatud ja eraldi real välja toodud","Eeldame, et loodava IT lahenduse halduskulu maksavad KOVid ise kinni."]
["ELVL",null,null,"ELVL","I: Digiriik","1.2.2. Andmepõhine riigivalitsemine ja andmete taaskasutus","IV: muu digipöördega seotud otsene kulu",null,"KOVide poolt avaandmete avaldamine on vaevaline. Kuna paljud KOVide poolt kasutatavad infosüsteemid kuuluvad eraettevõtetele peab vajalike liidestuste loomiseks läbi rääkima teenusepakkujaga. RIHAs on mitmed KOVide poolt kasutatavad infosüsteemid registreerimata, vajaliku dokumentatsiooni koostamisega ei saada hakkama.","Avaandmete avaldamise, andmehalduse ja AI tugi KOVidele","2024 - värbamine; andmete valdkonna KOV hetkeolukorra kaardistus, sh infosüsteemide ja võimalike andmestike kaardistamine.             2024-2025: Osalemine MKMi-RIA andmete töögruppides, sh TSI projektis ning vajaduspõhiselt vahelüli rolli täitmine omavalitsustega kontakti saamisel. \nAvaandmete avaldamise toe pakkumine KOVidele: avaldatavate andmestike kokkuleppimine, abi andmete ettevalmistamisel ja avaldamisel, automatiseerimise lahenduste analüüs. Andmehalduse raamistiku \"tõlkimine\" ehk kohandamine KOVide jaoks, sh Rihakese kasutusvõimaluste analüüs. KOV teadlikkuse tõstmine andmete väärtusest ja võimalustest: parimate praktikate otsimine ja jagamine, praktiliste juhendite koostamine. ELVLi poolt Bürokrati piloteerimine KOV üldandmete osas.","ok ",6,35,"Vajadus puudub","SF 21-27 (taotletav raha)",{"v":116133,"d":"116,133"},0,{"$f":"SUM(AA39:AC39)","v":{"v":42133,"d":"42,133"}},{"v":74000,"d":"74,000"},0,0,0,{"$nulls":4},{"v":42133,"d":"42,133"},null,null,{"v":49000,"d":"49,000"},{"v":25000,"d":"25,000"},{"$nulls":9},"Andmete suuna projektijuhi töötasu (1 FTE).  Personaliga seotud otsesed majanduskulud (arvutitöökoht, koolituskulud, sõidukulud) arvestatud ca 4000 eurot aastas. 2025. a on arvestatud 25 000 eurot andmete valdkonnaga seotud juhendmaterjali kohendamiseks KOVidele.","5. SF tegevus, mis ei vaja jätkusuutlikkuse kulusid (nt analüüs)"]
["ELVL",null,null,"ELVL","I: Digiriik","1.2.6. Avatud innovatsioon ja digiriigi kogukonna arendamine","III: teadlikkuse tõstmine",null,"KOVide koostöö IT valdkonnas on mõnevõrra paranenud ELVL koordineerimisel. Digipöörde käigus saavad osad suunad kaetud, kuid vajalik on hoida ka laiemat vaadet KOV IT juhtimisele ja rollidele. ","KOV digivaldkonna kogukonna tugevdamine","KOV IT võrgustiku regulaarsed virtuaalsed  lühiseminarid. Sügisel kahepäevase seminari korraldamine. KOV IT juhtimise parimate praktikate jagamise töötoad-kogemuslood (nt IT teenuste korraldus KOVis, võimalused tugiteenuste konsolideerimiseks KOVis, teenustega seotud tarkvarade võrdlus, IT juhtimise mudelid jms). Lisaks eraldi töötoad digipöörde suundade osas (andmed, küber, teenused)                                                           Tulemus: KOVid on teadlikumad üksteise parimatest praktikatest, suurenenud on omavaheline koostöö. Suurenenud teadlikkus riigipoolsetest kesksetest lahendustest jne.","ok ",7,null,"Vajadus puudub","SF 21-27 (taotletav raha)",{"v":24000,"d":"24,000"},0,{"v":12000,"d":"12,000"},{"v":12000,"d":"12,000"},0,0,0,{"$nulls":5},{"v":12000,"d":"12,000"},null,null,{"v":12000,"d":"12,000"},{"$nulls":9},"KOV IT juhtimise parimate praktikate jagamise töötoad-kogemuslood (nt IT teenuste korraldus KOVis, võimalused tugiteenuste konsolideerimiseks KOVis, teenustega seotud tarkvarade võrdlus, IT juhtimise mudelid jms). Arvestatud üks füüsilise kohaletulekuga kahepäevane seminar aastas.","5. SF tegevus, mis ei vaja jätkusuutlikkuse kulusid (nt analüüs)"]
["ELVL",null,null,"ELVL","I: Digiriik","1.2.7. Avaliku sektori digimuutuste võimendamine","IV: muu digipöördega seotud otsene kulu",null,"ELVL IKT KK on tegutsenud  ca 5 aastat, kuid üksuse võimekus on endiselt piiratud. Seni on rohkem keskendutud KOVide kesksete platvormide jätkusuutlikkuse tagamisele ja üldisele koordineerimisele ning KOV teenuste vaade on jäänud tahaplaanile.","ELVL IKT Kompetentsikeskuse baasrahastus","Pidevad tegevused: KOV IT juhtide võrgustiku koordineerimine ja infovahetus, KOVide nõustamine; KOV kesksete lahenduste tootejuhtimine (Anna Teada, Omavalitsuste portaal, VOLIS); Valdkonna õigusaktide kooskõlastamine; digivaldkonna arengudokumentide-tegevuskavade koostamises osalemine ja KOV huvide esindamine.",null,8,null,"Vajadus puudub","Baaseelarve",{"v":274000,"d":"274,000"},{"v":150000,"d":"150,000"},{"v":62000,"d":"62,000"},{"v":62000,"d":"62,000"},0,0,0,null,{"v":140000,"d":"140,000"},{"v":10000,"d":"10,000"},null,{"v":52000,"d":"52,000"},{"v":10000,"d":"10,000"},null,{"v":52000,"d":"52,000"},{"v":10000,"d":"10,000"},{"$nulls":9},"ELVL KOV IKT valdkonna baasrahastus kohalikelt omavalitsustelt.                                      ","2. Tegevus on jätkusuutlikkuse kulu (baaseelarve, RES lisataotlus, muu allikas)","Tegemist on baasrahastusega KOVidelt üldiseks digipöörde elluviimiseks."]
["ELVL",null,null,"ELVL","III: Küberturvalisus ","3.3. Suurem küberturvalisuse tagamise võimekus","II: küberruumi hoidmine, arendamine ja juurutamine usaldusväärse ja turvalisena",null,"Kohalike omavalitsuste IKT taristu seis on aegunud. Serverite tarkvara ning riistvara on amortiseerunud. Võrgu ülesehitus on tehtud süsteemitult ning kohati on laiendamine  problemaatiline. Serverite hoiustamine ei vasta infoturbe nõuetele.","IKT taristu Riigipilve majutamine soodustingimustel KOVidele","Vahetame välja KOV on-premise legacy serverid tänapäevaste pilvelahenduste vastu\nRiigipilve on kolinud osaliselt või täielikult  60% KOV-idest ning loobunud enda lokaalsetest serveritest. Tagatud tõhusam riistavara kasutus ning serverite tänapäevasem haldus.                                                       ",null,10,36,"Vajadus puudub","RES IKT (vaja juurde taotleda)",{"v":545500,"d":"545,500"},0,0,{"v":545500,"d":"545,500"},0,0,0,{"$nulls":6},{"v":395500,"d":"395,500"},{"v":50000,"d":"50,000"},{"v":100000,"d":"100,000"},{"$nulls":9},"Riigipilves baasressursside majutuse kulu KOV-ile on ca 600 eur kuus. KOV võrguriistvara hankimine, paigaldamine ning seadistamine - 1 KOV-i hinnanguline võrguseadmete kulu 17 500 eurot. KOV serverite migreerimine Riigipilve keskkonda 100 000 EUR. 2-aastat on KOVile Riigipilves IKT taristu majutamine tasuta. Riigipilve tasu kompenseerimine KOVidele toimuks RES vahendite arvelt mitte RITi eelarvest (baastaristu majutus oleks RESi vahenditest ja ülejäänud ressursi eest tasub KOV)","2. Tegevus on jätkusuutlikkuse kulu (baaseelarve, RES lisataotlus, muu allikas)","RES lisataotlus. Investeeringutega seotud püsikulud tasuvad KOVid hiljem oma eelarvest.","Küberturvalisus","ühekordne kulu"]
["ELVL",null,null,"ELVL","I: Digiriik","1.2.7. Avaliku sektori digimuutuste võimendamine","IV: muu digipöördega seotud otsene kulu",null,"Omavalitsuste veebilehtede platvorm OVP valmib 2023.a lõpuks. Alates 2024. a saaksid seda kasutusele võtta teised KOVid, kuid esialgu võib klientide hulk olla ebapiisav halduskulu katmiseks. Kuna OVP baseerub Valitsusportaalil, on vajalik hoida KOVide osa ajakohasena kui VPs toimuvad uuendused.","Omavalitsuste portaali ja Anna Teada väikearendused","Omavalitsuste portaali ja Anna Teada väikearenduste ja tarkvara hoolduse kulud. Lisaks vahesumma, mis tekib KOVidelt saadava tulu ja  portaali haldamiseks vajalike tegelike kulude vahest, juhul kui piisav hulk KOVe uut platvormi kasutusele ei võta. ",null,9,"Taotlus ReMile","Vajadus puudub","RES IKT (vaja juurde taotleda)",{"v":100000,"d":"100,000"},0,{"v":60000,"d":"60,000"},{"v":40000,"d":"40,000"},0,0,0,{"$nulls":5},{"v":60000,"d":"60,000"},null,null,{"v":40000,"d":"40,000"},{"$nulls":9},"Summa sisaldab Omavalitsuste portaali ja Anna teada infosüsteemi väikearendusi. Vajalik on hoida mõlemad infosüsteemid ajakohased, et oleks tagatud tarkvara turvalisus ja funktsionaalsuste toimivus. ","2. Tegevus on jätkusuutlikkuse kulu (baaseelarve, RES lisataotlus, muu allikas)","Taotletakse Regionaal- ja Põllumajandusministeeriumilt","Baasi korrastamine","püsikulu"]
["ELVL",null,null,"ELVL","I: Digiriik","1.1.1. Üleminek sündmuspõhistele ja proaktiivsetele teenustele","I: Infotehnoloogiliste lahenduste väljatöötamine ja arendamine",null,"KOV on osa avalikust sektorist ning elanik ei tee tihti vahet riigi ja KOV teenustel. Hetkel ei ole KOV teenuseid liidestatud eesti.ee või riikliku mobiili-rakendusega. Elanik peab KOV teenuste kohta infot otsima KOV veebilehelt, KOV iseteenindusest vms allikast.","KOV teenuste keskse platvormi eelanalüüs","2024: eelanalüüsi hanke ettevalmistamine; 2025: KOV teenuste keskse platvormi eelanalüüsi läbiviimine ja jätkutegevuste kavandamine lähtuvalt analüüsist. Tegevuse elluviimisel koostöö RIA personaalse riigi osakonnaga. ","ok ",3,null,"Äripaneel","SF 21-27 (taotletav raha)",{"v":108500,"d":"108,500"},0,0,{"v":108500,"d":"108,500"},0,0,0,{"$nulls":7},{"v":28500,"d":"28,500"},{"v":80000,"d":"80,000"},{"$nulls":9},"Eelanalüüsi maksumuseks on arvestatud ca 80 000 eurot lähtuvalt varasemast kogemusest analüüside tellimisel. Lähteülesande koostamise käigus summa täpsustub (sõltub analüüsi skoobist). Lisaks on arvestatud 2025. a personalikulu 0,5 FTE ulatuses projekti juhtimiseks. ","5. SF tegevus, mis ei vaja jätkusuutlikkuse kulusid (nt analüüs)"]
["ELVL",null,null,"ELVL","I: Digiriik","1.1.1. Üleminek sündmuspõhistele ja proaktiivsetele teenustele","I: Infotehnoloogiliste lahenduste väljatöötamine ja arendamine",null,"2023.a on teostatud I etapp ehk infoteenus eesti.ee. Hetkel ei ole võimalik eesti.ee kaudu KOV teenuseid taotleda.","Lähedase surma sündmusteenuse juhtimine","2024: Pilootprojekt kolme KOV-iga matusetoetuse taotluse info kuvamiseks eesti.ee-s, andmevahetuse analüüs ja prototüüp.\nPärismispildi analüüsi ettevalmistus",null,null,"Koostööleping MKMiga",null,"RRF",{"v":42957,"d":"42,957"},{"v":14933,"d":"14,933"},{"v":28024,"d":"28,024"},0,0,0,0,null,{"v":12647,"d":"12,647"},{"v":2286,"d":"2,286"},null,{"v":19524,"d":"19,524"},{"v":8500,"d":"8,500"},{"$nulls":12},"Tööjõukulud ja töökohaga seotud majanduskulud\nTõlke- ja toimetamiskulud\nKommunikatsioonitegevused\nKonsultatsioonikulud","1. Baaseelarve tegevus, mis sisaldab jätkusuutlikkuse kulusid ja need on samal real välja toodud","RRFist rahastatud tegevus ELVL ja MKMi vahelise koostöölepingu alusel"]
[{"$nulls":16},0,0,0,0,0,0,0]
[{"$nulls":16},0,0,0,0,0,0,0]
[{"$nulls":16},0,0,0,0,0,0,0]
[{"$nulls":16},0,0,0,0,0,0,0]
[{"$nulls":16},0,0,0,0,0,0,0]
[{"$nulls":16},0,0,0,0,0,0,0]
[{"$nulls":16},0,0,0,0,0,0,0]
[{"$nulls":16},0,0,0,0,0,0,0]
[{"$nulls":16},0,0,0,0,0,0,0]
[{"$nulls":16},0,0,0,0,0,0,0]
[{"$nulls":16},0,0,0,0,0,0,0]
[{"$nulls":16},0,0,0,0,0,0,0]
[{"$nulls":16},0,0,0,0,0,0,0]
[{"$nulls":16},0,0,0,0,0,0,0]
[{"$nulls":16},0,0,0,0,0,0,0]
[{"$nulls":16},0,0,0,0,0,0,0]
[{"$nulls":16},0,0,0,0,0,0,0]
[{"$nulls":16},0,0,0,0,0,0,0]
[{"$nulls":16},0,0,0,0,0,0,0]
[{"$nulls":16},0,0,0,0,0,0,0]
[{"$nulls":16},0,0,0,0,0,0,0]
[{"$nulls":16},0,0,0,0,0,0,0]
[{"$nulls":16},0,0,0,0,0,0,0]
[{"$nulls":16},0,0,0,0,0,0,0]
[{"$nulls":16},0,0,0,0,0,0,0]
[{"$nulls":16},0,0,0,0,0,0,0]
[{"$nulls":16},0,0,0,0,0,0,0]
[{"$nulls":16},0,0,0,0,0,0,0]
[{"$nulls":16},0,0,0,0,0,0,0]
[{"$nulls":16},0,0,0,0,0,0,0]
[{"$nulls":16},0,0,0,0,0,0,0]
[{"$nulls":16},0,0,0,0,0,0,0]
[{"$nulls":16},0,0,0,0,0,0,0]
[{"$nulls":16},0,0,0,0,0,0,0]
[{"$nulls":16},0,0,0,0,0,0,0]
[{"$nulls":16},0,0,0,0,0,0,0]
[{"$nulls":16},0,0,0,0,0,0,0]
[{"$nulls":16},0,0,0,0,0,0,0]
[{"$nulls":16},0,0,0,0,0,0,0]
[{"$nulls":16},0,0,0,0,0,0,0]
[{"$nulls":16},0,0,0,0,0,0,0]
[{"$nulls":16},0,0,0,0,0,0,0]
[{"$nulls":16},0,0,0,0,0,0,0]
[{"$nulls":16},0,0,0,0,0,0,0]
[{"$nulls":16},0,0,0,0,0,0,0]
[{"$nulls":16},0,0,0,0,0,0,0]
[{"$nulls":16},0,0,0,0,0,0,0]
[{"$nulls":16},0,0,0,0,0,0,0]
[{"$nulls":16},{"v":1981987,"d":"1,981,987"},{"v":164933,"d":"164,933"},{"v":550028,"d":"550,028"},{"v":1267026,"d":"1,267,026"},0,0,0,{"$f":"SUM(X35:X93)","v":0},{"$f":"SUM(Y35:Y93)","v":{"v":152647,"d":"152,647"}},{"v":12286,"d":"12,286"},{"v":100000,"d":"100,000"},{"v":229528,"d":"229,528"},{"v":220500,"d":"220,500"},{"v":565500,"d":"565,500"},{"v":324526,"d":"324,526"},{"v":377000,"d":"377,000"}]
[{"$nulls":23},{"$f":"SUM(X97+X100+X103+X106+X112+X115+X118+X121+X127+X130+X133+X136)","v":0},{"v":152647,"d":"152,647"},{"v":12286,"d":"12,286"},{"v":100000,"d":"100,000"},{"v":229528,"d":"229,528"},{"v":220500,"d":"220,500"},{"v":565500,"d":"565,500"},{"v":324526,"d":"324,526"},{"v":377000,"d":"377,000"}]
[{"$nulls":20},"SF 21-27 (taotletav raha)"]
[{"$nulls":4},"I: Digiriik","1.1.1. Üleminek sündmuspõhistele ja proaktiivsetele teenustele","I: Infotehnoloogiliste lahenduste väljatöötamine ja arendamine",{"$nulls":8},"Baaseelarve",{"$nulls":4},"1. Infotehnoloogiliste lahenduste väljatöötamine ja arendamine",null,null,{"$f":"SUMIFS($X$35:$X$93,$G$35:$G$93,$G$97,$P$35:$P$93,\"SF 21-27 (taotletav raha)\")","v":0},{"$f":"SUMIFS($Y$35:$Y$93,$G$35:$G$93,$G$97,$P$35:$P$93,\"SF 21-27 (taotletav raha)\")","v":0},{"$f":"SUMIFS($Z$35:$Z$93,$G$35:$G$93,$G$97,$P$35:$P$93,\"SF 21-27 (taotletav raha)\")","v":0},{"$f":"SUMIFS($AA$35:$AA$93,$G$35:$G$93,$G$97,$P$35:$P$93,\"SF 21-27 (taotletav raha)\")","v":{"v":100000,"d":"100,000"}},{"$f":"SUMIFS($AB$35:$AB$93,$G$35:$G$93,$G$97,$P$35:$P$93,\"SF 21-27 (taotletav raha)\")","v":31286},{"$f":"SUMIFS($AC$35:$AC$93,$G$35:$G$93,$G$97,$P$35:$P$93,\"SF 21-27 (taotletav raha)\")","v":0},{"$f":"SUMIFS($AD$35:$AD$93,$G$35:$G$93,$G$97,$P$35:$P$93,\"SF 21-27 (taotletav raha)\")","v":170000},{"$f":"SUMIFS($AE$35:$AE$93,$G$35:$G$93,$G$97,$P$35:$P$93,\"SF 21-27 (taotletav raha)\")","v":61350},{"$f":"SUMIFS($AF$35:$AF$93,$G$35:$G$93,$G$97,$P$35:$P$93,\"SF 21-27 (taotletav raha)\")","v":80000},{"$nulls":10},"1. Baaseelarve tegevus, mis sisaldab jätkusuutlikkuse kulusid ja need on samal real välja toodud"]
[{"$nulls":4},"II: Ühenduvus","1.1.2. Krativäeline riik","II: küberruumi hoidmine, arendamine ja juurutamine usaldusväärse ja turvalisena",{"$nulls":8},"Muu rahastus",{"$nulls":4},"+km",null,null,{"$f":"X97*1.2","v":0},{"$f":"Y97","v":0},{"$f":"Z97*1.2","v":0},{"$f":"AA97*1.22","v":{"v":122000,"d":"122,000"}},{"$f":"AB97","v":{"v":31286,"d":"31,286"}},{"$f":"AC97*1.22","v":0},{"$f":"AD97*1.22","v":{"v":207400,"d":"207,400"}},{"$f":"AE97","v":{"v":61350,"d":"61,350"}},{"$f":"AF97*1.22","v":{"v":97600,"d":"97,600"}},{"$nulls":10},"2. Tegevus on jätkusuutlikkuse kulu (baaseelarve, RES lisataotlus, muu allikas)"]
[{"$nulls":4},"III: Küberturvalisus ","1.1.3. Inimkeskne Digiriik","III: teadlikkuse tõstmine",{"$nulls":8},"RES IKT (vaja juurde taotleda)",{"$nulls":26},"3. SF tegevus, mis vajab jätkusuutlikkuse kulusid ja need on eraldi real välja toodud"]
[{"$nulls":5},"1.1.4. Roheline digiriik","IV: muu digipöördega seotud otsene kulu",{"$nulls":8},"Reserv (SR)",{"$nulls":4},"2. küberruumi hoidmine, arendamine ja juurutamine usaldusväärse ja turvalisena",null,null,{"$f":"SUMIFS(X35:X93,G35:G93,$G$98,P35:P93,\"SF 21-27 (taotletav raha)\")","v":0},{"$f":"SUMIFS(Y35:Y93,G35:G93,$G$98,P35:P93,\"SF 21-27 (taotletav raha)\")","v":0},{"$f":"SUMIFS(Z35:Z93,G35:G93,$G$98,P35:P93,\"SF 21-27 (taotletav raha)\")","v":0},{"$f":"SUMIFS(AA35:AA93,G35:G93,$G$98,P35:P93,\"SF 21-27 (taotletav raha)\")","v":0},{"$f":"SUMIFS(AB35:AB93,G35:G93,$G$98,P35:P93,\"SF 21-27 (taotletav raha)\")","v":56976},{"$f":"SUMIFS(AC35:AC93,G35:G93,$G$98,P35:P93,\"SF 21-27 (taotletav raha)\")","v":50000},{"$f":"SUMIFS(AD35:AD93,G35:G93,$G$98,P35:P93,\"SF 21-27 (taotletav raha)\")","v":0},{"$f":"SUMIFS(AE35:AE93,G35:G93,$G$98,P35:P93,\"SF 21-27 (taotletav raha)\")","v":56976},{"$f":"SUMIFS(AF35:AF93,G35:G93,$G$98,P35:P93,\"SF 21-27 (taotletav raha)\")","v":0},{"$nulls":10},"4. SF tegevus, mis vajab jätkusuutlikkuse kulusid, aga neid pole välja arvutatud ja eraldi real välja toodud"]
[{"$nulls":5},"1.2.1. Avalike teenuste juhtimise ja kasutajakesksuse juurutamine",{"$nulls":9},"RRF",{"$nulls":4},"+km",null,null,{"$f":"X100*1.2","v":0},{"$f":"Y100","v":0},{"$f":"Z100*1.2","v":0},{"$f":"AA100*1.22","v":0},{"$f":"AB100","v":{"v":56976,"d":"56,976"}},{"$f":"AC100*1.22","v":{"v":61000,"d":"61,000"}},{"$f":"AD100*1.22","v":0},{"$f":"AE100","v":{"v":56976,"d":"56,976"}},{"$f":"AF100*1.22","v":0},{"$nulls":10},"5. SF tegevus, mis ei vaja jätkusuutlikkuse kulusid (nt analüüs)"]
[{"$nulls":5},"1.2.2. Andmepõhine riigivalitsemine ja andmete taaskasutus",{"$nulls":9},"SF 14-20 (töös olev projekt)"]
[{"$nulls":5},"1.2.3. Tulevikukindlad digiriigi platvormid",{"$nulls":9},"SF 21-27 (taotletav raha)",{"$nulls":4},"3. teadlikkuse tõstmine",null,null,{"$f":"SUMIFS(X35:X93,G35:G93,$G$99,P35:P93,\"SF 21-27 (taotletav raha)\")","v":0},{"$f":"SUMIFS(Y35:Y93,G35:G93,$G$99,P35:P93,\"SF 21-27 (taotletav raha)\")","v":0},{"$f":"SUMIFS(Z35:Z93,G35:G93,$G$99,P35:P93,\"SF 21-27 (taotletav raha)\")","v":0},{"$f":"SUMIFS(AA35:AA93,G35:G93,$G$99,P35:P93,\"SF 21-27 (taotletav raha)\")","v":0},{"$f":"SUMIFS(AB35:AB93,G35:G93,$G$99,P35:P93,\"SF 21-27 (taotletav raha)\")","v":0},{"$f":"SUMIFS(AC35:AC93,G35:G93,$G$99,P35:P93,\"SF 21-27 (taotletav raha)\")","v":62000},{"$f":"SUMIFS(AD35:AD93,G35:G93,$G$99,P35:P93,\"SF 21-27 (taotletav raha)\")","v":0},{"$f":"SUMIFS(AE35:AE93,G35:G93,$G$99,P35:P93,\"SF 21-27 (taotletav raha)\")","v":0},{"$f":"SUMIFS(AF35:AF93,G35:G93,$G$99,P35:P93,\"SF 21-27 (taotletav raha)\")","v":62000}]
[{"$nulls":5},"1.2.4. Keskselt osutatud IT-alusteenused",{"$nulls":14},"+km",null,null,{"$f":"X103*1.2","v":0},{"$f":"Y103","v":0},{"$f":"Z103*1.2","v":0},{"$f":"AA103*1.22","v":0},{"$f":"AB103","v":0},{"$f":"AC103*1.22","v":{"v":75640,"d":"75,640"}},{"$f":"AD103*1.22","v":0},{"$f":"AE103","v":0},{"$f":"AF103*1.22","v":{"v":75640,"d":"75,640"}}]
[{"$nulls":5},"1.2.5. Uute lähenemisviiside pidev katsetamine"]
[{"$nulls":5},"1.2.6. Avatud innovatsioon ja digiriigi kogukonna arendamine",{"$nulls":14},"4. muu digipöördega seotud otsene kulu",null,null,{"$f":"SUMIFS(X35:X93,G35:G93,$G$100,P35:P93,\"SF 21-27 (taotletav raha)\")","v":0},{"$f":"SUMIFS(Y35:Y93,G35:G93,$G$100,P35:P93,\"SF 21-27 (taotletav raha)\")","v":0},{"$f":"SUMIFS(Z35:Z93,G35:G93,$G$100,P35:P93,\"SF 21-27 (taotletav raha)\")","v":0},{"$f":"SUMIFS(AA35:AA93,G35:G93,$G$100,P35:P93,\"SF 21-27 (taotletav raha)\")","v":0},{"$f":"SUMIFS(AB35:AB93,G35:G93,$G$100,P35:P93,\"SF 21-27 (taotletav raha)\")","v":69742},{"$f":"SUMIFS(AC35:AC93,G35:G93,$G$100,P35:P93,\"SF 21-27 (taotletav raha)\")","v":30000},{"$f":"SUMIFS(AD35:AD93,G35:G93,$G$100,P35:P93,\"SF 21-27 (taotletav raha)\")","v":0},{"$f":"SUMIFS(AE35:AE93,G35:G93,$G$100,P35:P93,\"SF 21-27 (taotletav raha)\")","v":104200},{"$f":"SUMIFS(AF35:AF93,G35:G93,$G$100,P35:P93,\"SF 21-27 (taotletav raha)\")","v":85000}]
[{"$nulls":5},"1.2.7. Avaliku sektori digimuutuste võimendamine",{"$nulls":14},"+km",null,null,{"$f":"X106*1.2","v":0},{"$f":"Y106","v":0},{"$f":"Z106*1.2","v":0},{"$f":"AA106*1.22","v":0},{"$f":"AB106","v":{"v":69742,"d":"69,742"}},{"$f":"AC106*1.22","v":{"v":36600,"d":"36,600"}},{"$f":"AD106*1.22","v":0},{"$f":"AE106","v":{"v":104200,"d":"104,200"}},{"$f":"AF106*1.22","v":{"v":103700,"d":"103,700"}}]
[{"$nulls":5},"1.2.8. Sihitud väliskoostöö"]
[{"$nulls":5},"2.1. Ajakohane ja ettevaatav õigusruum"]
[{"$nulls":5},"2.2. Juurdepääsuvõrkude väljaarendamine"]
[{"$nulls":5},"2.3. 5G- ja 6G-baastaristu arendamine",{"$nulls":14},"Olemasolevad vahendid"]
[{"$nulls":5},"2.4. Uudsete sisu- ja äriteenuste arendus",{"$nulls":14},"1. Infotehnoloogiliste lahenduste väljatöötamine ja arendamine",null,null,{"$f":"SUMIFS(X$35:X$93, $G$35:$G$93, $G$97, $P$35:$P$93, \"Baaseelarve\")+SUMIFS(X$35:X$93, $G$35:$G$93, $G$97, $P$35:$P$93, \"Muu rahastus\")+SUMIFS(X$35:X$93, $G$35:$G$93, $G$97, $P$35:$P$93, \"Reserv (SR)\")+SUMIFS(X$35:X$93, $G$35:$G$93, $G$97, $P$35:$P$93, \"RRF\")+SUMIFS(X$35:X$93, $G$35:$G$93, $G$97, $P$35:$P$93, \"SF 14-20 (töös olev projekt)\")","v":0},{"v":12647,"d":"12,647"},{"v":2286,"d":"2,286"},0,{"v":19524,"d":"19,524"},{"v":8500,"d":"8,500"},0,0,0]
[{"$nulls":5},"3.1. Ajakohane küberturvalisuse riiklik korraldus",{"$nulls":14},"+km",null,null,{"$f":"X112*1.2","v":0},{"$f":"Y112","v":{"v":12647,"d":"12,647"}},{"$f":"Z112*1.2","v":{"v":2743.2,"d":"2,743"}},{"$f":"AA112*1.22","v":0},{"$f":"AB112","v":{"v":19524,"d":"19,524"}},{"$f":"AC112*1.22","v":{"v":10370,"d":"10,370"}},{"$f":"AD112*1.22","v":0},{"$f":"AE112","v":0},{"$f":"AF112*1.22","v":0}]
[{"$nulls":5},"3.2. Suundumiste, riskide ja mõjude analüüsivõime"]
[{"$nulls":5},"3.3. Suurem küberturvalisuse tagamise võimekus",{"$nulls":14},"2. küberruumi hoidmine, arendamine ja juurutamine usaldusväärse ja turvalisena",null,null,{"$f":"SUMIFS(X$35:X$93, $G$35:$G$93, $G$98, $P$35:$P$93, \"Baaseelarve\")+SUMIFS(X$35:X$93, $G$35:$G$93, $G$98, $P$35:$P$93, \"Muu rahastus\")+SUMIFS(X$35:X$93, $G$35:$G$93, $G$98, $P$35:$P$93, \"Reserv (SR)\")+SUMIFS(X$35:X$93, $G$35:$G$93, $G$98, $P$35:$P$93, \"RRF\")+SUMIFS(X$35:X$93, $G$35:$G$93, $G$98, $P$35:$P$93, \"SF 14-20 (töös olev projekt)\")","v":0},0,0,0,0,0,0,0,0]
[{"$nulls":20},"+km",null,null,{"$f":"X115*1.2","v":0},{"$f":"Y115","v":0},{"$f":"Z115*1.2","v":0},{"$f":"AA115*1.22","v":0},{"$f":"AB115","v":0},{"$f":"AC115*1.22","v":0},{"$f":"AD115*1.22","v":0},{"$f":"AE115","v":0},{"$f":"AF115*1.22","v":0}]
[]
[{"$nulls":20},"3. teadlikkuse tõstmine",null,null,{"$f":"SUMIFS(X$35:X$93, $G$35:$G$93, $G$99, $P$35:$P$93, \"Baaseelarve\")+SUMIFS(X$35:X$93, $G$35:$G$93, $G$99, $P$35:$P$93, \"Muu rahastus\")+SUMIFS(X$35:X$93, $G$35:$G$93, $G$99, $P$35:$P$93, \"Reserv (SR)\")+SUMIFS(X$35:X$93, $G$35:$G$93, $G$99, $P$35:$P$93, \"RRF\")+SUMIFS(X$35:X$93, $G$35:$G$93, $G$99, $P$35:$P$93, \"SF 14-20 (töös olev projekt)\")","v":0},0,0,0,0,0,0,0,0]
[{"$nulls":20},"+km",null,null,{"$f":"X118*1.2","v":0},{"$f":"Y118","v":0},{"$f":"Z118*1.2","v":0},{"$f":"AA118*1.22","v":0},{"$f":"AB118","v":0},{"$f":"AC118*1.22","v":0},{"$f":"AD118*1.22","v":0},{"$f":"AE118","v":0},{"$f":"AF118*1.22","v":0}]
[]
[{"$nulls":20},"4. muu digipöördega seotud otsene kulu",null,null,{"$f":"SUMIFS(X$35:X$93, $G$35:$G$93, $G$100, $P$35:$P$93, \"Baaseelarve\")+SUMIFS(X$35:X$93, $G$35:$G$93, $G$100, $P$35:$P$93, \"Muu rahastus\")+SUMIFS(X$35:X$93, $G$35:$G$93, $G$100, $P$35:$P$93, \"Reserv (SR)\")+SUMIFS(X$35:X$93, $G$35:$G$93, $G$100, $P$35:$P$93, \"RRF\")+SUMIFS(X$35:X$93, $G$35:$G$93, $G$100, $P$35:$P$93, \"SF 14-20 (töös olev projekt)\")","v":0},{"v":140000,"d":"140,000"},{"v":10000,"d":"10,000"},0,{"v":52000,"d":"52,000"},{"v":10000,"d":"10,000"},0,{"v":52000,"d":"52,000"},{"v":10000,"d":"10,000"}]
[{"$nulls":20},"+km",null,null,{"$f":"X121*1.2","v":0},{"$f":"Y121","v":{"v":140000,"d":"140,000"}},{"$f":"Z121*1.2","v":{"v":12000,"d":"12,000"}},{"$f":"AA121*1.22","v":0},{"$f":"AB121","v":{"v":52000,"d":"52,000"}},{"$f":"AC121*1.22","v":{"v":12200,"d":"12,200"}},{"$f":"AD121*1.22","v":0},{"$f":"AE121","v":{"v":52000,"d":"52,000"}},{"$f":"AF121*1.22","v":{"v":12200,"d":"12,200"}}]
[]
[]
[]
[{"$nulls":20},"RES IKT (vaja juurde taotleda)"]
[{"$nulls":20},"1. Infotehnoloogiliste lahenduste väljatöötamine ja arendamine",null,null,{"$f":"SUMIFS(X$35:X$93,$G$35:$G$93,$G$97,$P$35:$P$93,$P$99)","v":0},0,0,0,0,0,0,0,0]
[{"$nulls":20},"+km",null,null,{"$f":"X127*1.2","v":0},{"$f":"Y127","v":0},{"$f":"Z127*1.2","v":0},{"$f":"AA127*1.22","v":0},{"$f":"AB127","v":0},{"$f":"AC127*1.22","v":0},{"$f":"AD127*1.22","v":0},{"$f":"AE127","v":0},{"$f":"AF127*1.22","v":0}]
[]
[{"$nulls":20},"2. küberruumi hoidmine, arendamine ja juurutamine usaldusväärse ja turvalisena",null,null,{"$f":"SUMIFS(X$35:X$93,$G$35:$G$93,$G$98,$P$35:$P$93,$P$99)","v":0},0,0,0,0,0,{"v":395500,"d":"395,500"},{"v":50000,"d":"50,000"},{"v":100000,"d":"100,000"}]
[{"$nulls":20},"+km",null,null,{"$f":"X130*1.2","v":0},{"$f":"Y130","v":0},{"$f":"Z130*1.2","v":0},{"$f":"AA130*1.22","v":0},{"$f":"AB130","v":0},{"$f":"AC130*1.22","v":0},{"$f":"AD130*1.22","v":{"v":482510,"d":"482,510"}},{"$f":"AE130","v":{"v":50000,"d":"50,000"}},{"$f":"AF130*1.22","v":{"v":122000,"d":"122,000"}}]
[]
[{"$nulls":20},"3. teadlikkuse tõstmine",null,null,{"$f":"SUMIFS(X$35:X$93,$G$35:$G$93,$G$99,$P$35:$P$93,$P$99)","v":0},0,0,0,0,0,0,0,0]
[{"$nulls":20},"+km",null,null,{"$f":"X133*1.2","v":0},{"$f":"Y133","v":0},{"$f":"Z133*1.2","v":0},{"$f":"AA133*1.22","v":0},{"$f":"AB133","v":0},{"$f":"AC133*1.22","v":0},{"$f":"AD133*1.22","v":0},{"$f":"AE133","v":0},{"$f":"AF133*1.22","v":0}]
[]
[{"$nulls":20},"4. muu digipöördega seotud otsene kulu",null,null,{"$f":"SUMIFS(X$35:X$93,$G$35:$G$93,$G$100,$P$35:$P$93,$P$99)","v":0},0,0,0,0,{"v":60000,"d":"60,000"},0,0,{"v":40000,"d":"40,000"}]
[{"$nulls":20},"+km",null,null,{"$f":"X136*1.2","v":0},{"$f":"Y136","v":0},{"$f":"Z136*1.2","v":0},{"$f":"AA136*1.22","v":0},{"$f":"AB136","v":0},{"$f":"AC136*1.22","v":{"v":73200,"d":"73,200"}},{"$f":"AD136*1.22","v":0},{"$f":"AE136","v":0},{"$f":"AF136*1.22","v":{"v":48800,"d":"48,800"}}]

{"sheet":"Seirearuanne","index":1,"n_rows":115,"n_cols":44,"rows_kept":115,"hidden":true,"merged":[[1,1,1,3],[16,1,16,8],[16,10,16,16],[18,10,18,16],[19,1,19,8],[19,10,19,16],[21,10,21,16],[22,1,22,8],[22,10,22,16],[24,10,24,16],[25,1,25,8],[25,10,25,16],[27,10,27,16],[31,21,31,35],[31,40,31,42],[32,21,32,23],[32,24,32,26],[32,27,32,29],[32,30,32,32],[32,33,32,35],[32,40,32,42],[33,16,33,20]]}
["Valdkonna digipööre"]
["Elluviija: ","Eesti Linnade ja Valdade Liit"]
["Eelarve:","Kokku",2023,2024]
["KOKKU:",{"$f":"SUM(C4:D4)","v":{"v":1547118,"d":"1,547,118"}},{"$f":"SUM(C5+C12)","v":{"v":190218,"d":"190,218"}},{"$f":"SUM(D5+D12)","v":{"v":1356900,"d":"1,356,900"}}]
["Digipöörde olemasolevad rahalised vahedid",{"$f":"SUM(C5:D5)","v":{"v":212000,"d":"212,000"}},{"$f":"SUM(C6:C11)","v":{"v":150000,"d":"150,000"}},{"$f":"SUM(D6:D11)","v":{"v":62000,"d":"62,000"}}]
["sh baaseelarve",{"$f":"SUM(C6:D6)","v":{"v":212000,"d":"212,000"}},{"$f":"SUMIFS(Q35:Q94,O35:O94,\"Baaseelarve\")","v":{"v":150000,"d":"150,000"}},{"$f":"SUMIFS(R35:R94,O35:O94,\"Baaseelarve\")","v":{"v":62000,"d":"62,000"}}]
["sh muu rahastus",0,{"$f":"SUMIFS(Q35:Q94,O35:O94,\"Muu rahastus\")","v":0},{"$f":"SUMIFS(R35:R94,O35:O94,\"Muu rahastus\")","v":0}]
["sh reserv (SR)",0,{"$f":"SUMIFS(Q35:Q94,O35:O94,\"Reserv (SR)\")","v":0},{"$f":"SUMIFS(R35:R94,O35:O94,\"Reserv (SR)\")","v":0}]
["sh RRF",0,{"$f":"SUMIFS(Q35:Q94,O35:O94,\"RRF\")","v":0},{"$f":"SUMIFS(R35:R94,O35:O94,\"RRF\")","v":0}]
["sh SF 14-20 (töös olev projekt)",0,{"$f":"SUMIFS(Q35:Q94,O35:O94,\"SF 14-20 (töös olev projekt)\")","v":0},{"$f":"SUMIFS(R35:R94,O35:O94,\"SF 14-20 (töös olev projekt)\")","v":0}]
["RRF",{"$f":"SUM(C11:D11)","v":0}]
["Digipöörde puuduolevad rahalised vahendid",{"v":1335118,"d":"1,335,118"},{"$f":"SUM(C13:C14)","v":{"v":40218,"d":"40,218"}},{"$f":"SUM(D13:D14)","v":{"v":1294900,"d":"1,294,900"}}]
["sh RES IKT (vaja juurde taotleda)",{"v":605500,"d":"605,500"},{"$f":"SUMIFS(Q35:Q95,O35:O95,\"RES IKT (vaja juurde taotleda)\")","v":0},{"$f":"SUMIFS(R35:R95,O35:O95,\"RES IKT (vaja juurde taotleda)\")","v":{"v":605500,"d":"605,500"}},"Puudu olev jätkusuutlikkuse RES rahastus"]
["sh SF 21-27 (taotletav raha)",{"v":729618,"d":"729,618"},{"$f":"SUMIFS(Q35:Q94,O35:O94,\"SF 21-27 (taotletav raha)\")","v":{"v":40218,"d":"40,218"}},{"$f":"SUMIFS(R35:R94,O35:O94,\"SF 21-27 (taotletav raha)\")","v":{"v":689400,"d":"689,400"}}]
[]
["NB! Mõõdikud tuleb täita ainult SF 2021-2027 rahastuse puhul."]
["Meetmete nimekirja tulemusnäitaja:","Uute ja uuendatud avalike digiteenuste, -toodete ja -protsesside kasutajad. Mõõtühik: lõppkasutajaid aastas.",{"$nulls":7},"Elluviija kommentaar","Käskkirjas välja toodud elluviijate peale kokku on mõõdiku 2029 sihttase 2 000 000. Välja tuua, milline on teie panus selle mõõdiku täitmisse."]
["Algtase","2023 algtase","2024 sihttase","2025 sihttase","2026 sihttase","2027 sihttase","2028 sihttase","2029 sihttase","2030 lõpptase"]
["Lõpptase",0,{"$nulls":6},{"v":250000,"d":"250,000"},null,"Sisestada tuleb täisarv."]
["Meetmete nimekirja väljundnäitaja:","Uued või uuendatud digiteenused, -tooted ja -protsessid. Mõõtühik: arv ",{"$nulls":8},"Käskkirjas välja toodud elluviijate peale kokku on mõõdiku 2029 sihttase 35. Välja tuua, milline on teie panus selle mõõdiku täitmisse.\nSiia tuleb kokku lugeda lõpule viidud uued või uuendatud digiteenused, - tooted ja -protsessid."]
["Algtase","2023 algtase","2024 sihttase","2025 sihttase","2026 sihttase","2027 sihttase","2028 sihttase","2029 sihttase","2030 lõpptase"]
["Lõpptase",0,{"$nulls":6},10,null,"Kasutuskordade kokku lugemise metoodika määrab elluviija ise arvestades oma valdkonda. Sisestada tuleb täisarv."]
["Meetmete nimekirja väljundnäitaja:","Avaliku sektori asutused, keda toetatakse digiteenuste, -toodete ja -protsesside väljatöötamiseks. Mõõtühik: Avaliku sektori asutused.",{"$nulls":8},"Käskkirjas välja toodud elluviijate peale kokku on mõõdiku 2029 sihttase 35. Välja tuua, milline on teie panus selle mõõdiku täitmisse.\nSiia tuleb kokku lugeda asutused, kes teie digipöörde raames SF toetust kasutavad (elluviija ja partnerid).\n"]
["Algtase","2023 algtase","2024 sihttase","2025 sihttase","2026 sihttase","2027 sihttase","2028 sihttase","2029 sihttase","2030 lõpptase"]
["Lõpptase",0,{"$nulls":6},1,null,"Tükkide kokku lugemise metoodika määrab elluviija ise arvestades oma valdkonda. Sisestada tuleb täisarv."]
["Projektispetsiifiline näitaja (Eesti digiühiskonna arengukava 2030 (DA 2030) mõõdik):","Avalike digiteenustega rahulolu. Mõõtühik: % ",{"$nulls":8},"Riigiüleselt avalike digiteenustega rahululu peab 2030. aastaks tõusma 90%-le. Välja tuua, milline on teie panus selle mõõdiku täitmisse."]
["Algtase","2023 algtase","2024 sihttase","2025 sihttase","2026 sihttase","2027 sihttase","2028 sihttase","2029 sihttase","2030 lõpptase"]
["Lõpptase 2030",0,{"$nulls":6},{"v":0.9,"d":"90%"},null,"Rahulolu kokku lugemise metoodika määrab elluviija ise arvestades oma valdkonda"]
[]
[]
[]
[{"$nulls":21},"NB! Kõik summad kajastada ilma käibemaksuta!",{"$nulls":18},"NB! Kõik summad kajastada ilma käibemaksuta!"]
["Elluviija/ministeerium","Struktuuriüksus","Partner/Asutus","Teenuse vastutaja","DÜAK plokk","Panustab arengukava suundadesse","Meetme toetatavad tegevused","TERE teenus","Probleem","Algatuse nimi","Tulemus","Valdkonna prioriteet","Slaid/allikas","Paneeli vajadus","Rahastuse allikas","Summa kokku",2023,2024,2025,2026,2027,"2023 eelarve",null,null,2024,null,null,2025,null,null,2026,null,null,2027,null,null,"Kalkulatsioon ja  allika põhjendus","Tegevuse jätkusuutlikkuse kulu","Kommentaar",null,"2023 eelarve täitmine",null,null,"2023 täitmise aruanne / sisu kirjeldus / põhjendused"]
[null,"Valdkond, osakond, kes elluviija juures teema eest vastutab.","Partner/asutus, kelle eelarvest algatusi teostatakse","Vastutav teenuseomanik/\nprojektijuht","(valida rippmenüüst)","(valida rippmenüüst)","(valida rippmenüüst, SF TAT käskkirja punkt 3.1. neli tegevust)","Kirjutada välja TERE teenuse nimetus","Täita kõikide ridade puhul","Täita kõikide ridade puhul\n(Kui tegmist jätkusuutlikkuse tagamise tegevusega, siis see nimes välja tuua.)","Täita kõikide ridade puhul.\nKui mitme aastane tegevus/projekt, siis kirjutada välja vähemalt 2023. aasta tulemus ja lõpptulemus.","Unikaalne prioriteet","Esitatud slaidi number, või viide allikale, kus on võimalik tutvuda vajadusel sisuga, sh täpsemate kalkulatsioonidega ","Anda hinnang, kas on vajadus äri-, andmete-, arhitektuuri-, või muu paneeli järele","(valida rippmenüüst)",{"$nulls":6},"Investeering\n(15)","Tööjõukulu\n(50)","Majandamiskulu\n(55) ","Investeering\n(15)","Tööjõukulu\n(50)","Majandamiskulu\n(55) ","Investeering\n(15)","Tööjõukulu\n(50)","Majandamiskulu\n(55) ","Investeering\n(15)","Tööjõukulu\n(50)","Majandamiskulu\n(55) ","Investeering\n(15)","Tööjõukulu\n(50)","Majandamiskulu\n(55) ","Välja peab olema toodud tegevuste maksumuste arvutused, koos tundide hinna, tundide arvu ja tunnihinna selgitustega. Arenduste puhul lisada tunnihinna põhjendus varasemate hangetega. Inimeste palkamisel peab lähtuma Fontese palgauuringust ja viitama vastavale tööperele.","(valida rippmenüüst)",null,null,"Investeering\n(15)","Tööjõukulu\n(50)","Majandamiskulu\n(55) ","Seireküsimused (SF tegevustele):\n1. Mis sai 2023. aastal tehtud?\n2. Mis jäi 2023. aastal tegemata? Miks jäi tegemata?\n3. Kas tegemata jäänud tegevus jäetaksegi tegemata, või lükkub edasi järgmisse perioodi?\n4. Mis oli paneeli (andme-, äri, arhitektuuri-) tagasiside ja kas paneeli nõuded on täidetud?\n5. Mis ettevalmistavaid tegevusi tehti 2023. aastal 2024, või hiljem algavate algatuste/tegevuste tarvis?\n6. Mida on jõutud teha 2024. aasta alguses?"]
["Eesti Linnade ja Valdade Liit (ELVL)",null,null,"ELVL","I: Digiriik","1.2.1. Avalike teenuste juhtimise ja kasutajakesksuse juurutamine","IV: muu digipöördega seotud otsene kulu",null,"KOV infosüsteemide analüüsi põhjal:\nKOVidel puudub enamasti ülevaade pakutavatest teenustest\nAmetnike ega lõppkasutajate rahulolu teenustega reeglina ei mõõdeta\nArendusvajadused on enamasti suunatud automatiseerimisele ja käsitöö vähendamisele ametniku poolt\nTeenuste üle kontroll puudub","KOV avalike teenuste kaardistamise mudel ja ühtne kasutajate rahulolu mõõtmise süsteem","2023 – projektijuhi värbamine, KOVide KOKSist tulenevate avalike teenuste esmane kaardistamine koostöös MKMi teenuste tiimiga KOV teenuste arendajatega võrgustiku baasil (7 KOVi). Taustainfo kogumine ja jätkutegevuste kavandamine KOV teenuste esmase kaardistusest tulenevalt.\n2024 – jätkutegevused lähtuvalt KOV teenuste esmasest kaardistusest. Võimalikud tegevused: teenuste kaardistuse laiendamine kõikidele omavalitsustele; KOV teenuste detailsema kaardistamise ühtse mudeli väljatöötamine ja valideerimine KOVidega; ühtse kasutajate rahulolu mõõtmise süsteemi kokkuleppimine, kavandatud jätkutegevused (teenuste kaardistamine ja rahulolu süsteemi juurutamine). KOVidel tekib ülevaade oma teenustest ja protsessidest ehk nn äripoole vajadustest.   ",1,29,"Äripaneel","SF 21-27 (taotletav raha)",{"$f":"SUM(Q35:U35)","v":{"v":135210,"d":"135,210"}},{"$f":"SUM(V35:X35)","v":{"v":13042,"d":"13,042"}},{"$f":"SUM(Y35:AA35)","v":{"v":122168,"d":"122,168"}},{"$f":"SUM(AB35:AD35)","v":0},{"$f":"SUM(AE35:AG35)","v":0},{"$f":"SUM(AH35:AJ35)","v":0},null,{"$f":"12042+1000","v":{"v":13042,"d":"13,042"}},null,null,{"$f":"48168+4000","v":{"v":52168,"d":"52,168"}},{"v":70000,"d":"70,000"},{"$nulls":9},"Projektijuhi töötasu 1.10.2023-31.12.2024, brutopalk ca 3000 EUR/kuus. Teenuste kaardistamise ja ühtse kasutajate rahulolu mõõtmise mudeli väljatöötamine - ca 70 000 eurot. Personaliga seotud otsesed majanduskulud (arvutitöökoht, koolituskulud, sõidukulud) arvestatud ca 4000 eurot aastas. ",{"$nulls":3},0,0,0,"Alustasime ettevalmistavate tegevustega 2023.a sügisel, kuid sisuline algus oli 2024.a \nalgusest. Digipöörde tegevuste algus venis kuna detailse tegevuskava kinnitamine toimus kavandatust hiljem ning 2023.a lõpus toimusid ELVLi volikogu otsusel muudatused ELVLi büroo struktuuris, mis hõlmasid ka IKT valdkonda. Ametikohtade ümberkorraldamise tulemusena täidab alates 01.01.2024 IKT nõunik 0,5 töökoha ulatuses teenuste projektijuhi ülesandeid. 2023.a sügisel alustati ettevalmistavaid tegevusi KOV teenuste kaardistamiseks koostöös Tartu linna ja MKMi teenuste nõunikuga. 2024.a jaanuaris tutvustati Tartu linna baasil koostatud baastabelit KOV teenuste arendajate pilootrühmale (7 KOVi) ning toimus 2 veebikohtumist tabeli sisu täpsustamiseks ja ühise seisukoha kujundamiseks. ELVLi teenuste projektijuht korraldas nelja omavalitsusega lisaks eraldi kohtumised, et täpsustada metoodikat, ootusi ja kaardistuse protsessi. Praeguseks on oma teenuste kaardistuse esitanud Rae vald ning maikuuks lisandub 3 KOVi kaardistus. Lisaks viis ELVLi teenuste projektijuht KOV pilootrühmaga läbi teenusedisaini kaardimängu, mille raames otsiti lahendusi KOV teenuste kasutajate tagasiside metoodika osas. Tegevused jätkuvad plaanipäraselt."]
["ELVL",null,null,"ELVL","I: Digiriik","1.2.7. Avaliku sektori digimuutuste võimendamine","III: teadlikkuse tõstmine",null,"KOV infosüsteemide analüüsile tuginedes:\nKOVide teenustega seotud kompetentsid on madalad\nAmetnike ega lõppkasutajate rahulolu teenustega reeglina ei mõõdeta\nKasutajakeskne mõtteviis puudub, kasutajakogemusega tegelevad vaid üksikud omavalitsused","KOV teenuste omanike arenguprogramm ja KOV digikompetentside kasvatamine ","2023 – koostöös MKMi oskuste tiimi ja KOV personalivõrgustikuga detailsema plaani koostamine KOV digikompetentside kasvatamisekes ning koolitusprogrammi ettevalmistus  Tulemus: valmis 2024. a tegevusplaan ja koolitusprogammi lähteülesanne.                                                                     2024 – koolitusprogrammi hanke läbiviimine ja koolitused. Hinnanguliselt koolitatavate arv:  250. Tegevus jätkub 2025.a KOV-ide teenuste eest vastutajad ehk nn äripoole omanikud saavad aru teenuspõhisest juhtimisest ja selleks tehnoloogia kasutamisest, sh turvalisuse, kasutajakogemuse, andmekaitse, teenusedisaini jm põhimõtetest. \nKoolitustel on suur rõhk praktilistel harjutustel ja grupitööl. Loob eeldused teenuste juhtimise konsolideerimiseks KOV teenusvaldkondades.            Pidev tegevus - Digiriigi Akadeemia jt riigi kesksete koolituste teavitustegevus KOVide suunal.",4,30,null,"SF 21-27 (taotletav raha)",{"v":100000,"d":"100,000"},0,{"v":100000,"d":"100,000"},0,0,0,{"$nulls":5},{"v":100000,"d":"100,000"},{"$nulls":9},"Arenguprogrammi maksumuseks on arvestatud 100 000 eurot. Hinnanguline programmi läbinute arv on 250, arvestatud on 400 EUR/inimese kohta. ELVLis on 2023. aastast tööl KOV personalivõrgustiku koordinaator, kes tegeleb personali arendamisega. Arenguprogrammi oleks võimalik ühitada riigi teenistujatele suunatud koolitus-programmidega, kuid sisu peab katma ka KOV spetsiifikat.  ",{"$nulls":3},0,0,0,"Alustasime ettevalmistavate tegevustega 2023.a sügisel koostöös ELVLi personalinõunikuga. 2023.a lõpus viidi läbi veebiküsitlus KOV personalivõrgustiku seas, et saada ülevaade KOVide koolitustegevusest digivaldkonna teemadel. Lisaks küsiti personalitöötajatelt, mida üldse mõistetakse digikompetentside all. Küsitlusele vastajate hulk oli tagasihoidlik, kuid siiski saadi kinnitust, et digikompetentsid hõlmavad KOVide vaatest eelkõige tarkvara/riistvara kasutamisega seotud oskusi. ELVL korraldas veebruarikuus Pärnus KOV personalivõrgustikule kahepäevase seminari, kus fookuses olid digiteemad. Seminaril tutvustati muuhulgas Digiriigi Akadeemia koolitusi ning digikompetentside arutelupaneelis osalesid Digiriigi akadeemia projektijuht, ELVLi IKT nõunik ja Praxise analüütik. KOV teenuste omanike arenguprogrammi hankedokumentsioon ja tehniline kirjeldus on ettevalmistamisel. Plaanis on hange välja kuulutada maikuus. "]
["ELVL",null,null,"ELVL","I: Digiriik","1.2.7. Avaliku sektori digimuutuste võimendamine","I: Infotehnoloogiliste lahenduste väljatöötamine ja arendamine",null,"KOVidel puudub võimalus viia õiguspäraselt ja turvaliselt virtuaalsetel koosolekutel hääletusi. Praegune VOLIS on legacy, mis tingib teenuse ebastabiilsuse kasutajakoormuse tõusu korral, kasutusel on vananenud tehnoloogia ja kasutajadisain. Kasutajate rahulolu on madal (5,63)","KOV rahvahääletuste ja koosolekute digilahendus ","2023 - 2022.a valminud VOLIS2 analüüsi ülevaatus ja KOVidega koostöös minimaalsete arendatavate funktsionaalsuste kokkuleppimine -> esmalt MVP arendus ehk minimaalne funktsionaalsus. Hanke tehnilise kirjelduse ettevalmistamine.                             2024 - hankedokumentatsiooni koostamine ja hanke läbiviimine arenduspartneri leidmiseks. Arenduse tulemusena valmib esimese etapina 2025. a KOV rahvahääletuste keskkonna (sh kaasavad eelarved) MVP:  kasutajate haldus; hääletussüsteem (sh isikukoodi põhised hääletused ja rahvahääletused); integratsioon rahvastikuregistriga (KOV ja asustusüksuse täpsus). Valminud infosüsteemi saavad KOVid kasutusele võtta teenuslepinguga kuutasu alusel. IS majutatakse pilvelahenduses.",3,31,"Äri- ja arhitektuuri paneel läbitud ","SF 21-27 (taotletav raha)",{"v":304620,"d":"304,620"},{"v":6930,"d":"6,930"},{"v":297690,"d":"297,690"},0,0,0,null,{"v":6930,"d":"6,930"},null,{"v":270000,"d":"270,000"},{"$f":"25690+2000","v":{"v":27690,"d":"27,690"}},{"$nulls":10},"VOLIS2 analüüs on läbi viidud 2021-2022, plaanis on minna edasi nn light versiooniga ehk arendada MVP ehk KOV istungite ja koosolekute läbiviimise lahendus. Kalkulatsioon: projektijuht-analüütik 0,5 FTE, 1.09.2023 - 31.03.2025, brutopalk 3200 EUR/kuus. Tarkvaraarendus - 270 000.",{"$nulls":3},0,0,0,"Aastal 2023 tegevusi ei toimunud, sest alustasime tegevustega 2024. \n2024.a esimestel kuudel uuendati 2022 a valminud VOLIS2 analüüs, mis töötati ümber ning kohendati. Uuendatud analüüsi alusel on võimalik tellida arendustööd, mis kataks ära tänase VOLIS rahvahääletuste läbiviimise funktsionaalsuse.\n(VOLISel on kaks moodulit: \n- volikogu istungi läbiviimise moodul - sellele on täna turul alternatiiv tekkinud, mida üks KOV on kasutamas; \n- rahvahääletuse moodul (kasutatakse näiteks kaasava eelarve läbiviimiseks), seda funktsionaalsust täna turul olevad tooted ei paku. Valminud uuendatud analüüsi on arutatud ka RIA valimisteenistusega, et leida võimalikke koostöövõimalusi. RIA poolt hallatav VIS praegusel kujul ei sobi KOV rahvahääletusteks (kõrgemad turvanõuded ja erinev protsess), kuid lepiti kokku, et ELVLi tellitav infosüsteem arendatakse modulaarselt, et tulevikus oleks võimalik hääletuse moodul välja vahetada (juhul kui RIA poolt vastav lahendus tekib).\nTegevused algasid hiljem, kuid jätkuvad plaanipäraselt, hetkel on ettevalmistamisel hanke dokumentatsioon. Alates 01.01.2024 täidab ELVL IT projektijuht 0,6 töökoha ulatuses uue infosüsteemi projektijuhi ülesandeid. "]
["ELVL",null,null,"ELVL","III: Küberturvalisus ","3.3. Suurem küberturvalisuse tagamise võimekus","II: küberruumi hoidmine, arendamine ja juurutamine usaldusväärse ja turvalisena",null,"Kohalike omavalitsuste infoturbe võimekus on endiselt madal. KOVid üha rohkem tunnistavad, et pole võimelised seda valdkonda katma. KOVid ei mõista infoturbe olemust ja vajalikkust, seda peetakse tehniliseks mitte organisatoorseks probleemiks. \nISKE dokumentatsioon on enamikul olemas, kuid seda ei järgita. KOVidel puudub keskselt kasutatav andmebaas, kuhu koguda parimaid praktikaid, juhendmaterjali jms","Küberturvalisuse tagamise tugi KOVidele","2023 – infoturbe spetsialisti värbamine (osalise tööajaga),  taustainfo kogumine ja tööplaani koostamine, ELVLi kui organisatsiooni ja digipöörde tegevuste turbevajaduste kaardistamine; KOVide EITS kasutusprofiili koostamisest tulenevad jätkutegevused. \n2024 –  E-ITS mentorite võrgustiku käivitamine (tugi KOVilt KOVile E-ITS rakendamisel). Analüüsi koostamine sobiva lahenduse leidmiseks standardlahenduste kogu platvormi loomisel; E-ITS rakendamise toe pakkumine KOVide EITS kasutusprofiilist lähtuvalt. EITS rakendamise tööriistade analüüs ja KOV vajadustest lähtuvate funktsionaalsuste kirjeldamine. Turvaline keskkond parimate praktikate ja dokumentatsiooni jagamiseks, mida kasutades on võimalik parandada infoturbe juhtimist KOV-ides.  ",2,32,"Ilmselt äripaneel","SF 21-27 (taotletav raha)",{"v":121226,"d":"121,226"},{"v":14246,"d":"14,246"},{"v":106980,"d":"106,980"},0,0,0,null,{"$f":"13246+1000","v":{"v":14246,"d":"14,246"}},null,null,{"$f":"52980+4000","v":{"v":56980,"d":"56,980"}},{"v":50000,"d":"50,000"},{"$nulls":9},"Infoturbespetsialist töötasu (1 FTE) 1.10.2023-31.12.2024, brutopalk ca 3300 EUR/kuus. 2024. a esmalt analüüsi koostamine sobiva lahenduse leidmiseks ning dokumentatsiooni kogumiseks. Personaliga seotud otsesed majanduskulud (arvutitöökoht, koolituskulud, sõidukulud) arvestatud ca 4000 eurot aastas. ",{"$nulls":3},0,0,0,"Alustasime ettevalmistavate tegevustega 2023. a lõpus. Ametikohtade ümberkorraldamise tulemusena täidab alates 01.01.2024 IT spetsialist 0,6 töökoha ulatuses infoturbe spetsialisti ülesandeid. \n2023.a detsembris käivitati E-ITS mentorlus. Selle raames sõlmiti käsunduslepingud nelja omavalitsuse töötajatega, sh E-ITS kasutusprofiili pilootprojektis osalenud omavalitsuste IT-juhid ning lisaks Jõgeva vallasekretär (kogemus RIA järelevalve läbimisega). Mentorid on praeguseks nõustanud 6 omavalitsust. Jätkatud on ka koostöös RIAga E-ITS veebiseminaride korraldamist KOV töötajatele. ELVL infoturbe spetsialist on lisaks tegelenud ELVLi kui organisatsiooni ja digipöörde tegevuste turbevajaduste kaardistamisega ning teinud eelanalüüsi standardlahenduste kogu platvormi loomiseks. Selle baasil koostatakse lähteülesanne arenduse tellimiseks. Keskkond arendatakse tõenäoliselt Sharepointi baasil ning tegemist saab olema nö KOVide ülese siseveebi lahendusega, mida esmalt saavad kasutama hakata ELVL IT-võrgustiku liikmed."]
["ELVL",null,null,"ELVL","I: Digiriik","1.2.2. Andmepõhine riigivalitsemine ja andmete taaskasutus","IV: muu digipöördega seotud otsene kulu",null,"KOVide poolt avaandmete avaldamine on vaevaline. Kuna paljud KOVide poolt kasutatavad infosüsteemid kuuluvad eraettevõtetele peab vajalike liidestuste loomiseks läbi rääkima teenusepakkujaga. RIHAs on mitmed KOVide poolt kasutatavad infosüsteemid registreerimata, vajaliku dokumentatsiooni koostamisega ei saada hakkama.","Avaandmete avaldamise ja andmehalduse tugi KOVidele","2024 - värbamine;                                                       Andmete valdkonna KOV hetkeolukorra kaardistus, sh infosüsteemide ja võimalike andmestike kaardistamine. Rihakese kasutuselevõtmise võimaluste analüüs koostöös kohalike omavalitsustega pilootprojektina. KOV parimate praktikate otsimine ja jagamine, KOVide teadlikkuse tõstmine andmete olulisusest ja kasutusvõimalustest. Osalemine MKMi-RIA andmete töögruppides, sh TSI projektis ning vajaduspõhiselt vahelüli rolli täitmine omavalitsustega kontakti saamisel. \nLahenduse leidmine koostöös RIAga, kuidas oleks võimalik erinevate infosüsteemidega seotud andmeid otstarbekalt avaldada. Ülevaade KOVi infosüsteemidest RIHA vaatest (milline on seis ja võimalikud lahendused). ",5,null,null,"SF 21-27 (taotletav raha)",{"v":50562,"d":"50,562"},0,{"v":50562,"d":"50,562"},0,0,0,{"$nulls":4},{"$f":"46562+4000","v":{"v":50562,"d":"50,562"}},{"$nulls":10},"Andmeanalüütiku töötasu (1 FTE) 1.01.-31.12.2024, brutopalk ca 2900 EUR/kuus.  Personaliga seotud otsesed majanduskulud (arvutitöökoht, koolituskulud, sõidukulud) arvestatud ca 4000 eurot aastas. ",{"$nulls":3},0,0,0,"Tegevusega alustati plaanipäraselt 2024.a. Kuna uue töötaja värbamise protsess võttis kavandatust kauem aega, asus andmete suuna projektijuht ELVLis tööle alates 18.märtsist. Tegevutega jätkatakse plaanipäraselt. ELVL IKT nõunik on osalenud riigi andmete juhtrühma töös ning ELVL on kaasatud osapool andmete kompetentsikeskuste ehk nn TSI projektis, kuhu õnnestus lisaks kaasata ka 5 omavalitsust. "]
["ELVL",null,null,"ELVL","I: Digiriik","1.2.6. Avatud innovatsioon ja digiriigi kogukonna arendamine","III: teadlikkuse tõstmine",null,"KOVide koostöö IT valdkonnas on mõnevõrra paranenud ELVL koordineerimisel. Digipöörde käigus saavad osad suunad kaetud, kuid vajalik on hoida ka laiemat vaadet KOV IT juhtimisele ja rollidele. ","KOV digivaldkonna kogukonna tugevdamine","2023 a kogukonna tugevdamise tegevused kaetakse ELVL baasrahastusest.                                                        2024 - KOV IT võrgustiku regulaarsed virtuaalsed  lühiseminarid. Sügisel kahepäevase seminari korraldamine. KOV IT juhtimise parimate praktikate jagamise töötoad-kogemuslood (nt IT teenuste korraldus KOVis, võimalused tugiteenuste konsolideerimiseks KOVis, teenustega seotud tarkvarade võrdlus, IT juhtimise mudelid jms). Lisaks eraldi töötoad digipöörde suundade osas (andmed, küber, teenused)                                                           Tulemus: KOVid on teadlikumad üksteise parimatest praktikatest, suurenenud on omavaheline koostöö. Suurenenud teadlikkus riigipoolsetest kesksetest lahendustest jne.",6,null,null,"SF 21-27 (taotletav raha)",{"v":18000,"d":"18,000"},{"v":6000,"d":"6,000"},{"v":12000,"d":"12,000"},0,0,0,null,null,{"v":6000,"d":"6,000"},null,null,{"v":12000,"d":"12,000"},{"$nulls":9},"KOV IT juhtimise parimate praktikate jagamise töötoad-kogemuslood (nt IT teenuste korraldus KOVis, võimalused tugiteenuste konsolideerimiseks KOVis, teenustega seotud tarkvarade võrdlus, IT juhtimise mudelid jms). Arvestatud üks füüsilise kohaletulekuga seminar aastas (2023. a 1 päev, 2024. a 2-päevane).",{"$nulls":3},0,0,0,"2024.a alguses uuendati KOV IT-võrgustiku listi, et oleks kaetud kõik kohalikud omavalitsused. Praeguseks on listis 163 liiget. 10-11.aprillil toimusid traditsioonilised linnade ja valdade päevad, seekord oli asukohaks Tartu. Digiteemadele oli pühendatud kaks ettekannet RIA poolt: 1) riigi kesksetest lahendustest kodanikele ja omavalitsustele ning 2) infoturbe teemadel.  \nAlustatud on ettevalmistustega 2024.a sügisel korraldatavaks 2-päevaseks seminariks. Lisaks ettekannete formaadile on plaanis läbi viia töötoad erinevate teemade lõikes: andmed ja AI; küberturvalisus; teenuste juhtimine. Ürituse korraldamisel tehakse koostööd MKMi ja RIAga. "]
["ELVL",null,null,"ELVL","I: Digiriik","1.2.7. Avaliku sektori digimuutuste võimendamine","IV: muu digipöördega seotud otsene kulu",null,"ELVL IKT KK on tegutsenud  ca 5 aastat, kuid üksuse võimekus on endiselt piiratud. Seni on rohkem keskendutud KOVide kesksete platvormide jätkusuutlikkuse tagamisele ja üldisele koordineerimisele ning KOV teenuste vaade on jäänud tahaplaanile.","ELVL IKT Kompetentsikeskuse baasrahastus","2023. a lõpuks on valminud uus KOV IKT arengukava. Pidevad tegevused: KOV IT juhtide võrgustiku koordineerimine, infoseminaride korraldamine, KOVide nõustamine, KOV kesksete lahenduste tootejuhtimine (Anna Teada, Omavalitsuste portaal, VOLIS); Valdkonna õigusaktide kooskõlastamine.",{"$nulls":3},"Baaseelarve",{"v":212000,"d":"212,000"},{"v":150000,"d":"150,000"},{"v":62000,"d":"62,000"},0,0,0,null,{"v":140000,"d":"140,000"},{"v":10000,"d":"10,000"},null,{"v":52000,"d":"52,000"},{"v":10000,"d":"10,000"},{"$nulls":9},"ELVL KOV IKT valdkonna baasrahastus lähtuvalt ELVL eelarvest.                                      ",{"$nulls":3},0,0,0,"2023. a oli plaanis uuendada KOV IKT arengukava. Kuna 2023.a lõpus algatati ka DÜAKi uuendamine, lepiti MKMiga kokku, et KOV digivaldkonna arengukava uuendatakse pärast DÜAKi uue versiooni valmimist. ELVL aitas ettevalmistada DÜAK uuendamise regionaaldigi töötuba, mis toimus 21. märtsil ning ELVL asedirektor osaleb DÜAK juhtrühmas. \nPidevad tegevused: KOV IT võrgustiku koordineerimine, infovahetuse ja infoseminaride korraldamine, KOVide nõustamine, KOV kesksete lahenduste tootejuhtimine (Anna Teada, Omavalitsuste portaal, VOLIS); Valdkonna õigusaktide kooskõlastamine.\n2023.a lõpus valmis uus Omavalitsuste portaali platvorm (mis baseerub Valitsusportaalil) ning I kvartali jooksul avalikustasid kõik pilootprojektis osalenud asutused (6) uued veebilehed. Praeguseks on uue platvormi kasutamisest huvitatud veel 35 KOVi, kuid hetkel ei ole võimalik seda pakkuda, kuna läbirääkimised RMITiga\n teenuse laiendamiseks KOVidele on takerdunud. Loodetavasti leitakse lahendus maikuus. "]
["ELVL",null,null,"ELVL","III: Küberturvalisus ","3.3. Suurem küberturvalisuse tagamise võimekus","II: küberruumi hoidmine, arendamine ja juurutamine usaldusväärse ja turvalisena",null,"Kohalike omavalitsuste IKT taristu seis on aegunud. Serverite tarkvara ning riistvara on amortiseerunud. Võrgu ülesehitus on tehtud süsteemitult ning kohati on laiendamine  problemaatiline. Serverite hoiustamine ei vasta infoturbe nõuetele.","IKT taristu Riigipilve majutamine soodustingimustel KOVidele","Vahetame välja KOV on-premise legacy serverid tänapäevaste pilvelahenduste vastu\nRiigipilve on kolinud osaliselt või täielikult  60% KOV-idest ning loobunud enda lokaalsetest serveritest. Tagatud tõhusam riistavara kasutus ning serverite tänapäevasem haldus.                                                       ",{"$nulls":3},"RES IKT (vaja juurde taotleda)",{"v":545500,"d":"545,500"},0,{"v":545500,"d":"545,500"},0,0,0,{"$nulls":3},{"v":395500,"d":"395,500"},{"v":50000,"d":"50,000"},{"v":100000,"d":"100,000"},{"$nulls":9},"Riigipilves baasressursside majutuse kulu KOV-ile on ca 600 eur kuus. KOV võrguriistvara hankimine, paigaldamine ning seadistamine - 1 KOV-i hinnanguline võrguseadmete kulu 17 500 eurot.",{"$nulls":3},0,0,0,"Tegevus ei ole rahastust saanud."]
["ELVL",null,null,"ELVL","I: Digiriik","1.2.7. Avaliku sektori digimuutuste võimendamine","IV: muu digipöördega seotud otsene kulu",null,"Omavalitsuste veebilehtede platvorm OVP valmib 2023.a lõpuks. Alates 2024. a saaksid seda kasutusele võtta teised KOVid, kuid esialgu võib klientide hulk olla ebapiisav halduskulu katmiseks. Kuna OVP baseerub Valitsusportaalil, on vajalik hoida KOVide osa ajakohasena kui VPs toimuvad uuendused.","Omavalitsuste portaali halduskulu osaline katmine","Rahastus kataks ära vahesumma, mis tekib KOVidelt saadava tulu ja  portaali haldamiseks vajalike tegelike kulude vahest, juhul kui piisav hulk KOVe uut platvormi kasutusele ei võta. Lisaks pisiarenduste ja tarkvara hoolduse kulud osas, mida ei kata RMITi teenus.",{"$nulls":3},"RES IKT (vaja juurde taotleda)",{"v":60000,"d":"60,000"},0,{"v":60000,"d":"60,000"},0,0,0,{"$nulls":5},{"v":60000,"d":"60,000"},{"$nulls":9},"KOV serverite migreerimine Riigipilve keskkonda 100 000 EUR.",{"$nulls":3},0,0,0,"Kuna regionaalvaldkond liikus Rahandusministeeriumi alt Regionaal- ja Põllumajandusministeeriumisse, tuleb ELVLil taotleda tegevuse rahastust nüüd uutel alustel. Vastav summa on saanud eelneva kooskõlastuse ministeeriumi poolt. \n"]
[{"$nulls":15},0,0,0,0,0,0,{"$nulls":15},"2-aastat on KOVile Riigipilves IKT taristu majutamine tasuta. Riigipilve tasu kompenseerimine KOVidele toimuks RES vahendite arvelt mitte RITi eelarvest (baastaristu majutus oleks RESi vahenditest ja ülejäänud ressursi eest tasub KOV)"]
[{"$nulls":15},0,0,0,0,0,0]
[{"$nulls":15},0,0,0,0,0,0]
[{"$nulls":15},0,0,0,0,0,0]
[{"$nulls":15},0,0,0,0,0,0]
[{"$nulls":15},0,0,0,0,0,0]
[{"$nulls":15},0,0,0,0,0,0]
[{"$nulls":15},0,0,0,0,0,0]
[{"$nulls":15},0,0,0,0,0,0]
[{"$nulls":15},0,0,0,0,0,0]
[{"$nulls":15},0,0,0,0,0,0]
[{"$nulls":15},0,0,0,0,0,0]
[{"$nulls":15},0,0,0,0,0,0]
[{"$nulls":15},0,0,0,0,0,0]
[{"$nulls":15},0,0,0,0,0,0]
[{"$nulls":15},0,0,0,0,0,0]
[{"$nulls":15},0,0,0,0,0,0]
[{"$nulls":15},0,0,0,0,0,0]
[{"$nulls":15},0,0,0,0,0,0]
[{"$nulls":15},0,0,0,0,0,0]
[{"$nulls":15},0,0,0,0,0,0]
[{"$nulls":15},0,0,0,0,0,0]
[{"$nulls":15},0,0,0,0,0,0]
[{"$nulls":15},{"$f":"SUM(Q67:U67)","v":0},0,{"$f":"SUM(Y67:AA67)","v":0},{"$f":"SUM(AB67:AD67)","v":0},{"$f":"SUM(AE67:AG67)","v":0},{"$f":"SUM(AH67:AJ67)","v":0}]
[{"$nulls":15},0,0,0,0,0,0]
[{"$nulls":15},0,0,0,0,0,0]
[{"$nulls":15},0,0,0,0,0,0]
[{"$nulls":15},0,0,0,0,0,0]
[{"$nulls":15},0,0,0,0,0,0]
[{"$nulls":15},0,0,0,0,0,0]
[{"$nulls":15},0,0,0,0,0,0]
[{"$nulls":15},0,0,0,0,0,0]
[{"$nulls":15},0,0,0,0,0,0]
[{"$nulls":15},0,0,0,0,0,0]
[{"$nulls":15},0,0,0,0,0,0]
[{"$nulls":15},0,0,0,0,0,0]
[{"$nulls":15},0,0,0,0,0,0]
[{"$nulls":15},0,0,0,0,0,0]
[{"$nulls":15},0,0,0,0,0,0]
[{"$nulls":15},0,0,0,0,0,0]
[{"$nulls":15},0,0,0,0,0,0]
[{"$nulls":15},0,0,0,0,0,0]
[{"$nulls":15},0,0,0,0,0,0]
[{"$nulls":15},0,0,0,0,0,0]
[{"$nulls":15},0,0,0,0,0,0]
[{"$nulls":15},0,0,0,0,0,0]
[{"$nulls":15},0,0,0,0,0,0]
[{"$nulls":15},0,0,0,0,0,0]
[{"$nulls":15},0,0,0,0,0,0]
[{"$nulls":15},0,0,0,0,0,0]
[{"$nulls":15},0,0,0,0,0,0]
[]
[]
[{"$nulls":4},"I: Digiriik","1.1.1. Üleminek sündmuspõhistele ja proaktiivsetele teenustele","1. Infotehnoloogiliste lahenduste väljatöötamine ja arendamine",{"$nulls":7},"Baaseelarve",{"$nulls":22},"1. Tegevus sisaldab jätkusuutlikkuse kulusid ja need on samal real välja toodud."]
[{"$nulls":4},"II: Ühenduvus","1.1.2. Krativäeline riik","2. küberruumi hoidmine, arendamine ja juurutamine usaldusväärse ja turvalisena",{"$nulls":7},"Muu rahastus",{"$nulls":22},"2. Tegevus on jätkusuutlikkuse kulu"]
[{"$nulls":4},"III: Küberturvalisus ","1.1.3. Inimkeskne Digiriik","3. teadlikkuse tõstmine",{"$nulls":7},"RES IKT (vaja juurde taotleda)",{"$nulls":22},"3. Tegevus, mis vajab jätkusuutlikkuse kulusid ja need on eraldi real välja toodud"]
[{"$nulls":5},"1.1.4. Roheline digiriik","4. muu digipöördega seotud otsene kulu",{"$nulls":7},"Reserv (SR)",{"$nulls":22},"4. Tegevus, mis vajab jätkusuutlikkuse kulusid, aga neid pole välja arvutatud ja eraldi real välja toodud"]
[{"$nulls":5},"1.2.1. Avalike teenuste juhtimise ja kasutajakesksuse juurutamine",{"$nulls":8},"RRF",{"$nulls":22},"5. Tegevus, mis ei vaja jätkusuutlikkuse kulusid."]
[{"$nulls":5},"1.2.2. Andmepõhine riigivalitsemine ja andmete taaskasutus",{"$nulls":8},"SF 14-20 (töös olev projekt)"]
[{"$nulls":5},"1.2.3. Tulevikukindlad digiriigi platvormid",{"$nulls":8},"SF 21-27 (taotletav raha)"]
[{"$nulls":5},"1.2.4. Keskselt osutatud IT-alusteenused"]
[{"$nulls":5},"1.2.5. Uute lähenemisviiside pidev katsetamine"]
[{"$nulls":5},"1.2.6. Avatud innovatsioon ja digiriigi kogukonna arendamine"]
[{"$nulls":5},"1.2.7. Avaliku sektori digimuutuste võimendamine"]
[{"$nulls":5},"1.2.8. Sihitud väliskoostöö"]
[{"$nulls":5},"2.1. Ajakohane ja ettevaatav õigusruum"]
[{"$nulls":5},"2.2. Juurdepääsuvõrkude väljaarendamine"]
[{"$nulls":5},"2.3. 5G- ja 6G-baastaristu arendamine"]
[{"$nulls":5},"2.4. Uudsete sisu- ja äriteenuste arendus"]
[{"$nulls":5},"3.1. Ajakohane küberturvalisuse riiklik korraldus"]
[{"$nulls":5},"3.2. Suundumiste, riskide ja mõjude analüüsivõime"]
[{"$nulls":5},"3.3. Suurem küberturvalisuse tagamise võimekus"]

{"sheet":"KK_lisa","index":2,"n_rows":22,"n_cols":12,"rows_kept":22,"hidden":true,"merged":[[10,1,10,8],[13,1,13,8],[16,1,16,8],[19,1,19,8]]}
[]
[]
["Eesti Linnade ja Valdade Liidu valdkondlik digipööre","Kokku",2023,2024,2025,"Panus Eesti 2035 näitajatesse: Sooline võrdõiguslikkus, hoolivus ja koostöömeelsus, ligipääsevatus, KOV rahulolu teenusega","Seos DA 2030 arengukavaga -peab olema välja toodud DA 2030 rahulolu mõõdik ning metoodika, kuidas parim kasutajakogemus saavutatakse.","Seos vastava valdkonna arengukavaga ","Tegevuse seos rakenduskava poliitikaeesmärk 1 „Nutikam Eesti“ erieesmärgi „digitaliseerimisest kasu toomine kodanike, ettevõtjate, teadusasutuste ja avaliku sektori asutuste jaoks\"  kasusaajaga","Tegevuse põhjendatus - tegevus on seotud TAT eesmärkide ja tulemuste saavutamisega ning on läbinud koordineerija nõustamise kontroll-lehtede alusel","Tegevuse kuluefektiivsus -tegevuse hinnastamisel on arvestatud parimaid praktikaid ja üldist tava (nt hangete raamlepingu hindasid, personalil Fontese uuringuid jms)","Tegevuse elluviija suutlikkus tegevust ellu viia - arvestatud on elluviija või partneri varasemat kogemusi ja võimekust"]
["Elluviija: Eesti Linnade ja Valdade Liit"]
["1. Infotehnoloogiliste lahenduste väljatöötamine ja arendamine",{"$f":"SUM(C5:E5)","v":{"v":519636,"d":"519,636"}},{"$f":"Tegevuskava!D23","v":0},{"$f":"Tegevuskava!E23","v":{"v":153286,"d":"153,286"}},{"$f":"Tegevuskava!F23","v":{"v":366350,"d":"366,350"}},"x","x","x","x","x","x","x"]
["2. Küberruumi hoidmine, arendamine ja juurutamine usaldusväärse ja turvalisena",{"$f":"SUM(C6:E6)","v":{"v":174952,"d":"174,952"}},{"$f":"Tegevuskava!D24","v":0},{"$f":"Tegevuskava!E24","v":{"v":117976,"d":"117,976"}},{"$f":"Tegevuskava!F24","v":{"v":56976,"d":"56,976"}},"x","x","x","x","x","x","x"]
["3. Teadlikkuse tõstmine (teadlikkuse tõstmine punktides 3.1.1., 3.1.2. ja 3.1.4. nimetatud tegevuste osas, sealhulgas elluviija ja partnerite teadlikkuse tõstmine )",{"v":151280,"d":"151,280"},{"$f":"Tegevuskava!D25","v":0},{"$f":"Tegevuskava!E25","v":{"v":75640,"d":"75,640"}},{"$f":"Tegevuskava!F25","v":{"v":75640,"d":"75,640"}},"x","x","x","x","x","x","x"]
["4. Muu digipöördega seotud otsene kulu (valdkondliku digipöörde elluviimisega seotud tegevused)",{"v":314242,"d":"314,242"},{"$f":"Tegevuskava!D26","v":0},{"$f":"Tegevuskava!E26","v":{"v":106342,"d":"106,342"}},{"$f":"Tegevuskava!F26","v":{"v":207900,"d":"207,900"}},"x","x","x","x","x","x","x"]
["EELARVE KOKKU",{"$f":"SUM(B5:B8)","v":{"v":1160110,"d":"1,160,110"}},{"$f":"SUM(C5:C8)","v":0},{"$f":"SUM(D5:D8)","v":{"v":453244,"d":"453,244"}},{"$f":"SUM(E5:E8)","v":{"v":706866,"d":"706,866"}}]
[]
["Meetmete nimekirja tulemusnäitaja:","Uute ja uuendatud avalike digiteenuste, -toodete ja -protsesside kasutajad. Mõõtühik: lõppkasutajaid aastas."]
["Periood","2023\nalgtase","2024\nsihttase","2025\nsihttase","2026\nsihttase","2027\nsihttase","2028\nsihttase","2029\nsihttase","2030\nlõpptase"]
["Väärtus",{"$f":"'kuni 2025 detsember tegevuskava'!B19","v":0},{"$f":"'kuni 2025 detsember tegevuskava'!C19","v":0},{"$f":"'kuni 2025 detsember tegevuskava'!D19","v":{"v":15000,"d":"15,000"}},{"$f":"'kuni 2025 detsember tegevuskava'!E19","v":0},{"$f":"'kuni 2025 detsember tegevuskava'!F19","v":0},{"$f":"'kuni 2025 detsember tegevuskava'!G19","v":0},{"$f":"'kuni 2025 detsember tegevuskava'!H19","v":0},{"$f":"'kuni 2025 detsember tegevuskava'!I19","v":{"v":250000,"d":"250,000"}}]
["Meetmete nimekirja väljundnäitaja:","Uued või uuendatud digiteenused, -tooted ja -protsessid. Mõõtühik: arv "]
["Periood","2023\nalgtase","2024\nsihttase","2025\nsihttase","2026\nsihttase","2027\nsihttase","2028\nsihttase","2029\nsihttase","2030\nlõpptase"]
["Väärtus",{"$f":"'kuni 2025 detsember tegevuskava'!B22","v":0},{"$f":"'kuni 2025 detsember tegevuskava'!C22","v":0},{"$f":"'kuni 2025 detsember tegevuskava'!D22","v":1},{"$f":"'kuni 2025 detsember tegevuskava'!E22","v":0},{"$f":"'kuni 2025 detsember tegevuskava'!F22","v":0},{"$f":"'kuni 2025 detsember tegevuskava'!G22","v":0},{"$f":"'kuni 2025 detsember tegevuskava'!H22","v":0},{"$f":"'kuni 2025 detsember tegevuskava'!I22","v":5}]
["Meetmete nimekirja väljundnäitaja:","Avaliku sektori asutused, keda toetatakse digiteenuste, -toodete ja -protsesside väljatöötamiseks. Mõõtühik: Avaliku sektori asutused."]
["Periood","2023\nalgtase","2024\nsihttase","2025\nsihttase","2026\nsihttase","2027\nsihttase","2028\nsihttase","2029\nsihttase","2030\nlõpptase"]
["Väärtus",{"$f":"'kuni 2025 detsember tegevuskava'!B25","v":0},{"$f":"'kuni 2025 detsember tegevuskava'!C25","v":1},{"$f":"'kuni 2025 detsember tegevuskava'!D25","v":1},{"$f":"'kuni 2025 detsember tegevuskava'!E25","v":0},{"$f":"'kuni 2025 detsember tegevuskava'!F25","v":0},{"$f":"'kuni 2025 detsember tegevuskava'!G25","v":0},{"$f":"'kuni 2025 detsember tegevuskava'!H25","v":0},{"$f":"'kuni 2025 detsember tegevuskava'!I25","v":1}]
["Projektispetsiifiline näitaja (Eesti digiühiskonna arengukava 2030 (DA 2030) mõõdik):","Avalike digiteenustega rahulolu. Mõõtühik: % "]
["Periood","2023\nalgtase","2024\nsihttase","2025\nsihttase","2026\nsihttase","2027\nsihttase","2028\nsihttase","2029\nsihttase","2030\nlõpptase"]
["Väärtus",{"$f":"'kuni 2025 detsember tegevuskava'!B28&\"%\"","v":"0%"},{"$f":"'kuni 2025 detsember tegevuskava'!C28&\"%\"","v":"0%"},{"$f":"'kuni 2025 detsember tegevuskava'!D28&\"%\"","v":"0%"},{"$f":"'kuni 2025 detsember tegevuskava'!E28&\"%\"","v":"%"},{"$f":"'kuni 2025 detsember tegevuskava'!F28&\"%\"","v":"%"},{"$f":"'kuni 2025 detsember tegevuskava'!G28&\"%\"","v":"%"},{"$f":"'kuni 2025 detsember tegevuskava'!H28&\"%\"","v":"%"},{"$f":"'kuni 2025 detsember tegevuskava'!I28&\"%\"","v":"90%"}]

{"sheet":"Tegevuskava","index":3,"n_rows":114,"n_cols":16,"rows_kept":114,"merged":[[1,1,1,15],[6,1,6,15],[9,1,9,15],[14,16,14,26],[15,16,15,26],[16,16,16,26],[28,1,29,1],[28,2,29,2],[28,3,29,3],[28,5,29,7],[28,8,28,9],[28,10,28,11],[28,12,28,13],[28,14,28,15],[29,8,29,9],[29,10,29,11],[29,12,29,13],[29,14,29,15],[34,1,40,1],[34,2,40,2],[34,3,40,3],[34,4,40,4],[34,5,40,5],[42,1,46,1],[42,2,46,2],[42,3,46,3],[42,4,46,4],[42,5,46,5],[47,1,53,1],[47,2,53,2],[47,3,53,3],[47,4,53,4],[47,5,53,5],[54,1,60,1],[54,2,60,2],[54,3,60,3],[54,4,60,4],[54,5,60,5],[61,1,67,1],[61,2,67,2],[61,3,67,3],[61,4,67,4],[61,5,67,5],[68,1,72,1],[68,2,72,2],[68,3,72,3],[68,4,72,4],[68,5,72,5],[73,1,79,1],[73,2,79,2],[73,3,79,3],[73,4,79,4],[73,5,79,5],[80,1,88,1],[80,2,88,2],[80,3,88,3],[80,4,88,4],[80,5,88,5],[89,1,93,1],[89,2,93,2],[89,3,93,3],[89,4,93,4],[89,5,93,5],[94,1,100,1],[94,2,100,2],[94,3,100,3],[94,4,100,4],[94,5,100,5],[101,1,107,1],[101,2,107,2],[101,3,107,3],[101,4,107,4],[101,5,107,5],[109,1,109,15]]}
[]
[null,"Tulenevalt majandus- ja infotehnoloogiaministri 25. augusti 2023. a käskkirjast „Toetuse andmise tingimused valdkondlike digipöörete toetamiseks“ allkirjastan/kinnitanEesti Linnade ja Valdade Liidu digipöörde tegevuskava."]
[]
[null,"Valdkondliku digipöörde tegevuskava – Eesti Linnade ja Valdade Liit"]
[]
[null,"Digipöörde eesmärk: "]
[null,"KOVide pakutavad avalikud teenused on juhitud ja hallatud lähtudes lõppkasutajast ehk KOV elanikust. Välja on arendatud kaasaegne keskkond elanike kaasamiseks KOV otsustusprotsessidesse (nt kaasav eelarve, külavanema valimised). KOVide pakutavad teenused on riigi teenustega ühtses kasutajateekonnas lähtuvalt inimese/ettevõtte vajadustest. "]
[]
[null,"Digipöörde tegevuskava eesmärk: "]
[null,"Aastaks 2025 on käivitatud esmased tegevused ja välja töötatud konkreetne tegevusplaan digipöörde suundade lõikes, et liikuda KOVides mõtteviisi muutuse poole (avalike teenuste kasutajakesksus, andmepõhisus, kübeturvalisuse tagamine)."]
[]
[null,"Eesti Linnade ja Valdade Liit valdkondliku digipöörde 2023-2024 maksumus ilma käibemaksuta: "]
[null,null,"Kokku ","2023 ","2024 ",2025]
[null,"Kokku ",{"$f":"SUM(D14:F14)","v":{"v":1981987,"d":"1,981,987"}},{"$f":"SUM(D15:D17)","v":{"v":164933,"d":"164,933"}},{"$f":"SUM(E15:E17)","v":{"v":550028,"d":"550,028"}},{"v":1267026,"d":"1,267,026"}]
[null,"Olemasolevad vahendid ",{"$f":"SUM(D15:F15)","v":{"v":316957,"d":"316,957"}},{"$f":"SUM('kuni 2025 detsember tegevuskava'!X112:Z112+'kuni 2025 detsember tegevuskava'!X115:Z115+'kuni 2025 detsember tegevuskava'!X118:Z118+'kuni 2025 detsember tegevuskava'!X121:Z121)","v":{"v":164933,"d":"164,933"}},{"$f":"SUM('kuni 2025 detsember tegevuskava'!AA112:AC112+'kuni 2025 detsember tegevuskava'!AA115:AC115+'kuni 2025 detsember tegevuskava'!AA118:AC118+'kuni 2025 detsember tegevuskava'!AA121:AC121)","v":{"v":90024,"d":"90,024"}},{"$f":"SUM('kuni 2025 detsember tegevuskava'!AD112:AF112+'kuni 2025 detsember tegevuskava'!AD115:AF115+'kuni 2025 detsember tegevuskava'!AD118:AF118+'kuni 2025 detsember tegevuskava'!AD121:AF121)","v":{"v":62000,"d":"62,000"}}]
[null,"SF 2021-2027 ",{"v":1019530,"d":"1,019,530"},{"$f":"SUM('kuni 2025 detsember tegevuskava'!X97:Z97+'kuni 2025 detsember tegevuskava'!X100:Z100+'kuni 2025 detsember tegevuskava'!X103:Z103+'kuni 2025 detsember tegevuskava'!X106:Z106)","v":0},{"$f":"SUM('kuni 2025 detsember tegevuskava'!AA97:AC97+'kuni 2025 detsember tegevuskava'!AA100:AC100+'kuni 2025 detsember tegevuskava'!AA103:AC103+'kuni 2025 detsember tegevuskava'!AA106:AC106)","v":{"v":400004,"d":"400,004"}},{"$f":"SUM('kuni 2025 detsember tegevuskava'!AD97:AF97+'kuni 2025 detsember tegevuskava'!AD100:AF100+'kuni 2025 detsember tegevuskava'!AD103:AF103+'kuni 2025 detsember tegevuskava'!AD106:AF106)","v":{"v":619526,"d":"619,526"}}]
[null,"RES 2024-2027 ",{"v":645500,"d":"645,500"},{"$f":"SUM('kuni 2025 detsember tegevuskava'!X127:Z127+'kuni 2025 detsember tegevuskava'!X130:Z130+'kuni 2025 detsember tegevuskava'!X133:Z133+'kuni 2025 detsember tegevuskava'!X136:Z136)","v":0},{"$f":"SUM('kuni 2025 detsember tegevuskava'!AA127:AC127+'kuni 2025 detsember tegevuskava'!AA130:AC130+'kuni 2025 detsember tegevuskava'!AA133:AC133+'kuni 2025 detsember tegevuskava'!AA136:AC136)","v":{"v":60000,"d":"60,000"}},{"$f":"SUM('kuni 2025 detsember tegevuskava'!AD127:AF127+'kuni 2025 detsember tegevuskava'!AD130:AF130+'kuni 2025 detsember tegevuskava'!AD133:AF133+'kuni 2025 detsember tegevuskava'!AD136:AF136)","v":{"v":585500,"d":"585,500"}}]
[]
[]
[null,"Eesti Linnade ja Valdade Liit valdkondliku digipöörde 2023-2025 \nSF 2021-2027 toetuse summa koos käibemaksuga"]
[null,null,"Kokku ","2023 ","2024 ","2025 "]
[null,"SF 2021-2027 ",{"$f":"SUM(D22:F22)","v":{"v":1160110,"d":"1,160,110"}},{"$f":"SUM(D23:D26)","v":0},{"$f":"SUM(E23:E26)","v":{"v":453244,"d":"453,244"}},{"v":706866,"d":"706,866"}]
[null,"1. Infotehnoloogiliste lahenduste väljatöötamine ja arendamine",{"$f":"SUM(D23:F23)","v":{"v":519636,"d":"519,636"}},{"$f":"SUM('kuni 2025 detsember tegevuskava'!X98:Z98)","v":0},{"$f":"SUM('kuni 2025 detsember tegevuskava'!AA98:AC98)","v":{"v":153286,"d":"153,286"}},{"$f":"SUM('kuni 2025 detsember tegevuskava'!AD98:AF98)","v":{"v":366350,"d":"366,350"}}]
[null,"2. Küberruumi hoidmine, arendamine ja juurutamine usaldusväärse ja turvalisena",{"$f":"SUM(D24:F24)","v":{"v":174952,"d":"174,952"}},{"$f":"SUM('kuni 2025 detsember tegevuskava'!X101:Z101)","v":0},{"$f":"SUM('kuni 2025 detsember tegevuskava'!AA101:AC101)","v":{"v":117976,"d":"117,976"}},{"$f":"SUM('kuni 2025 detsember tegevuskava'!AD101:AF101)","v":{"v":56976,"d":"56,976"}}]
[null,"3. Teadlikkuse tõstmine (teadlikkuse tõstmine punktides 3.1.1., 3.1.2. ja 3.1.4. nimetatud tegevuste osas, sealhulgas elluviija ja partnerite teadlikkuse tõstmine )",{"v":151280,"d":"151,280"},{"$f":"SUM('kuni 2025 detsember tegevuskava'!X104:Z104)","v":0},{"$f":"SUM('kuni 2025 detsember tegevuskava'!AA104:AC104)","v":{"v":75640,"d":"75,640"}},{"$f":"SUM('kuni 2025 detsember tegevuskava'!AD104:AF104)","v":{"v":75640,"d":"75,640"}}]
[null,"4. Muu digipöördega seotud otsene kulu (valdkondliku digipöörde elluviimisega seotud tegevused)",{"v":314242,"d":"314,242"},{"$f":"SUM('kuni 2025 detsember tegevuskava'!X107:Z107)","v":0},{"$f":"SUM('kuni 2025 detsember tegevuskava'!AA107:AC107)","v":{"v":106342,"d":"106,342"}},{"$f":"SUM('kuni 2025 detsember tegevuskava'!AD107:AF107)","v":{"v":207900,"d":"207,900"}}]
[]
[]
[null,"Elluviija /\npartner","Probleem","Tegevuse (algatuse) nimi","Tulemus","Rahastuse allikas / meetme tegevus (SF)",null,null,"Summa kokku",null,"2023 kokku",null,"2024 kokku",null,"2025 kokku"]
[{"$nulls":8},"(EA konto)",null,"(EA konto)",null,"(EA konto)",null,"(EA konto)"]
[null,"KOKKU",{"$nulls":6},{"$f":"SUM(I32:I34)","v":{"v":1981987,"d":"1,981,987"}},null,{"$f":"SUM(K32:K34)","v":{"v":164933,"d":"164,933"}},null,{"$f":"SUM(M32:M34)","v":{"v":550028,"d":"550,028"}},null,{"$f":"SUM(O32:O34)","v":{"v":1267026,"d":"1,267,026"}}]
[{"$nulls":8},{"$f":"SUM(I49+I82)","v":{"v":665500,"d":"665,500"}},{"$f":"\"(15)\"","v":"(15)"},{"$f":"SUM(K49+K82)","v":0},{"$f":"\"(15)\"","v":"(15)"},{"$f":"SUM(M49+M82)","v":{"v":100000,"d":"100,000"}},{"$f":"\"(15)\"","v":"(15)"},{"$f":"SUM(O49+O82)","v":{"v":565500,"d":"565,500"}},{"$f":"\"(15)\"","v":"(15)"}]
[{"$nulls":8},{"$f":"SUM(I36+I50+I56+I63+I75+I83+I96+I103)","v":{"v":706701,"d":"706,701"}},{"$f":"\"(50)\"","v":"(50)"},{"$f":"SUM(K36+K50+K56+K63+K75+K83+K96+K103)","v":{"v":152647,"d":"152,647"}},{"$f":"\"(50)\"","v":"(50)"},{"$f":"SUM(M36+M50+M56+M63+M75+M83+M96+M103)","v":{"v":229528,"d":"229,528"}},{"$f":"\"(50)\"","v":"(50)"},{"$f":"SUM(O36+O50+O56+O63+O75+O83+O96+O103)","v":{"v":324526,"d":"324,526"}},{"$f":"\"(50)\"","v":"(50)"}]
[{"$nulls":8},{"$f":"SUM(I37+I44+I57+I64+I70+I76+I84+I91+I97+I104)","v":{"v":609786,"d":"609,786"}},{"$f":"\"(55)\"","v":"(55)"},{"$f":"SUM(K37+K44+K57+K64+K70+K76+K84+K91+K97+K104)","v":{"v":12286,"d":"12,286"}},{"$f":"\"(55)\"","v":"(55)"},{"$f":"SUM(M37+M44+M57+M64+M70+M76+M84+M91+M97+M104)","v":{"v":220500,"d":"220,500"}},{"$f":"\"(55)\"","v":"(55)"},{"$f":"SUM(O37+O44+O57+O64+O70+O76+O84+O91+O97+O104)","v":{"v":377000,"d":"377,000"}},{"$f":"\"(55)\"","v":"(55)"}]
[null,"ELVL/",{"$f":"'kuni 2025 detsember tegevuskava'!I35","v":"KOV infosüsteemide analüüsi põhjal:\nKOVidel puudub enamasti ülevaade pakutavatest teenustest\nAmetnike ega lõppkasutajate rahulolu teenustega reeglina ei mõõdeta\nArendusvajadused on enamasti suunatud automatiseerimisele ja käsitöö vähendamisele ametniku poolt\nTeenuste üle kontroll puudub"},{"$f":"'kuni 2025 detsember tegevuskava'!J35","v":"KOV avalike teenuste kaardistamise mudel ja ühtne kasutajate rahulolu mõõtmise süsteem"},{"$f":"'kuni 2025 detsember tegevuskava'!K35","v":"2024 – projektijuhi värbamine, KOVide KOKSist tulenevate avalike teenuste esmane kaardistamine koostöös MKMi teenuste tiimiga KOV teenuste arendajatega pilootrühma baasil (5 KOVi). Jätkutegevuste kavandamine KOV teenuste esmase kaardistusest tulenevalt. Võimalikud tegevused: teenuste kaardistuse laiendamine kõikidele omavalitsustele; KOV teenuste standardi väljatöötamine ja valideerimine KOVidega; ühtse kasutajate rahulolu mõõtmise mudeli ja süsteemi analüüs 2025 - analüüsi tulemusena kasutajate rahulolu süsteemi arendus ja juurutamine. Lõpptulemus: KOVidel tekib ülevaade oma teenustest ja protsessidest ehk nn äripoole vajadustest; tervikpilt KOV (e-)teenustest ja kattuvusest riigiasutuste teenustega; KOV teenuste seotus sündmusteenustega; kasutajate rahulolu mõõtmine ja parendused on juurutatud teenuse osutamise protsessi.   "},{"$f":"'kuni 2025 detsember tegevuskava'!P35&\"/\"","v":"SF 21-27 (taotletav raha)/"},{"$f":"_xlfn.IFS('kuni 2025 detsember tegevuskava'!G35='kuni 2025 detsember tegevuskava'!$G$97,1,'kuni 2025 detsember tegevuskava'!G35='kuni 2025 detsember tegevuskava'!$G$98,2,'kuni 2025 detsember tegevuskava'!G35='kuni 2025 detsember tegevuskava'!$G$99,3,'kuni 2025 detsember tegevuskava'!G35='kuni 2025 detsember tegevuskava'!$G$100,4)","v":4},{"$f":"_xlfn.IFS(OR('kuni 2025 detsember tegevuskava'!P35='kuni 2025 detsember tegevuskava'!$P$97,'kuni 2025 detsember tegevuskava'!P35='kuni 2025 detsember tegevuskava'!$P$99,'kuni 2025 detsember tegevuskava'!P35='kuni 2025 detsember tegevuskava'!$P$100,'kuni 2025 detsember tegevuskava'!P35='kuni 2025 detsember tegevuskava'!$P$101),1,'kuni 2025 detsember tegevuskava'!P35='kuni 2025 detsember tegevuskava'!$P$102,2,'kuni 2025 detsember tegevuskava'!P35='kuni 2025 detsember tegevuskava'!$P$103,2,'kuni 2025 detsember tegevuskava'!P35='kuni 2025 detsember tegevuskava'!$P$98,3)","v":2},{"$f":"SUM(I36:I37)","v":{"v":172809,"d":"172,809"}},null,{"$f":"SUM(K36:K37)","v":0},null,{"$f":"SUM(M36:M37)","v":{"v":57609,"d":"57,609"}},null,{"$f":"SUM(O36:O37)","v":{"v":115200,"d":"115,200"}}]
[{"$nulls":8},{"$f":"SUM(K36+M36+O36)","v":{"v":82809,"d":"82,809"}},{"$f":"\"(50)\"","v":"(50)"},{"$f":"'kuni 2025 detsember tegevuskava'!Y35","v":0},{"$f":"\"(50)\"","v":"(50)"},{"$f":"'kuni 2025 detsember tegevuskava'!AB35","v":{"v":27609,"d":"27,609"}},{"$f":"\"(50)\"","v":"(50)"},{"$f":"'kuni 2025 detsember tegevuskava'!AE35","v":{"v":55200,"d":"55,200"}},{"$f":"\"(50)\"","v":"(50)"}]
[{"$nulls":8},{"$f":"SUM(K37+M37+O37)","v":{"v":90000,"d":"90,000"}},{"$f":"\"(55)\"","v":"(55)"},{"$f":"'kuni 2025 detsember tegevuskava'!Z35","v":0},{"$f":"\"(55)\"","v":"(55)"},{"$f":"'kuni 2025 detsember tegevuskava'!AC35","v":{"v":30000,"d":"30,000"}},{"$f":"\"(55)\"","v":"(55)"},{"$f":"'kuni 2025 detsember tegevuskava'!AF35","v":{"v":60000,"d":"60,000"}},{"$f":"\"(55)\"","v":"(55)"}]
[{"$nulls":8},"Summa koos käibemaksuga:"]
[{"$nulls":8},{"$f":"SUM(I40:I41)","v":{"v":192609,"d":"192,609"}},null,{"$f":"SUM(K40:K41)","v":0},null,{"$f":"SUM(M40:M41)","v":{"v":64209,"d":"64,209"}},null,{"$f":"SUM(O40:O41)","v":{"v":128400,"d":"128,400"}}]
[{"$nulls":8},{"$f":"SUM(K40+M40+O40)","v":{"v":82809,"d":"82,809"}},{"$f":"\"(50)\"","v":"(50)"},{"$f":"K36","v":0},{"$f":"\"(50)\"","v":"(50)"},{"$f":"M36","v":{"v":27609,"d":"27,609"}},{"$f":"\"(50)\"","v":"(50)"},{"$f":"O36","v":{"v":55200,"d":"55,200"}},{"$f":"\"(50)\"","v":"(50)"}]
[{"$nulls":8},{"$f":"SUM(K41+M41+O41)","v":{"v":109800,"d":"109,800"}},{"$f":"\"(55)\"","v":"(55)"},{"$f":"SUM(K37*1.2)","v":0},{"$f":"\"(55)\"","v":"(55)"},{"$f":"SUM(M37*1.22)","v":{"v":36600,"d":"36,600"}},{"$f":"\"(55)\"","v":"(55)"},{"$f":"SUM(O37*1.22)","v":{"v":73200,"d":"73,200"}},{"$f":"\"(55)\"","v":"(55)"}]
[]
[null,"ELVL/",{"$f":"'kuni 2025 detsember tegevuskava'!I36","v":"KOV infosüsteemide analüüsile tuginedes:\nKOVide teenustega seotud kompetentsid on madalad\nAmetnike ega lõppkasutajate rahulolu teenustega reeglina ei mõõdeta\nKasutajakeskne mõtteviis puudub, kasutajakogemusega tegelevad vaid üksikud omavalitsused"},{"$f":"'kuni 2025 detsember tegevuskava'!J36","v":"KOV teenuste omanike arenguprogramm ja KOV digikompetentside kasvatamine "},{"$f":"'kuni 2025 detsember tegevuskava'!K36","v":"2024 – koostöös MKMi oskuste tiimi ja KOV personalivõrgustikuga detailsema plaani koostamine KOV digikompetentside kasvatamisekes, koolitusprogrammi hanke läbiviimine. Koolituse korraldamine 2024.a sügisel esmalt pilootgrupiga. Hinnanguliselt koolitatavate arv kokku:  250. Tegevus jätkub 2025.a KOV-ide teenuste eest vastutajad ehk nn äripoole omanikud saavad aru teenuspõhisest juhtimisest ja selleks tehnoloogia kasutamisest, sh turvalisuse, kasutajakogemuse, andmekaitse, teenusedisaini jm põhimõtetest. Koolitustel on suur rõhk praktilistel harjutustel ja grupitööl. Loob eeldused teenuste juhtimise konsolideerimiseks KOV teenusvaldkondades.            Pidev tegevus - Digiriigi Akadeemia jt riigi kesksete koolituste teavitustegevus KOVide suunal."},{"$f":"'kuni 2025 detsember tegevuskava'!P36&\"/\"","v":"SF 21-27 (taotletav raha)/"},{"$f":"_xlfn.IFS('kuni 2025 detsember tegevuskava'!G36='kuni 2025 detsember tegevuskava'!$G$97,1,'kuni 2025 detsember tegevuskava'!G36='kuni 2025 detsember tegevuskava'!$G$98,2,'kuni 2025 detsember tegevuskava'!G36='kuni 2025 detsember tegevuskava'!$G$99,3,'kuni 2025 detsember tegevuskava'!G36='kuni 2025 detsember tegevuskava'!$G$100,4)","v":3},{"$f":"_xlfn.IFS(OR('kuni 2025 detsember tegevuskava'!P36='kuni 2025 detsember tegevuskava'!$P$97,'kuni 2025 detsember tegevuskava'!P36='kuni 2025 detsember tegevuskava'!$P$99,'kuni 2025 detsember tegevuskava'!P36='kuni 2025 detsember tegevuskava'!$P$100,'kuni 2025 detsember tegevuskava'!P36='kuni 2025 detsember tegevuskava'!$P$101),1,'kuni 2025 detsember tegevuskava'!P36='kuni 2025 detsember tegevuskava'!$P$102,2,'kuni 2025 detsember tegevuskava'!P36='kuni 2025 detsember tegevuskava'!$P$103,2,'kuni 2025 detsember tegevuskava'!P36='kuni 2025 detsember tegevuskava'!$P$98,3)","v":2},{"$f":"SUM(I44:I44)","v":{"v":100000,"d":"100,000"}},null,{"$f":"SUM(K44:K44)","v":0},null,{"$f":"SUM(M44:M44)","v":{"v":50000,"d":"50,000"}},null,{"$f":"SUM(O44:O44)","v":{"v":50000,"d":"50,000"}}]
[{"$nulls":8},{"$f":"SUM(K44+M44+O44)","v":{"v":100000,"d":"100,000"}},{"$f":"\"(55)\"","v":"(55)"},{"$f":"'kuni 2025 detsember tegevuskava'!Z36","v":0},{"$f":"\"(55)\"","v":"(55)"},{"$f":"'kuni 2025 detsember tegevuskava'!AC36","v":{"v":50000,"d":"50,000"}},{"$f":"\"(55)\"","v":"(55)"},{"$f":"'kuni 2025 detsember tegevuskava'!AF36","v":{"v":50000,"d":"50,000"}},{"$f":"\"(55)\"","v":"(55)"}]
[{"$nulls":8},"Summa koos käibemaksuga:"]
[{"$nulls":8},{"$f":"SUM(I47:I47)","v":{"v":122000,"d":"122,000"}},null,{"$f":"SUM(K47:K47)","v":0},null,{"$f":"SUM(M47:M47)","v":{"v":61000,"d":"61,000"}},null,{"$f":"SUM(O47:O47)","v":{"v":61000,"d":"61,000"}}]
[{"$nulls":8},{"$f":"SUM(K47+M47+O47)","v":{"v":122000,"d":"122,000"}},{"$f":"\"(55)\"","v":"(55)"},{"$f":"SUM(K44*1.2)","v":0},{"$f":"\"(55)\"","v":"(55)"},{"$f":"SUM(M44*1.22)","v":{"v":61000,"d":"61,000"}},{"$f":"\"(55)\"","v":"(55)"},{"$f":"SUM(O44*1.22)","v":{"v":61000,"d":"61,000"}},{"$f":"\"(55)\"","v":"(55)"}]
[null,{"$f":"'kuni 2025 detsember tegevuskava'!A37&\"/\"&'kuni 2025 detsember tegevuskava'!C37","v":"ELVL/"},{"$f":"'kuni 2025 detsember tegevuskava'!I37","v":"KOVidel puudub võimalus viia õiguspäraselt ja turvaliselt virtuaalsetel koosolekutel hääletusi. Praegune VOLIS on legacy, mis tingib teenuse ebastabiilsuse kasutajakoormuse tõusu korral, kasutusel on vananenud tehnoloogia ja kasutajadisain. Kasutajate rahulolu on madal (5,63)"},{"$f":"'kuni 2025 detsember tegevuskava'!J37","v":"KOV rahvahääletuste ja koosolekute digilahendus "},{"$f":"'kuni 2025 detsember tegevuskava'!K37","v":"2024 - 2022.a valminud VOLIS2 analüüsi ülevaatus ja KOVidega koostöös minimaalsete arendatavate funktsionaalsuste kokkuleppimine -> esmalt MVP arendus ehk minimaalne funktsionaalsus.       Hankedokumentatsiooni koostamine ja hanke läbiviimine arenduspartneri leidmiseks. Arenduse tulemusena valmib esimese etapina 2025. a KOV rahvahääletuste keskkonna (sh kaasavad eelarved) MVP:  kasutajate haldus; hääletussüsteem (sh isikukoodi põhised hääletused ja rahvahääletused); integratsioon rahvastikuregistriga (KOV ja asustusüksuse täpsus). Valminud infosüsteemi saavad KOVid kasutusele võtta teenuslepinguga kuutasu alusel. IS majutatakse pilvelahenduses."},{"$f":"'kuni 2025 detsember tegevuskava'!P37&\"/\"","v":"SF 21-27 (taotletav raha)/"},{"$f":"_xlfn.IFS('kuni 2025 detsember tegevuskava'!G37='kuni 2025 detsember tegevuskava'!$G$97,1,'kuni 2025 detsember tegevuskava'!G37='kuni 2025 detsember tegevuskava'!$G$98,2,'kuni 2025 detsember tegevuskava'!G37='kuni 2025 detsember tegevuskava'!$G$99,3,'kuni 2025 detsember tegevuskava'!G37='kuni 2025 detsember tegevuskava'!$G$100,4)","v":1},{"$f":"_xlfn.IFS(OR('kuni 2025 detsember tegevuskava'!P37='kuni 2025 detsember tegevuskava'!$P$97,'kuni 2025 detsember tegevuskava'!P37='kuni 2025 detsember tegevuskava'!$P$99,'kuni 2025 detsember tegevuskava'!P37='kuni 2025 detsember tegevuskava'!$P$100,'kuni 2025 detsember tegevuskava'!P37='kuni 2025 detsember tegevuskava'!$P$101),1,'kuni 2025 detsember tegevuskava'!P37='kuni 2025 detsember tegevuskava'!$P$102,2,'kuni 2025 detsember tegevuskava'!P37='kuni 2025 detsember tegevuskava'!$P$103,2,'kuni 2025 detsember tegevuskava'!P37='kuni 2025 detsember tegevuskava'!$P$98,3)","v":2},{"$f":"SUM(I49:I50)","v":{"v":334136,"d":"334,136"}},null,{"$f":"SUM(K49:K50)","v":0},null,{"$f":"SUM(M49:M50)","v":{"v":131286,"d":"131,286"}},null,{"$f":"SUM(O49:O50)","v":{"v":202850,"d":"202,850"}}]
[{"$nulls":8},{"$f":"SUM(K49+M49+O49)","v":{"v":270000,"d":"270,000"}},{"$f":"\"(15)\"","v":"(15)"},{"$f":"'kuni 2025 detsember tegevuskava'!X37","v":0},{"$f":"\"(15)\"","v":"(15)"},{"$f":"'kuni 2025 detsember tegevuskava'!AA37","v":{"v":100000,"d":"100,000"}},{"$f":"\"(15)\"","v":"(15)"},{"$f":"'kuni 2025 detsember tegevuskava'!AD37","v":{"v":170000,"d":"170,000"}},{"$f":"\"(15)\"","v":"(15)"}]
[{"$nulls":8},{"$f":"SUM(K50+M50+O50)","v":{"v":64136,"d":"64,136"}},{"$f":"\"(50)\"","v":"(50)"},{"$f":"'kuni 2025 detsember tegevuskava'!Y37","v":0},{"$f":"\"(50)\"","v":"(50)"},{"$f":"'kuni 2025 detsember tegevuskava'!AB37","v":{"v":31286,"d":"31,286"}},{"$f":"\"(50)\"","v":"(50)"},{"$f":"'kuni 2025 detsember tegevuskava'!AE37","v":{"v":32850,"d":"32,850"}},{"$f":"\"(50)\"","v":"(50)"}]
[{"$nulls":8},"Summa koos käibemaksuga:"]
[{"$nulls":8},{"$f":"SUM(I53:I54)","v":{"v":393536,"d":"393,536"}},null,{"$f":"SUM(K53:K54)","v":0},null,{"$f":"SUM(M53:M54)","v":{"v":153286,"d":"153,286"}},null,{"$f":"SUM(O53:O54)","v":{"v":240250,"d":"240,250"}}]
[{"$nulls":8},{"$f":"SUM(K53+M53+O53)","v":{"v":329400,"d":"329,400"}},{"$f":"\"(15)\"","v":"(15)"},{"$f":"SUM(K49*1.2)","v":0},{"$f":"\"(15)\"","v":"(15)"},{"$f":"SUM(M49*1.22)","v":{"v":122000,"d":"122,000"}},{"$f":"\"(15)\"","v":"(15)"},{"$f":"SUM(O49*1.22)","v":{"v":207400,"d":"207,400"}},{"$f":"\"(15)\"","v":"(15)"}]
[{"$nulls":8},{"$f":"SUM(K54+M54+O54)","v":{"v":64136,"d":"64,136"}},{"$f":"\"(50)\"","v":"(50)"},{"$f":"K50","v":0},{"$f":"\"(50)\"","v":"(50)"},{"$f":"M50","v":{"v":31286,"d":"31,286"}},{"$f":"\"(50)\"","v":"(50)"},{"$f":"O50","v":{"v":32850,"d":"32,850"}},{"$f":"\"(50)\"","v":"(50)"}]
[null,{"$f":"'kuni 2025 detsember tegevuskava'!A38&\"/\"&'kuni 2025 detsember tegevuskava'!C38","v":"ELVL/"},{"$f":"'kuni 2025 detsember tegevuskava'!I38","v":"Kohalike omavalitsuste infoturbe võimekus on endiselt madal. KOVid üha rohkem tunnistavad, et pole võimelised seda valdkonda katma. KOVid ei mõista infoturbe olemust ja vajalikkust, seda peetakse tehniliseks mitte organisatoorseks probleemiks. \nISKE dokumentatsioon on enamikul olemas, kuid seda ei järgita. KOVidel puudub keskselt kasutatav andmebaas, kuhu koguda parimaid praktikaid, juhendmaterjali jms"},{"$f":"'kuni 2025 detsember tegevuskava'!J38","v":"Küberturvalisuse tagamise tugi KOVidele"},{"$f":"'kuni 2025 detsember tegevuskava'!K38","v":"2024 – infoturbe spetsialisti värbamine (osalise tööajaga), taustainfo kogumine ja tööplaani koostamine, ELVLi kui organisatsiooni ja digipöörde tegevuste turbevajaduste kaardistamine; KOVide EITS kasutusprofiili koostamisest tulenevad jätkutegevused.             E-ITS mentorite võrgustiku käivitamine (tugi KOVilt KOVile E-ITS rakendamisel). Lähteülesande koostamine sobiva lahenduse leidmiseks standardlahenduste kogu platvormi loomiseks ja arenduse tellimine. \n2025 -  E-ITS rakendamise toe jätkamine (mentorlus, veebiseminarid koostöös RIAga).  Parimate praktikate, juhendite ja dokumentatsiooni jagamise keskkonna käivitamine (nn KOV ülene siseveeb). Eesmärk on tõsta teadlikkust ja parandada infoturbe juhtimist KOV-ides.  "},{"$f":"'kuni 2025 detsember tegevuskava'!P38&\"/\"","v":"SF 21-27 (taotletav raha)/"},{"$f":"_xlfn.IFS('kuni 2025 detsember tegevuskava'!G38='kuni 2025 detsember tegevuskava'!$G$97,1,'kuni 2025 detsember tegevuskava'!G38='kuni 2025 detsember tegevuskava'!$G$98,2,'kuni 2025 detsember tegevuskava'!G38='kuni 2025 detsember tegevuskava'!$G$99,3,'kuni 2025 detsember tegevuskava'!G38='kuni 2025 detsember tegevuskava'!$G$100,4)","v":2},{"$f":"_xlfn.IFS(OR('kuni 2025 detsember tegevuskava'!P38='kuni 2025 detsember tegevuskava'!$P$97,'kuni 2025 detsember tegevuskava'!P38='kuni 2025 detsember tegevuskava'!$P$99,'kuni 2025 detsember tegevuskava'!P38='kuni 2025 detsember tegevuskava'!$P$100,'kuni 2025 detsember tegevuskava'!P38='kuni 2025 detsember tegevuskava'!$P$101),1,'kuni 2025 detsember tegevuskava'!P38='kuni 2025 detsember tegevuskava'!$P$102,2,'kuni 2025 detsember tegevuskava'!P38='kuni 2025 detsember tegevuskava'!$P$103,2,'kuni 2025 detsember tegevuskava'!P38='kuni 2025 detsember tegevuskava'!$P$98,3)","v":2},{"$f":"SUM(I56:I57)","v":{"v":163952,"d":"163,952"}},null,{"$f":"SUM(K56:K57)","v":0},null,{"$f":"SUM(M56:M57)","v":{"v":106976,"d":"106,976"}},null,{"$f":"SUM(O56:O57)","v":{"v":56976,"d":"56,976"}}]
[{"$nulls":8},{"$f":"SUM(K56+M56+O56)","v":{"v":113952,"d":"113,952"}},{"$f":"\"(50)\"","v":"(50)"},{"$f":"'kuni 2025 detsember tegevuskava'!Y38","v":0},{"$f":"\"(50)\"","v":"(50)"},{"$f":"'kuni 2025 detsember tegevuskava'!AB38","v":{"v":56976,"d":"56,976"}},{"$f":"\"(50)\"","v":"(50)"},{"$f":"'kuni 2025 detsember tegevuskava'!AE38","v":{"v":56976,"d":"56,976"}},{"$f":"\"(50)\"","v":"(50)"}]
[{"$nulls":8},{"v":50000,"d":"50,000"},{"$f":"\"(55)\"","v":"(55)"},{"$f":"'kuni 2025 detsember tegevuskava'!Z38","v":0},{"$f":"\"(55)\"","v":"(55)"},{"$f":"'kuni 2025 detsember tegevuskava'!AC38","v":{"v":50000,"d":"50,000"}},{"$f":"\"(55)\"","v":"(55)"},{"$f":"'kuni 2025 detsember tegevuskava'!AF38","v":0},{"$f":"\"(55)\"","v":"(55)"}]
[{"$nulls":8},"Summa koos käibemaksuga:"]
[{"$nulls":8},{"$f":"SUM(I60:I61)","v":{"v":174952,"d":"174,952"}},null,{"$f":"SUM(K60:K61)","v":0},null,{"$f":"SUM(M60:M61)","v":{"v":117976,"d":"117,976"}},null,{"$f":"SUM(O60:O61)","v":{"v":56976,"d":"56,976"}}]
[{"$nulls":8},{"$f":"SUM(K60+M60+O60)","v":{"v":113952,"d":"113,952"}},{"$f":"\"(50)\"","v":"(50)"},{"$f":"K56","v":0},{"$f":"\"(50)\"","v":"(50)"},{"$f":"M56","v":{"v":56976,"d":"56,976"}},{"$f":"\"(50)\"","v":"(50)"},{"$f":"O56","v":{"v":56976,"d":"56,976"}},{"$f":"\"(50)\"","v":"(50)"}]
[{"$nulls":8},{"v":61000,"d":"61,000"},{"$f":"\"(55)\"","v":"(55)"},{"$f":"SUM(K57*1.2)","v":0},{"$f":"\"(55)\"","v":"(55)"},{"$f":"SUM(M57*1.22)","v":{"v":61000,"d":"61,000"}},{"$f":"\"(55)\"","v":"(55)"},{"$f":"SUM(O57*1.22)","v":0},{"$f":"\"(55)\"","v":"(55)"}]
[null,{"$f":"'kuni 2025 detsember tegevuskava'!A39&\"/\"&'kuni 2025 detsember tegevuskava'!C39","v":"ELVL/"},{"$f":"'kuni 2025 detsember tegevuskava'!I39","v":"KOVide poolt avaandmete avaldamine on vaevaline. Kuna paljud KOVide poolt kasutatavad infosüsteemid kuuluvad eraettevõtetele peab vajalike liidestuste loomiseks läbi rääkima teenusepakkujaga. RIHAs on mitmed KOVide poolt kasutatavad infosüsteemid registreerimata, vajaliku dokumentatsiooni koostamisega ei saada hakkama."},{"$f":"'kuni 2025 detsember tegevuskava'!J39","v":"Avaandmete avaldamise, andmehalduse ja AI tugi KOVidele"},{"$f":"'kuni 2025 detsember tegevuskava'!K39","v":"2024 - värbamine; andmete valdkonna KOV hetkeolukorra kaardistus, sh infosüsteemide ja võimalike andmestike kaardistamine.             2024-2025: Osalemine MKMi-RIA andmete töögruppides, sh TSI projektis ning vajaduspõhiselt vahelüli rolli täitmine omavalitsustega kontakti saamisel. \nAvaandmete avaldamise toe pakkumine KOVidele: avaldatavate andmestike kokkuleppimine, abi andmete ettevalmistamisel ja avaldamisel, automatiseerimise lahenduste analüüs. Andmehalduse raamistiku \"tõlkimine\" ehk kohandamine KOVide jaoks, sh Rihakese kasutusvõimaluste analüüs. KOV teadlikkuse tõstmine andmete väärtusest ja võimalustest: parimate praktikate otsimine ja jagamine, praktiliste juhendite koostamine. ELVLi poolt Bürokrati piloteerimine KOV üldandmete osas."},{"$f":"'kuni 2025 detsember tegevuskava'!P39&\"/\"","v":"SF 21-27 (taotletav raha)/"},{"$f":"_xlfn.IFS('kuni 2025 detsember tegevuskava'!G39='kuni 2025 detsember tegevuskava'!$G$97,1,'kuni 2025 detsember tegevuskava'!G39='kuni 2025 detsember tegevuskava'!$G$98,2,'kuni 2025 detsember tegevuskava'!G39='kuni 2025 detsember tegevuskava'!$G$99,3,'kuni 2025 detsember tegevuskava'!G39='kuni 2025 detsember tegevuskava'!$G$100,4)","v":4},{"$f":"_xlfn.IFS(OR('kuni 2025 detsember tegevuskava'!P39='kuni 2025 detsember tegevuskava'!$P$97,'kuni 2025 detsember tegevuskava'!P39='kuni 2025 detsember tegevuskava'!$P$99,'kuni 2025 detsember tegevuskava'!P39='kuni 2025 detsember tegevuskava'!$P$100,'kuni 2025 detsember tegevuskava'!P39='kuni 2025 detsember tegevuskava'!$P$101),1,'kuni 2025 detsember tegevuskava'!P39='kuni 2025 detsember tegevuskava'!$P$102,2,'kuni 2025 detsember tegevuskava'!P39='kuni 2025 detsember tegevuskava'!$P$103,2,'kuni 2025 detsember tegevuskava'!P39='kuni 2025 detsember tegevuskava'!$P$98,3)","v":2},{"$f":"SUM(I63:I64)","v":{"v":116133,"d":"116,133"}},null,{"$f":"SUM(K63:K64)","v":0},null,{"$f":"SUM(M63:M64)","v":{"v":42133,"d":"42,133"}},null,{"$f":"SUM(O63:O64)","v":{"v":74000,"d":"74,000"}}]
[{"$nulls":8},{"$f":"SUM(K63+M63+O63)","v":{"v":91133,"d":"91,133"}},{"$f":"\"(50)\"","v":"(50)"},{"$f":"'kuni 2025 detsember tegevuskava'!Y39","v":0},{"$f":"\"(50)\"","v":"(50)"},{"$f":"'kuni 2025 detsember tegevuskava'!AB39","v":{"v":42133,"d":"42,133"}},{"$f":"\"(50)\"","v":"(50)"},{"$f":"'kuni 2025 detsember tegevuskava'!AE39","v":{"v":49000,"d":"49,000"}},{"$f":"\"(50)\"","v":"(50)"}]
[{"$nulls":8},{"$f":"SUM(K64+M64+O64)","v":{"v":25000,"d":"25,000"}},{"$f":"\"(55)\"","v":"(55)"},{"$f":"'kuni 2025 detsember tegevuskava'!Z39","v":0},{"$f":"\"(55)\"","v":"(55)"},{"$f":"'kuni 2025 detsember tegevuskava'!AC39","v":0},{"$f":"\"(55)\"","v":"(55)"},{"$f":"'kuni 2025 detsember tegevuskava'!AF39","v":{"v":25000,"d":"25,000"}},{"$f":"\"(55)\"","v":"(55)"}]
[{"$nulls":8},"Summa koos käibemaksuga:"]
[{"$nulls":8},{"$f":"SUM(I67:I68)","v":{"v":121633,"d":"121,633"}},null,{"$f":"SUM(K67:K68)","v":0},null,{"$f":"SUM(M67:M68)","v":{"v":42133,"d":"42,133"}},null,{"$f":"SUM(O67:O68)","v":{"v":79500,"d":"79,500"}}]
[{"$nulls":8},{"$f":"SUM(K67+M67+O67)","v":{"v":91133,"d":"91,133"}},{"$f":"\"(50)\"","v":"(50)"},{"$f":"K63","v":0},{"$f":"\"(50)\"","v":"(50)"},{"$f":"M63","v":{"v":42133,"d":"42,133"}},{"$f":"\"(50)\"","v":"(50)"},{"$f":"O63","v":{"v":49000,"d":"49,000"}},{"$f":"\"(50)\"","v":"(50)"}]
[{"$nulls":8},{"$f":"SUM(K68+M68+O68)","v":{"v":30500,"d":"30,500"}},{"$f":"\"(55)\"","v":"(55)"},{"$f":"SUM(K64*1.2)","v":0},{"$f":"\"(55)\"","v":"(55)"},{"$f":"SUM(M64*1.22)","v":0},{"$f":"\"(55)\"","v":"(55)"},{"$f":"SUM(O64*1.22)","v":{"v":30500,"d":"30,500"}},{"$f":"\"(55)\"","v":"(55)"}]
[null,{"$f":"'kuni 2025 detsember tegevuskava'!A40&\"/\"&'kuni 2025 detsember tegevuskava'!C40","v":"ELVL/"},{"$f":"'kuni 2025 detsember tegevuskava'!I40","v":"KOVide koostöö IT valdkonnas on mõnevõrra paranenud ELVL koordineerimisel. Digipöörde käigus saavad osad suunad kaetud, kuid vajalik on hoida ka laiemat vaadet KOV IT juhtimisele ja rollidele. "},{"$f":"'kuni 2025 detsember tegevuskava'!J40","v":"KOV digivaldkonna kogukonna tugevdamine"},{"$f":"'kuni 2025 detsember tegevuskava'!K40","v":"KOV IT võrgustiku regulaarsed virtuaalsed  lühiseminarid. Sügisel kahepäevase seminari korraldamine. KOV IT juhtimise parimate praktikate jagamise töötoad-kogemuslood (nt IT teenuste korraldus KOVis, võimalused tugiteenuste konsolideerimiseks KOVis, teenustega seotud tarkvarade võrdlus, IT juhtimise mudelid jms). Lisaks eraldi töötoad digipöörde suundade osas (andmed, küber, teenused)                                                           Tulemus: KOVid on teadlikumad üksteise parimatest praktikatest, suurenenud on omavaheline koostöö. Suurenenud teadlikkus riigipoolsetest kesksetest lahendustest jne."},{"$f":"'kuni 2025 detsember tegevuskava'!P40&\"/\"","v":"SF 21-27 (taotletav raha)/"},{"$f":"_xlfn.IFS('kuni 2025 detsember tegevuskava'!G40='kuni 2025 detsember tegevuskava'!$G$97,1,'kuni 2025 detsember tegevuskava'!G40='kuni 2025 detsember tegevuskava'!$G$98,2,'kuni 2025 detsember tegevuskava'!G40='kuni 2025 detsember tegevuskava'!$G$99,3,'kuni 2025 detsember tegevuskava'!G40='kuni 2025 detsember tegevuskava'!$G$100,4)","v":3},{"$f":"_xlfn.IFS(OR('kuni 2025 detsember tegevuskava'!P40='kuni 2025 detsember tegevuskava'!$P$97,'kuni 2025 detsember tegevuskava'!P40='kuni 2025 detsember tegevuskava'!$P$99,'kuni 2025 detsember tegevuskava'!P40='kuni 2025 detsember tegevuskava'!$P$100,'kuni 2025 detsember tegevuskava'!P40='kuni 2025 detsember tegevuskava'!$P$101),1,'kuni 2025 detsember tegevuskava'!P40='kuni 2025 detsember tegevuskava'!$P$102,2,'kuni 2025 detsember tegevuskava'!P40='kuni 2025 detsember tegevuskava'!$P$103,2,'kuni 2025 detsember tegevuskava'!P40='kuni 2025 detsember tegevuskava'!$P$98,3)","v":2},{"$f":"SUM(I70:I70)","v":{"v":24000,"d":"24,000"}},null,{"$f":"SUM(K70:K70)","v":0},null,{"$f":"SUM(M70:M70)","v":{"v":12000,"d":"12,000"}},null,{"$f":"SUM(O70:O70)","v":{"v":12000,"d":"12,000"}}]
[{"$nulls":8},{"$f":"SUM(K70+M70+O70)","v":{"v":24000,"d":"24,000"}},{"$f":"\"(55)\"","v":"(55)"},{"$f":"'kuni 2025 detsember tegevuskava'!Z40","v":0},{"$f":"\"(55)\"","v":"(55)"},{"$f":"'kuni 2025 detsember tegevuskava'!AC40","v":{"v":12000,"d":"12,000"}},{"$f":"\"(55)\"","v":"(55)"},{"$f":"'kuni 2025 detsember tegevuskava'!AF40","v":{"v":12000,"d":"12,000"}},{"$f":"\"(55)\"","v":"(55)"}]
[{"$nulls":8},"Summa koos käibemaksuga:"]
[{"$nulls":8},{"$f":"SUM(I73:I73)","v":{"v":29280,"d":"29,280"}},null,{"$f":"SUM(K73:K73)","v":0},null,{"$f":"SUM(M73:M73)","v":{"v":14640,"d":"14,640"}},null,{"$f":"SUM(O73:O73)","v":{"v":14640,"d":"14,640"}}]
[{"$nulls":8},{"$f":"SUM(K73+M73+O73)","v":{"v":29280,"d":"29,280"}},{"$f":"\"(55)\"","v":"(55)"},{"$f":"SUM(K70*1.2)","v":0},{"$f":"\"(55)\"","v":"(55)"},{"$f":"SUM(M70*1.22)","v":{"v":14640,"d":"14,640"}},{"$f":"\"(55)\"","v":"(55)"},{"$f":"SUM(O70*1.22)","v":{"v":14640,"d":"14,640"}},{"$f":"\"(55)\"","v":"(55)"}]
[null,{"$f":"'kuni 2025 detsember tegevuskava'!A41&\"/\"&'kuni 2025 detsember tegevuskava'!C41","v":"ELVL/"},{"$f":"'kuni 2025 detsember tegevuskava'!I41","v":"ELVL IKT KK on tegutsenud  ca 5 aastat, kuid üksuse võimekus on endiselt piiratud. Seni on rohkem keskendutud KOVide kesksete platvormide jätkusuutlikkuse tagamisele ja üldisele koordineerimisele ning KOV teenuste vaade on jäänud tahaplaanile."},{"$f":"'kuni 2025 detsember tegevuskava'!J41","v":"ELVL IKT Kompetentsikeskuse baasrahastus"},{"$f":"'kuni 2025 detsember tegevuskava'!K41","v":"Pidevad tegevused: KOV IT juhtide võrgustiku koordineerimine ja infovahetus, KOVide nõustamine; KOV kesksete lahenduste tootejuhtimine (Anna Teada, Omavalitsuste portaal, VOLIS); Valdkonna õigusaktide kooskõlastamine; digivaldkonna arengudokumentide-tegevuskavade koostamises osalemine ja KOV huvide esindamine."},{"$f":"'kuni 2025 detsember tegevuskava'!P41&\"/\"","v":"Baaseelarve/"},{"$f":"_xlfn.IFS('kuni 2025 detsember tegevuskava'!G41='kuni 2025 detsember tegevuskava'!$G$97,1,'kuni 2025 detsember tegevuskava'!G41='kuni 2025 detsember tegevuskava'!$G$98,2,'kuni 2025 detsember tegevuskava'!G41='kuni 2025 detsember tegevuskava'!$G$99,3,'kuni 2025 detsember tegevuskava'!G41='kuni 2025 detsember tegevuskava'!$G$100,4)","v":4},{"$f":"_xlfn.IFS(OR('kuni 2025 detsember tegevuskava'!P41='kuni 2025 detsember tegevuskava'!$P$97,'kuni 2025 detsember tegevuskava'!P41='kuni 2025 detsember tegevuskava'!$P$99,'kuni 2025 detsember tegevuskava'!P41='kuni 2025 detsember tegevuskava'!$P$100,'kuni 2025 detsember tegevuskava'!P41='kuni 2025 detsember tegevuskava'!$P$101),1,'kuni 2025 detsember tegevuskava'!P41='kuni 2025 detsember tegevuskava'!$P$102,2,'kuni 2025 detsember tegevuskava'!P41='kuni 2025 detsember tegevuskava'!$P$103,2,'kuni 2025 detsember tegevuskava'!P41='kuni 2025 detsember tegevuskava'!$P$98,3)","v":1},{"$f":"SUM(I75:I76)","v":{"v":274000,"d":"274,000"}},null,{"$f":"SUM(K75:K76)","v":{"v":150000,"d":"150,000"}},null,{"$f":"SUM(M75:M76)","v":{"v":62000,"d":"62,000"}},null,{"$f":"SUM(O75:O76)","v":{"v":62000,"d":"62,000"}}]
[{"$nulls":8},{"$f":"SUM(K75+M75+O75)","v":{"v":244000,"d":"244,000"}},{"$f":"\"(50)\"","v":"(50)"},{"$f":"'kuni 2025 detsember tegevuskava'!Y41","v":{"v":140000,"d":"140,000"}},{"$f":"\"(50)\"","v":"(50)"},{"$f":"'kuni 2025 detsember tegevuskava'!AB41","v":{"v":52000,"d":"52,000"}},{"$f":"\"(50)\"","v":"(50)"},{"$f":"'kuni 2025 detsember tegevuskava'!AE41","v":{"v":52000,"d":"52,000"}},{"$f":"\"(50)\"","v":"(50)"}]
[{"$nulls":8},{"$f":"SUM(K76+M76+O76)","v":{"v":30000,"d":"30,000"}},{"$f":"\"(55)\"","v":"(55)"},{"$f":"'kuni 2025 detsember tegevuskava'!Z41","v":{"v":10000,"d":"10,000"}},{"$f":"\"(55)\"","v":"(55)"},{"$f":"'kuni 2025 detsember tegevuskava'!AC41","v":{"v":10000,"d":"10,000"}},{"$f":"\"(55)\"","v":"(55)"},{"$f":"'kuni 2025 detsember tegevuskava'!AF41","v":{"v":10000,"d":"10,000"}},{"$f":"\"(55)\"","v":"(55)"}]
[{"$nulls":8},"Summa koos käibemaksuga:"]
[{"$nulls":8},{"$f":"SUM(I79:I80)","v":{"v":280400,"d":"280,400"}},null,{"$f":"SUM(K79:K80)","v":{"v":152000,"d":"152,000"}},null,{"$f":"SUM(M79:M80)","v":{"v":64200,"d":"64,200"}},null,{"$f":"SUM(O79:O80)","v":{"v":64200,"d":"64,200"}}]
[{"$nulls":8},{"$f":"SUM(K79+M79+O79)","v":{"v":244000,"d":"244,000"}},{"$f":"\"(50)\"","v":"(50)"},{"$f":"K75","v":{"v":140000,"d":"140,000"}},{"$f":"\"(50)\"","v":"(50)"},{"$f":"M75","v":{"v":52000,"d":"52,000"}},{"$f":"\"(50)\"","v":"(50)"},{"$f":"O75","v":{"v":52000,"d":"52,000"}},{"$f":"\"(50)\"","v":"(50)"}]
[{"$nulls":8},{"$f":"SUM(K80+M80+O80)","v":{"v":36400,"d":"36,400"}},{"$f":"\"(55)\"","v":"(55)"},{"$f":"SUM(K76*1.2)","v":{"v":12000,"d":"12,000"}},{"$f":"\"(55)\"","v":"(55)"},{"$f":"SUM(M76*1.22)","v":{"v":12200,"d":"12,200"}},{"$f":"\"(55)\"","v":"(55)"},{"$f":"SUM(O76*1.22)","v":{"v":12200,"d":"12,200"}},{"$f":"\"(55)\"","v":"(55)"}]
[null,{"$f":"'kuni 2025 detsember tegevuskava'!A42&\"/\"&'kuni 2025 detsember tegevuskava'!C42","v":"ELVL/"},{"$f":"'kuni 2025 detsember tegevuskava'!I42","v":"Kohalike omavalitsuste IKT taristu seis on aegunud. Serverite tarkvara ning riistvara on amortiseerunud. Võrgu ülesehitus on tehtud süsteemitult ning kohati on laiendamine  problemaatiline. Serverite hoiustamine ei vasta infoturbe nõuetele."},{"$f":"'kuni 2025 detsember tegevuskava'!J42","v":"IKT taristu Riigipilve majutamine soodustingimustel KOVidele"},{"$f":"'kuni 2025 detsember tegevuskava'!K42","v":"Vahetame välja KOV on-premise legacy serverid tänapäevaste pilvelahenduste vastu\nRiigipilve on kolinud osaliselt või täielikult  60% KOV-idest ning loobunud enda lokaalsetest serveritest. Tagatud tõhusam riistavara kasutus ning serverite tänapäevasem haldus.                                                       "},{"$f":"'kuni 2025 detsember tegevuskava'!P42&\"/\"","v":"RES IKT (vaja juurde taotleda)/"},{"$f":"_xlfn.IFS('kuni 2025 detsember tegevuskava'!G42='kuni 2025 detsember tegevuskava'!$G$97,1,'kuni 2025 detsember tegevuskava'!G42='kuni 2025 detsember tegevuskava'!$G$98,2,'kuni 2025 detsember tegevuskava'!G42='kuni 2025 detsember tegevuskava'!$G$99,3,'kuni 2025 detsember tegevuskava'!G42='kuni 2025 detsember tegevuskava'!$G$100,4)","v":2},{"$f":"_xlfn.IFS(OR('kuni 2025 detsember tegevuskava'!P42='kuni 2025 detsember tegevuskava'!$P$97,'kuni 2025 detsember tegevuskava'!P42='kuni 2025 detsember tegevuskava'!$P$99,'kuni 2025 detsember tegevuskava'!P42='kuni 2025 detsember tegevuskava'!$P$100,'kuni 2025 detsember tegevuskava'!P42='kuni 2025 detsember tegevuskava'!$P$101),1,'kuni 2025 detsember tegevuskava'!P42='kuni 2025 detsember tegevuskava'!$P$102,2,'kuni 2025 detsember tegevuskava'!P42='kuni 2025 detsember tegevuskava'!$P$103,2,'kuni 2025 detsember tegevuskava'!P42='kuni 2025 detsember tegevuskava'!$P$98,3)","v":1},{"$f":"SUM(I82:I84)","v":{"v":545500,"d":"545,500"}},null,{"$f":"SUM(K82:K84)","v":0},null,{"$f":"SUM(M82:M84)","v":0},null,{"$f":"SUM(O82:O84)","v":{"v":545500,"d":"545,500"}}]
[{"$nulls":8},{"$f":"SUM(K82+M82+O82)","v":{"v":395500,"d":"395,500"}},{"$f":"\"(15)\"","v":"(15)"},{"$f":"'kuni 2025 detsember tegevuskava'!X42","v":0},{"$f":"\"(15)\"","v":"(15)"},{"$f":"'kuni 2025 detsember tegevuskava'!AA42","v":0},{"$f":"\"(15)\"","v":"(15)"},{"$f":"'kuni 2025 detsember tegevuskava'!AD42","v":{"v":395500,"d":"395,500"}},{"$f":"\"(15)\"","v":"(15)"}]
[{"$nulls":8},{"$f":"SUM(K83+M83+O83)","v":{"v":50000,"d":"50,000"}},{"$f":"\"(50)\"","v":"(50)"},{"$f":"'kuni 2025 detsember tegevuskava'!Y42","v":0},{"$f":"\"(50)\"","v":"(50)"},{"$f":"'kuni 2025 detsember tegevuskava'!AB42","v":0},{"$f":"\"(50)\"","v":"(50)"},{"$f":"'kuni 2025 detsember tegevuskava'!AE42","v":{"v":50000,"d":"50,000"}},{"$f":"\"(50)\"","v":"(50)"}]
[{"$nulls":8},{"$f":"SUM(K84+M84+O84)","v":{"v":100000,"d":"100,000"}},{"$f":"\"(55)\"","v":"(55)"},{"$f":"'kuni 2025 detsember tegevuskava'!Z42","v":0},{"$f":"\"(55)\"","v":"(55)"},{"$f":"'kuni 2025 detsember tegevuskava'!AC42","v":0},{"$f":"\"(55)\"","v":"(55)"},{"$f":"'kuni 2025 detsember tegevuskava'!AF42","v":{"v":100000,"d":"100,000"}},{"$f":"\"(55)\"","v":"(55)"}]
[{"$nulls":8},"Summa koos käibemaksuga:"]
[{"$nulls":8},{"$f":"SUM(I87:I89)","v":{"v":654510,"d":"654,510"}},null,{"$f":"SUM(K87:K89)","v":0},null,{"$f":"SUM(M87:M89)","v":0},null,{"$f":"SUM(O87:O89)","v":{"v":654510,"d":"654,510"}}]
[{"$nulls":8},{"$f":"SUM(K87+M87+O87)","v":{"v":482510,"d":"482,510"}},{"$f":"\"(15)\"","v":"(15)"},{"$f":"SUM(K82*1.2)","v":0},{"$f":"\"(15)\"","v":"(15)"},{"$f":"SUM(M82*1.22)","v":0},{"$f":"\"(15)\"","v":"(15)"},{"$f":"SUM(O82*1.22)","v":{"v":482510,"d":"482,510"}},{"$f":"\"(15)\"","v":"(15)"}]
[{"$nulls":8},{"$f":"SUM(K88+M88+O88)","v":{"v":50000,"d":"50,000"}},{"$f":"\"(50)\"","v":"(50)"},{"$f":"K83","v":0},{"$f":"\"(50)\"","v":"(50)"},{"$f":"M83","v":0},{"$f":"\"(50)\"","v":"(50)"},{"$f":"O83","v":{"v":50000,"d":"50,000"}},{"$f":"\"(50)\"","v":"(50)"}]
[{"$nulls":8},{"$f":"SUM(K89+M89+O89)","v":{"v":122000,"d":"122,000"}},{"$f":"\"(55)\"","v":"(55)"},{"$f":"SUM(K84*1.2)","v":0},{"$f":"\"(55)\"","v":"(55)"},{"$f":"SUM(M84*1.22)","v":0},{"$f":"\"(55)\"","v":"(55)"},{"$f":"SUM(O84*1.22)","v":{"v":122000,"d":"122,000"}},{"$f":"\"(55)\"","v":"(55)"}]
[null,{"$f":"'kuni 2025 detsember tegevuskava'!A43&\"/\"&'kuni 2025 detsember tegevuskava'!C43","v":"ELVL/"},{"$f":"'kuni 2025 detsember tegevuskava'!I43","v":"Omavalitsuste veebilehtede platvorm OVP valmib 2023.a lõpuks. Alates 2024. a saaksid seda kasutusele võtta teised KOVid, kuid esialgu võib klientide hulk olla ebapiisav halduskulu katmiseks. Kuna OVP baseerub Valitsusportaalil, on vajalik hoida KOVide osa ajakohasena kui VPs toimuvad uuendused."},{"$f":"'kuni 2025 detsember tegevuskava'!J43","v":"Omavalitsuste portaali ja Anna Teada väikearendused"},{"$f":"'kuni 2025 detsember tegevuskava'!K43","v":"Omavalitsuste portaali ja Anna Teada väikearenduste ja tarkvara hoolduse kulud. Lisaks vahesumma, mis tekib KOVidelt saadava tulu ja  portaali haldamiseks vajalike tegelike kulude vahest, juhul kui piisav hulk KOVe uut platvormi kasutusele ei võta. "},{"$f":"'kuni 2025 detsember tegevuskava'!P43&\"/\"","v":"RES IKT (vaja juurde taotleda)/"},{"$f":"_xlfn.IFS('kuni 2025 detsember tegevuskava'!G43='kuni 2025 detsember tegevuskava'!$G$97,1,'kuni 2025 detsember tegevuskava'!G43='kuni 2025 detsember tegevuskava'!$G$98,2,'kuni 2025 detsember tegevuskava'!G43='kuni 2025 detsember tegevuskava'!$G$99,3,'kuni 2025 detsember tegevuskava'!G43='kuni 2025 detsember tegevuskava'!$G$100,4)","v":4},{"$f":"_xlfn.IFS(OR('kuni 2025 detsember tegevuskava'!P43='kuni 2025 detsember tegevuskava'!$P$97,'kuni 2025 detsember tegevuskava'!P43='kuni 2025 detsember tegevuskava'!$P$99,'kuni 2025 detsember tegevuskava'!P43='kuni 2025 detsember tegevuskava'!$P$100,'kuni 2025 detsember tegevuskava'!P43='kuni 2025 detsember tegevuskava'!$P$101),1,'kuni 2025 detsember tegevuskava'!P43='kuni 2025 detsember tegevuskava'!$P$102,2,'kuni 2025 detsember tegevuskava'!P43='kuni 2025 detsember tegevuskava'!$P$103,2,'kuni 2025 detsember tegevuskava'!P43='kuni 2025 detsember tegevuskava'!$P$98,3)","v":1},{"$f":"SUM(I91:I91)","v":{"v":100000,"d":"100,000"}},null,{"$f":"SUM(K91:K91)","v":0},null,{"$f":"SUM(M91:M91)","v":{"v":60000,"d":"60,000"}},null,{"$f":"SUM(O91:O91)","v":{"v":40000,"d":"40,000"}}]
[{"$nulls":8},{"$f":"SUM(K91+M91+O91)","v":{"v":100000,"d":"100,000"}},{"$f":"\"(55)\"","v":"(55)"},{"$f":"'kuni 2025 detsember tegevuskava'!Z43","v":0},{"$f":"\"(55)\"","v":"(55)"},{"$f":"'kuni 2025 detsember tegevuskava'!AC43","v":{"v":60000,"d":"60,000"}},{"$f":"\"(55)\"","v":"(55)"},{"$f":"'kuni 2025 detsember tegevuskava'!AF43","v":{"v":40000,"d":"40,000"}},{"$f":"\"(55)\"","v":"(55)"}]
[{"$nulls":8},"Summa koos käibemaksuga:"]
[{"$nulls":8},{"$f":"SUM(I94:I94)","v":{"v":122000,"d":"122,000"}},null,{"$f":"SUM(K94:K94)","v":0},null,{"$f":"SUM(M94:M94)","v":{"v":73200,"d":"73,200"}},null,{"$f":"SUM(O94:O94)","v":{"v":48800,"d":"48,800"}}]
[{"$nulls":8},{"$f":"SUM(K94+M94+O94)","v":{"v":122000,"d":"122,000"}},{"$f":"\"(55)\"","v":"(55)"},{"$f":"SUM(K91*1.2)","v":0},{"$f":"\"(55)\"","v":"(55)"},{"$f":"SUM(M91*1.22)","v":{"v":73200,"d":"73,200"}},{"$f":"\"(55)\"","v":"(55)"},{"$f":"SUM(O91*1.22)","v":{"v":48800,"d":"48,800"}},{"$f":"\"(55)\"","v":"(55)"}]
[null,{"$f":"'kuni 2025 detsember tegevuskava'!A44&\"/\"&'kuni 2025 detsember tegevuskava'!C44","v":"ELVL/"},{"$f":"'kuni 2025 detsember tegevuskava'!I44","v":"KOV on osa avalikust sektorist ning elanik ei tee tihti vahet riigi ja KOV teenustel. Hetkel ei ole KOV teenuseid liidestatud eesti.ee või riikliku mobiili-rakendusega. Elanik peab KOV teenuste kohta infot otsima KOV veebilehelt, KOV iseteenindusest vms allikast."},{"$f":"'kuni 2025 detsember tegevuskava'!J44","v":"KOV teenuste keskse platvormi eelanalüüs"},{"$f":"'kuni 2025 detsember tegevuskava'!K44","v":"2024: eelanalüüsi hanke ettevalmistamine; 2025: KOV teenuste keskse platvormi eelanalüüsi läbiviimine ja jätkutegevuste kavandamine lähtuvalt analüüsist. Tegevuse elluviimisel koostöö RIA personaalse riigi osakonnaga. "},{"$f":"'kuni 2025 detsember tegevuskava'!P44&\"/\"","v":"SF 21-27 (taotletav raha)/"},{"$f":"_xlfn.IFS('kuni 2025 detsember tegevuskava'!G44='kuni 2025 detsember tegevuskava'!$G$97,1,'kuni 2025 detsember tegevuskava'!G44='kuni 2025 detsember tegevuskava'!$G$98,2,'kuni 2025 detsember tegevuskava'!G44='kuni 2025 detsember tegevuskava'!$G$99,3,'kuni 2025 detsember tegevuskava'!G44='kuni 2025 detsember tegevuskava'!$G$100,4)","v":1},{"$f":"_xlfn.IFS(OR('kuni 2025 detsember tegevuskava'!P44='kuni 2025 detsember tegevuskava'!$P$97,'kuni 2025 detsember tegevuskava'!P44='kuni 2025 detsember tegevuskava'!$P$99,'kuni 2025 detsember tegevuskava'!P44='kuni 2025 detsember tegevuskava'!$P$100,'kuni 2025 detsember tegevuskava'!P44='kuni 2025 detsember tegevuskava'!$P$101),1,'kuni 2025 detsember tegevuskava'!P44='kuni 2025 detsember tegevuskava'!$P$102,2,'kuni 2025 detsember tegevuskava'!P44='kuni 2025 detsember tegevuskava'!$P$103,2,'kuni 2025 detsember tegevuskava'!P44='kuni 2025 detsember tegevuskava'!$P$98,3)","v":2},{"$f":"SUM(I96:I97)","v":{"v":108500,"d":"108,500"}},null,{"$f":"SUM(K96:K97)","v":0},null,{"$f":"SUM(M96:M97)","v":0},null,{"$f":"SUM(O96:O97)","v":{"v":108500,"d":"108,500"}}]
[{"$nulls":8},{"$f":"SUM(K96+M96+O96)","v":{"v":28500,"d":"28,500"}},{"$f":"\"(50)\"","v":"(50)"},{"$f":"'kuni 2025 detsember tegevuskava'!Y44","v":0},{"$f":"\"(50)\"","v":"(50)"},{"$f":"'kuni 2025 detsember tegevuskava'!AB44","v":0},{"$f":"\"(50)\"","v":"(50)"},{"$f":"'kuni 2025 detsember tegevuskava'!AE44","v":{"v":28500,"d":"28,500"}},{"$f":"\"(50)\"","v":"(50)"}]
[{"$nulls":8},{"$f":"SUM(K97+M97+O97)","v":{"v":80000,"d":"80,000"}},{"$f":"\"(55)\"","v":"(55)"},{"$f":"'kuni 2025 detsember tegevuskava'!Z44","v":0},{"$f":"\"(55)\"","v":"(55)"},{"$f":"'kuni 2025 detsember tegevuskava'!AC44","v":0},{"$f":"\"(55)\"","v":"(55)"},{"$f":"'kuni 2025 detsember tegevuskava'!AF44","v":{"v":80000,"d":"80,000"}},{"$f":"\"(55)\"","v":"(55)"}]
[{"$nulls":8},"Summa koos käibemaksuga:"]
[{"$nulls":8},{"$f":"SUM(I100:I101)","v":{"v":126100,"d":"126,100"}},null,{"$f":"SUM(K100:K101)","v":0},null,{"$f":"SUM(M100:M101)","v":0},null,{"$f":"SUM(O100:O101)","v":{"v":126100,"d":"126,100"}}]
[{"$nulls":8},{"$f":"SUM(K100+M100+O100)","v":{"v":28500,"d":"28,500"}},{"$f":"\"(50)\"","v":"(50)"},{"$f":"K96","v":0},{"$f":"\"(50)\"","v":"(50)"},{"$f":"M96","v":0},{"$f":"\"(50)\"","v":"(50)"},{"$f":"O96","v":{"v":28500,"d":"28,500"}},{"$f":"\"(50)\"","v":"(50)"}]
[{"$nulls":8},{"$f":"SUM(K101+M101+O101)","v":{"v":97600,"d":"97,600"}},{"$f":"\"(55)\"","v":"(55)"},{"$f":"SUM(K97*1.2)","v":0},{"$f":"\"(55)\"","v":"(55)"},{"$f":"SUM(M97*1.22)","v":0},{"$f":"\"(55)\"","v":"(55)"},{"$f":"SUM(O97*1.22)","v":{"v":97600,"d":"97,600"}},{"$f":"\"(55)\"","v":"(55)"}]
[null,{"$f":"'kuni 2025 detsember tegevuskava'!A45&\"/\"&'kuni 2025 detsember tegevuskava'!C45","v":"ELVL/"},{"$f":"'kuni 2025 detsember tegevuskava'!I45","v":"2023.a on teostatud I etapp ehk infoteenus eesti.ee. Hetkel ei ole võimalik eesti.ee kaudu KOV teenuseid taotleda."},{"$f":"'kuni 2025 detsember tegevuskava'!J45","v":"Lähedase surma sündmusteenuse juhtimine"},{"$f":"'kuni 2025 detsember tegevuskava'!K45","v":"2024: Pilootprojekt kolme KOV-iga matusetoetuse taotluse info kuvamiseks eesti.ee-s, andmevahetuse analüüs ja prototüüp.\nPärismispildi analüüsi ettevalmistus"},{"$f":"'kuni 2025 detsember tegevuskava'!P45&\"/\"","v":"RRF/"},{"$f":"_xlfn.IFS('kuni 2025 detsember tegevuskava'!G45='kuni 2025 detsember tegevuskava'!$G$97,1,'kuni 2025 detsember tegevuskava'!G45='kuni 2025 detsember tegevuskava'!$G$98,2,'kuni 2025 detsember tegevuskava'!G45='kuni 2025 detsember tegevuskava'!$G$99,3,'kuni 2025 detsember tegevuskava'!G45='kuni 2025 detsember tegevuskava'!$G$100,4)","v":1},{"$f":"_xlfn.IFS(OR('kuni 2025 detsember tegevuskava'!P45='kuni 2025 detsember tegevuskava'!$P$97,'kuni 2025 detsember tegevuskava'!P45='kuni 2025 detsember tegevuskava'!$P$99,'kuni 2025 detsember tegevuskava'!P45='kuni 2025 detsember tegevuskava'!$P$100,'kuni 2025 detsember tegevuskava'!P45='kuni 2025 detsember tegevuskava'!$P$101),1,'kuni 2025 detsember tegevuskava'!P45='kuni 2025 detsember tegevuskava'!$P$102,2,'kuni 2025 detsember tegevuskava'!P45='kuni 2025 detsember tegevuskava'!$P$103,2,'kuni 2025 detsember tegevuskava'!P45='kuni 2025 detsember tegevuskava'!$P$98,3)","v":1},{"$f":"SUM(I103:I104)","v":{"v":42957,"d":"42,957"}},null,{"$f":"SUM(K103:K104)","v":{"v":14933,"d":"14,933"}},null,{"$f":"SUM(M103:M104)","v":{"v":28024,"d":"28,024"}},null,{"$f":"SUM(O103:O104)","v":0}]
[{"$nulls":8},{"$f":"SUM(K103+M103+O103)","v":{"v":32171,"d":"32,171"}},{"$f":"\"(50)\"","v":"(50)"},{"$f":"'kuni 2025 detsember tegevuskava'!Y45","v":{"v":12647,"d":"12,647"}},{"$f":"\"(50)\"","v":"(50)"},{"$f":"'kuni 2025 detsember tegevuskava'!AB45","v":{"v":19524,"d":"19,524"}},{"$f":"\"(50)\"","v":"(50)"},{"$f":"'kuni 2025 detsember tegevuskava'!AE45","v":0},{"$f":"\"(50)\"","v":"(50)"}]
[{"$nulls":8},{"$f":"SUM(K104+M104+O104)","v":{"v":10786,"d":"10,786"}},{"$f":"\"(55)\"","v":"(55)"},{"$f":"'kuni 2025 detsember tegevuskava'!Z45","v":{"v":2286,"d":"2,286"}},{"$f":"\"(55)\"","v":"(55)"},{"$f":"'kuni 2025 detsember tegevuskava'!AC45","v":{"v":8500,"d":"8,500"}},{"$f":"\"(55)\"","v":"(55)"},{"$f":"'kuni 2025 detsember tegevuskava'!AF45","v":0},{"$f":"\"(55)\"","v":"(55)"}]
[{"$nulls":8},"Summa koos käibemaksuga:"]
[{"$nulls":8},{"$f":"SUM(I107:I108)","v":{"v":45284.2,"d":"45,284"}},null,{"$f":"SUM(K107:K108)","v":{"v":15390.2,"d":"15,390"}},null,{"$f":"SUM(M107:M108)","v":{"v":29894,"d":"29,894"}},null,{"$f":"SUM(O107:O108)","v":0}]
[{"$nulls":8},{"$f":"SUM(K107+M107+O107)","v":{"v":32171,"d":"32,171"}},{"$f":"\"(50)\"","v":"(50)"},{"$f":"K103","v":{"v":12647,"d":"12,647"}},{"$f":"\"(50)\"","v":"(50)"},{"$f":"M103","v":{"v":19524,"d":"19,524"}},{"$f":"\"(50)\"","v":"(50)"},{"$f":"O103","v":0},{"$f":"\"(50)\"","v":"(50)"}]
[{"$nulls":8},{"$f":"SUM(K108+M108+O108)","v":{"v":13113.2,"d":"13,113"}},{"$f":"\"(55)\"","v":"(55)"},{"$f":"SUM(K104*1.2)","v":{"v":2743.2,"d":"2,743"}},{"$f":"\"(55)\"","v":"(55)"},{"$f":"SUM(M104*1.22)","v":{"v":10370,"d":"10,370"}},{"$f":"\"(55)\"","v":"(55)"},{"$f":"SUM(O104*1.22)","v":0},{"$f":"\"(55)\"","v":"(55)"}]
[]
[null,"Veerg: „Rahastuse allikas / meetme tegevus (SF)“: \n1 – (Baaseelarve, RES, reserv SR) – summad kajastatakse ilma käibemaksuta ja käibemaks arvestatakse juurde riigieelarvest; \n2 – (SF, nii 14-20, kui 21-27) – toetuse summad kajastatakse koos käibemaksuga, käibemaks on osa toetusest; \n3 – (RRF) – toetuse summad kajastatakse ilma käibemaksuta, käibemaks lisandub toetusele.  \n4 – (muu rahastus) – summad kajastatakse ilma käibemaksuta, elluviija vastutab sõltuvalt rahastusest õige käibemaksu vormi rakendamise eest. \n\n "]
[]
[null,"Liisa-Ly Pakosta"]
[null,"justiits- ja digiminister"]
[null,"(allkirjastatud digitaalselt) "]

{"sheet":"Ettekande arvutused","index":4,"n_rows":111,"n_cols":9,"rows_kept":111,"hidden":true,"merged":[[3,2,3,5],[17,1,18,1],[17,2,17,5],[54,1,54,8],[68,2,68,4],[68,5,68,7]]}
[]
["2023 eelarve täitmine"]
[]
[null,"Liikide lõikes​","Eelarve täitmine 31.12.2023"]
[null,null,"Eelarve​","Täitmine​","Jääk​","Täitmise %​"]
[null,"Kokku​",{"$f":"SUM(C7:C9)","v":{"v":356235,"d":"356,235"}},{"$f":"SUM(D7:D9)","v":{"v":316017,"d":"316,017"}},{"v":40218,"d":"40,218"},{"$f":"SUM(D6/C6)","v":{"v":0.887102614846941,"d":"89%"}}]
[null,"Riigieelarve​",{"v":120000,"d":"120,000"},{"v":120000,"d":"120,000"},{"$f":"SUM(C7-D7)","v":0},{"$f":"SUM(D7/C7)","v":{"v":1,"d":"100%"}}]
[null,"Välistoetused​",{"$f":"121017+40218","v":{"v":161235,"d":"161,235"}},{"v":121017,"d":"121,017"},{"$f":"SUM(C8-D8)","v":{"v":40218,"d":"40,218"}},{"$f":"SUM(D8/C8)","v":{"v":0.750562843055168,"d":"75%"}}]
[null,"Muud​ (liikmemaks)",{"v":75000,"d":"75,000"},{"v":75000,"d":"75,000"},{"$f":"SUM(C9-D9)","v":0},{"$f":"SUM(D9/C9)","v":{"v":1,"d":"100%"}}]
{"$rows_empty":8}
[null,"Majandusliku sisu lõikes​","Eelarve täitmine 31.12.2023"]
[null,null,"Eelarve​","Täitmine​","Jääk​","Täitmise %​"]
[null,"Kokku​",{"$f":"SUM(C21:C24)","v":{"v":356220,"d":"356,220"}},{"$f":"SUM(D21:D24)","v":{"v":316002,"d":"316,002"}},{"v":40218,"d":"40,218"},{"$f":"SUM(D20/C20)","v":{"v":0.8870978608724945,"d":"89%"}}]
[null,"Investeeringud​",{"v":143022,"d":"143,022"},{"v":143022,"d":"143,022"},{"$f":"SUM(C21-D21)","v":0},{"$f":"SUM(D21/C21)","v":{"v":1,"d":"100%"}}]
[null,"Tööjõukulud",{"$f":"155000+34218","v":{"v":189218,"d":"189,218"}},{"v":155000,"d":"155,000"},{"$f":"SUM(C22-D22)","v":{"v":34218,"d":"34,218"}},{"$f":"SUM(D22/C22)","v":{"v":0.819160967772622,"d":"82%"}}]
[null,"​Majandamiskulud​",{"$f":"17980+6000","v":{"v":23980,"d":"23,980"}},{"v":17980,"d":"17,980"},{"$f":"SUM(C23-D23)","v":{"v":6000,"d":"6,000"}},{"$f":"SUM(D23/C23)","v":{"v":0.749791492910759,"d":"75%"}}]
{"$rows_empty":9}
["2024 eelarve"]
[]
[null,"Liikide lõikes​",2024]
[null,"Kokku",{"$f":"SUM(C37:C39)","v":{"v":811400,"d":"811,400"}}]
[null,"Riigieelarve​",{"v":60000,"d":"60,000"}]
[null,"Välistoetused​",{"v":689400,"d":"689,400"}]
[null,"Muud​",{"v":62000,"d":"62,000"}]
[]
[null,"Majandusliku sisu lõikes​",2024]
[null,"Kokku",{"$f":"SUM(C43:C46)","v":{"v":869731,"d":"869,731"}}]
[null,"Investeeringud​",{"v":347431,"d":"347,431"}]
[null,"Tööjõukulud",{"v":215300,"d":"215,300"}]
[null,"​Majandamiskulud​",{"v":307000,"d":"307,000"}]
[null,"​Toetused ja muud",0]
[]
[]
["Personali muutus"]
[]
[]
[null,"Valitsemisala IKT töötajate arv​","2021-01-01","2022-01-01","2023-01-01","2024-01-01","01.01.2025*​","01.01.2026*​","01.01.2027*​"]
[null,"Töötajate arv ​",2,3,3,{"v":3.5,"d":"4"},{"v":4.5,"d":"5"},5,5]
[null,"Kasv​ (%, võrrelduna eelmise aastaga)",0,{"$f":"SUM(((D53/C53)*100)-100)","v":{"v":50,"d":"50.0"}},{"v":0,"d":"0.0"},{"v":16.66666666666667,"d":"16.7"},{"v":28.571428571428584,"d":"28.6"},{"v":11.111111111111114,"d":"11.1"},{"v":0,"d":"0.0"}]
[null,"* Prognoos"]
{"$rows_empty":13}
[null,null,"Seisuga 01.01.2023",null,null,"Seisuga 01.01.2024"]
[null,"IKT Personal","Täidetud/olemas","Täitmata","Kokku","Täidetud/olemas","Täitmata","Kokku"]
[null,"Kokku",{"$f":"SUM(C72:C83)","v":26},9,35,28,17,45]
[null,"andmekorraldusanalüütik​",2,1,{"$f":"SUM(C72:D72)","v":3},2,1,{"$f":"SUM(F72:G72)","v":3}]
[null,"andmekvaliteedi kontrolli spetsialist​",3,0,3,5,0,5]
[null,"andmelao arendaja​",2,0,2,2,8,10]
[null,"jurist - ei ole kavas lähiajal täita​",2,2,4,2,2,4]
[null,"projektijuht​",4,2,6,4,2,6]
[null,"rakenduste administraator​",0,0,0,0,0,0]
[null,"riskijuht​",2,0,2,2,0,2]
[null,"süsteemiadministraator​",2,1,3,2,1,3]
[null,"tarkvara arhitekt​",1,0,1,1,0,1]
[null,"testija​",5,2,7,5,2,7]
[null,"tooteomanik​",3,1,{"$f":"SUM(C82:D82)","v":4},3,1,{"$f":"SUM(F82:G82)","v":4}]
[null,"…",null,null,0,null,null,0]
[null,"NB! Tabelis tuua välja valitsemisala kõik IKT ametikohad. Vajadusel lisada ridu juurde."]
[]
[]
[null,"Andmeturve","Analüütik (teabe)"]
[null,"Arvutigraafika","Andmeanalüüs"]
[null,"Juhtimine","Andmeanalüüs ja -seire "]
[null,"Konsultandid","Andmebaasiadministratsioon"]
[null,"Projektijuhtimine","Andmehaldur"]
[null,"Süsteemiadministratsioon","Andmeteadur (teabe)"]
[null,"Süsteemianalüüs","DEVOPS"]
[null,"Süsteemiarhitektuur","Haldus"]
[null,"Tarkvara programmeerimine","Helpdesk"]
[null,"Teenuste tugi","infoturbe logianalüütik"]
[null,"Testimine","Infoturbespetsialist"]
[null,null,"IS haldur"]
[null,null,"IS ärianalüütik"]
[null,null,"IT analüütik"]
[null,null,"Klienditeenindus"]
[null,null,"küber pääsuhalduste spetsialist"]
[null,null,"Küberinsener"]
[null,null,"küberintsidentide haldur"]
[null,null,"Küberkaitse spetsialist"]
[null,null,"Masinõpe"]
[null,null,"Rakenduse administraator"]
[null,null,"Registripidaja"]
[null,null,"Tarneinsener"]
[null,null,"Teenuseomanik"]
[null,null,"Tootejuhtimine "]

{"sheet":"Personal","index":5,"n_rows":50,"n_cols":17,"rows_kept":50,"hidden":true,"merged":[[0,4,0,8],[1,0,2,0],[1,1,2,1],[1,2,2,2],[1,3,2,3],[1,4,1,8],[1,9,2,9],[1,10,2,10],[1,11,2,11],[1,12,2,12],[1,13,2,13],[1,14,2,14],[1,15,2,15],[1,16,2,16]]}
["Projekti/tegevuse nimi","Digipöörde elluviimisega seotud personal tööperede lõikes","Digipöörde elluviimisega seotud personal tööperede lõikes","Digipöörde elluviimisega seotud personal tööperede lõikes ","Mis aastal on töötaja värvatud / plaanis värvata?",{"$nulls":4},"Kas on võtmetähtsusega? ","Kas töötaja on olemas või tuleb värvata?","Aastane palgakulu","Või kas roll on plaanis teenusena sisse osta?","Teenusena sisse ostmisel maksumus","Kui pikaks ajaks inimene värvatakse, roll teenusena sisse ostetakse?","Milline on koormus digipöördes?","Värvatud või teenusena sisse ostetutud töötaja rahastamise allikas"]
["(\"2a tegevuskava\" lehe J veerg)","(Tööpere nimetus, iga töötaja eraldi real)","(Tööpere taseme number)","(Tööpere nimetuse täpsustav selgitus)","(märkida x-ga)",{"$nulls":4},"(Jah/Ei)","(On olemas / Tuleb värvata\ntööjõukulu, 50)","(olemasolev töötaja, või värvatav)","(Jah / EI\nmajandamiskulu, 55)","Kui lühiajaline (alla aasta), siis kogu maksumus, kui pikemaajaline (üle 1 aasta), siis aasta maksumus)","(kuuks ajaks, aastaks, kogu digipöörde ajaks, jne)","(% tööajast)","(Baaseelarve/SF)"]
[{"$nulls":4},2023,2024,2025,2026,2027]
["KOV avalike teenuste kaardistamise mudel ja ühtne kasutajate rahulolu mõõtmise süsteem","Projektijuhtimine",3,"Teenuseomanik",null,"x",{"$nulls":3},"Jah","olemas",{"v":25609,"d":"25,609"},"ei",null,"digipöörde ajaks",0.5,"SF"]
["KOV rahvahääletuste ja koosolekute digilahendus ","Projektijuhtimine",3,"Tootejuhtimine ",null,"x",{"$nulls":3},"Jah","olemas",{"v":29286,"d":"29,286"},"ei",null,"digipöörde ajaks",0.6,"SF"]
["Küberturvalisuse tagamise tugi KOVidele","Projektijuhtimine",2,"Infoturbespetsialist",null,"x",{"$nulls":3},"Jah","olemas",{"v":29286,"d":"29,286"},"ei",null,"digipöörde ajaks",0.6,"SF"]
["Küberturvalisuse tagamise tugi KOVidele","Konsultandid",2,"Infoturbespetsialist",null,"x",{"$nulls":3},"Ei","olemas",{"v":20000,"d":"20,000"},"ei","E-ITS mentorite käsunduslepingud","2 aastat","nõustatud tundide alusel","SF"]
["Avaandmete avaldamise ja andmehalduse tugi KOVidele","Andmeturve",2,"Andmeanalüüs",null,"x",{"$nulls":3},"Jah","olemas",{"v":48168,"d":"48,168"},"ei",null,"3 aastat",1,"SF"]
["KOV teenuste keskse platvormi eelanalüüs","Süsteemiarhitektuur",2,"IT analüütik",null,null,"x",null,null,"Jah","puudu",{"v":32850,"d":"32,850"},"ei",null,"3 aastat",0.5,"SF"]
["ELVL IKT Kompetentsikeskuse baasrahastus","Juhtimine",3,"Teenuseomanik",null,"x",{"$nulls":3},"Jah","olemas",{"v":25609,"d":"25,609"},"ei",null,"digipöörde ajaks",0.5,"baaseelarve"]
["ELVL IKT Kompetentsikeskuse baasrahastus","Projektijuhtimine",3,"Tootejuhtimine ",null,"x",{"$nulls":3},"ei","olemas",{"v":21676,"d":"21,676"},"ei","käsundusleping ","1 aasta",0.4,"baaseelarve"]
["Lähedase surma sündmusteenuse juhtimine","Projektijuhtimine",3,"Teenuseomanik",null,"x",{"$nulls":3},"Jah","olemas",19524,"ei",null,"2 aastat",0.4,"RRF"]
{"$rows_empty":10}
[{"$nulls":11},187400,{"$nulls":3},{"$f":"SUM(P4:P19)","v":4.500000000000001}]
[]
[]
[null,"Andmeturve",1,"Analüütik (teabe)"]
[null,"Arvutigraafika",2,"Andmeanalüüs"]
[null,"Juhtimine",3,"Andmeanalüüs ja -seire "]
[null,"Konsultandid",4,"Andmebaasiadministratsioon"]
[null,"Projektijuhtimine",null,"Andmehaldur"]
[null,"Süsteemiadministratsioon",null,"Andmeteadur (teabe)"]
[null,"Süsteemianalüüs",null,"DEVOPS"]
[null,"Süsteemiarhitektuur",null,"Haldus"]
[null,"Tarkvara programmeerimine",null,"Helpdesk"]
[null,"Teenuste tugi",null,"infoturbe logianalüütik"]
[null,"Testimine",null,"Infoturbespetsialist"]
[{"$nulls":3},"IS haldur"]
[{"$nulls":3},"IS ärianalüütik"]
[{"$nulls":3},"IT analüütik"]
[{"$nulls":3},"Klienditeenindus"]
[{"$nulls":3},"küber pääsuhalduste spetsialist"]
[{"$nulls":3},"Küberinsener"]
[{"$nulls":3},"küberintsidentide haldur"]
[{"$nulls":3},"Küberkaitse spetsialist"]
[{"$nulls":3},"Masinõpe"]
[{"$nulls":3},"Rakenduse administraator"]
[{"$nulls":3},"Registripidaja"]
[{"$nulls":3},"Tarneinsener"]
[{"$nulls":3},"Teenuseomanik"]
[{"$nulls":3},"Tootejuhtimine "]